Workbook

Sheet " COI " Risk Tables (hidden)
E3: With a Min. 0.001
C4: x | D4: qx CSO 1980 | E4: A67/70 Ult | F4: Multiplier | G4: Multiplier * qx CSO 1980 | I4: x | J4: qx | L4: Mortaity Table for Standard and Substandard used in the product
C5: 0 | D5: 0.00263 | E5: 0 | F5: 1 | G5: =E5*F5 -> 0 | I5: =+Age -> 30 | J5: =VLOOKUP(I5,Multiplier_CSO_1980_qx,5) -> 0.001 | L5: Extra % | M5: Standard 100% | N5: 1.25 | O5: =N5+25% -> 1.5 | P5: =O5+25% -> 1.75 | Q5: 2 | R5: 2.25 | S5: 2.5 | T5: 2.75 | U5: 3 | V5: 3.25 | W5: 3.5 | X5: 3.75 | Y5: 4
C6: 1 | D6: 0.00103 | E6: 0 | F6: 1 | G6: =E6*F6 -> 0 | I6: =I5+1 -> 31 | J6: 0.001 | L6: Risk Cat. | M6: A | N6: B | O6: C | P6: D | Q6: E | R6: F | S6: G | T6: H | U6: I | V6: J | W6: K | X6: L | Y6: M
C7: 2 | D7: 0.00099 | E7: 0 | F7: 1 | G7: 0 | I7: =I6+1 -> 32 | J7: 0.001 | L7: Age
C8: 3 | D8: 0.00097 | E8: 0 | F8: 1 | G8: 0 | I8: 33 | J8: 0.001 | L8: =+C5 -> 0 | M8: =G5 -> 0 | N8: =$G5*N$5 -> 0 | O8: =$G5*O$5 -> 0 | P8: 0 | Q8: 0 | R8: 0 | S8: 0 | T8: 0 | U8: 0 | V8: 0 | W8: 0 | X8: 0 | Y8: 0
C9: 4 | D9: 0.00093 | E9: 0 | F9: 1 | G9: 0 | I9: 34 | J9: 0.001 | L9: =+C6 -> 1 | M9: =G6 -> 0 | N9: =$G6*N$5 -> 0 | O9: 0 | P9: 0 | Q9: 0 | R9: 0 | S9: 0 | T9: 0 | U9: 0 | V9: 0 | W9: 0 | X9: 0 | Y9: 0
C10: 5 | D10: 0.00088 | E10: 0 | F10: 1 | G10: 0 | I10: 35 | J10: 0.001 | L10: 2 | M10: 0 | N10: =$G7*N$5 -> 0 | O10: 0 | P10: 0 | Q10: 0 | R10: 0 | S10: 0 | T10: 0 | U10: 0 | V10: 0 | W10: 0 | X10: 0 | Y10: 0
C11: 6 | D11: 0.00083 | E11: 0 | F11: 1 | G11: 0 | I11: 36 | J11: 0.001 | L11: 3 | M11: 0 | N11: =$G8*N$5 -> 0 | O11: 0 | P11: 0 | Q11: 0 | R11: 0 | S11: 0 | T11: 0 | U11: 0 | V11: 0 | W11: 0 | X11: 0 | Y11: 0
C12: 7 | D12: 0.00078 | E12: 0 | F12: 1 | G12: 0 | I12: 37 | J12: 0.001039840756 | L12: 4 | M12: 0 | N12: =$G9*N$5 -> 0 | O12: 0 | P12: 0 | Q12: 0 | R12: 0 | S12: 0 | T12: 0 | U12: 0 | V12: 0 | W12: 0 | X12: 0 | Y12: 0
C13: 8 | D13: 0.00075 | E13: 0 | F13: 1 | G13: 0 | I13: 38 | J13: 0.001159885796 | L13: 5 | M13: 0 | N13: =$G10*N$5 -> 0 | O13: 0 | P13: 0 | Q13: 0 | R13: 0 | S13: 0 | T13: 0 | U13: 0 | V13: 0 | W13: 0 | X13: 0 | Y13: 0
C14: 9 | D14: 0.00074 | E14: 0 | F14: 1 | G14: 0 | I14: 39 | J14: 0.001280333482 | L14: 6 | M14: 0 | N14: =$G11*N$5 -> 0 | O14: 0 | P14: 0 | Q14: 0 | R14: 0 | S14: 0 | T14: 0 | U14: 0 | V14: 0 | W14: 0 | X14: 0 | Y14: 0
C15: 10 | D15: 0.00075 | E15: 0 | F15: 1 | G15: 0 | I15: 40 | J15: 0.001431041679 | L15: 7 | M15: 0 | N15: =$G12*N$5 -> 0 | O15: 0 | P15: 0 | Q15: 0 | R15: 0 | S15: 0 | T15: 0 | U15: 0 | V15: 0 | W15: 0 | X15: 0 | Y15: 0
C16: 11 | D16: 0.00081 | E16: 0 | F16: 1 | G16: 0 | I16: 41 | J16: 0.001612229056 | L16: 8 | M16: 0 | N16: =$G13*N$5 -> 0 | O16: 0 | P16: 0 | Q16: 0 | R16: 0 | S16: 0 | T16: 0 | U16: 0 | V16: 0 | W16: 0 | X16: 0 | Y16: 0
C17: 12 | D17: 0.00092 | E17: 0 | F17: 1 | G17: 0 | I17: 42 | J17: 0.001854066986 | L17: 9 | M17: 0 | N17: =$G14*N$5 -> 0 | O17: 0 | P17: 0 | Q17: 0 | R17: 0 | S17: 0 | T17: 0 | U17: 0 | V17: 0 | W17: 0 | X17: 0 | Y17: 0
C18: 13 | D18: 0.00107 | E18: 0 | F18: 1 | G18: 0 | I18: 43 | J18: 0.002067229912 | L18: 10 | M18: 0 | N18: =$G15*N$5 -> 0 | O18: 0 | P18: 0 | Q18: 0 | R18: 0 | S18: 0 | T18: 0 | U18: 0 | V18: 0 | W18: 0 | X18: 0 | Y18: 0
C19: 14 | D19: 0.00124 | E19: 0 | F19: 1 | G19: 0 | I19: 44 | J19: 0.002341709448 | L19: 11 | M19: 0 | N19: =$G16*N$5 -> 0 | O19: 0 | P19: 0 | Q19: 0 | R19: 0 | S19: 0 | T19: 0 | U19: 0 | V19: 0 | W19: 0 | X19: 0 | Y19: 0
C20: 15 | D20: 0.00142 | E20: 0 | F20: 1 | G20: 0 | I20: 45 | J20: 0.002618037375 | L20: 12 | M20: 0 | N20: =$G17*N$5 -> 0 | O20: 0 | P20: 0 | Q20: 0 | R20: 0 | S20: 0 | T20: 0 | U20: 0 | V20: 0 | W20: 0 | X20: 0 | Y20: 0
C21: 16 | D21: 0.00159 | E21: 0 | F21: 1 | G21: 0 | I21: 46 | J21: 0.002986965967 | L21: 13 | M21: 0 | N21: =$G18*N$5 -> 0 | O21: 0 | P21: 0 | Q21: 0 | R21: 0 | S21: 0 | T21: 0 | U21: 0 | V21: 0 | W21: 0 | X21: 0 | Y21: 0
C22: 17 | D22: 0.00172 | E22: 0 | F22: 1 | G22: 0 | I22: 47 | J22: 0.003359055833 | L22: 14 | M22: 0 | N22: =$G19*N$5 -> 0 | O22: 0 | P22: 0 | Q22: 0 | R22: 0 | S22: 0 | T22: 0 | U22: 0 | V22: 0 | W22: 0 | X22: 0 | Y22: 0
C23: 18 | D23: 0.00182 | E23: 0.001 | F23: 1 | G23: 0.001 | I23: 48 | J23: 0.00376510597 | L23: 15 | M23: 0 | N23: =$G20*N$5 -> 0 | O23: 0 | P23: 0 | Q23: 0 | R23: 0 | S23: 0 | T23: 0 | U23: 0 | V23: 0 | W23: 0 | X23: 0 | Y23: 0
C24: 19 | D24: 0.00188 | E24: 0.001 | F24: 1 | G24: 0.001 | I24: 49 | J24: 0.004266991771 | L24: 16 | M24: 0 | N24: =$G21*N$5 -> 0 | O24: 0 | P24: 0 | Q24: 0 | R24: 0 | S24: 0 | T24: 0 | U24: 0 | V24: 0 | W24: 0 | X24: 0 | Y24: 0
C25: 20 | D25: 0.0019 | E25: 0.001 | F25: 1 | G25: 0.001 | I25: 50 | J25: 0.004805632078 | L25: 17 | M25: 0 | N25: =$G22*N$5 -> 0 | O25: 0 | P25: 0 | Q25: 0 | R25: 0 | S25: 0 | T25: 0 | U25: 0 | V25: 0 | W25: 0 | X25: 0 | Y25: 0
C26: 21 | D26: 0.0019 | E26: 0.001 | F26: 1 | G26: 0.001 | I26: 51 | J26: 0.005351705472 | L26: 18 | M26: 0.001 | N26: =$G23*N$5 -> 0.00125 | O26: 0.0015 | P26: 0.00175 | Q26: 0.002 | R26: 0.00225 | S26: 0.0025 | T26: 0.00275 | U26: 0.003 | V26: 0.00325 | W26: 0.0035 | X26: 0.00375 | Y26: 0.004
C27: 22 | D27: 0.00188 | E27: 0.001 | F27: 1 | G27: 0.001 | I27: 52 | J27: 0.006029871054 | L27: 19 | M27: 0.001 | N27: =$G24*N$5 -> 0.00125 | O27: 0.0015 | P27: 0.00175 | Q27: 0.002 | R27: 0.00225 | S27: 0.0025 | T27: 0.00275 | U27: 0.003 | V27: 0.00325 | W27: 0.0035 | X27: 0.00375 | Y27: 0.004
C28: 23 | D28: 0.00184 | E28: 0.001 | F28: 1 | G28: 0.001 | I28: 53 | J28: 0.006781981085 | L28: 20 | M28: 0.001 | N28: =$G25*N$5 -> 0.00125 | O28: 0.0015 | P28: 0.00175 | Q28: 0.002 | R28: 0.00225 | S28: 0.0025 | T28: 0.00275 | U28: 0.003 | V28: 0.00325 | W28: 0.0035 | X28: 0.00375 | Y28: 0.004
C29: 24 | D29: 0.0018 | E29: 0.001 | F29: 1 | G29: 0.001 | I29: 54 | J29: 0.007548706384 | L29: 21 | M29: 0.001 | N29: =$G26*N$5 -> 0.00125 | O29: 0.0015 | P29: 0.00175 | Q29: 0.002 | R29: 0.00225 | S29: 0.0025 | T29: 0.00275 | U29: 0.003 | V29: 0.00325 | W29: 0.0035 | X29: 0.00375 | Y29: 0.004
C30: 25 | D30: 0.00175 | E30: 0.001 | F30: 1 | G30: 0.001 | I30: 55 | J30: 0.008426700331 | L30: 22 | M30: 0.001 | N30: =$G27*N$5 -> 0.00125 | O30: 0.0015 | P30: 0.00175 | Q30: 0.002 | R30: 0.00225 | S30: 0.0025 | T30: 0.00275 | U30: 0.003 | V30: 0.00325 | W30: 0.0035 | X30: 0.00375 | Y30: 0.004
C31: 26 | D31: 0.00172 | E31: 0.001 | F31: 1 | G31: 0.001 | I31: 56 | J31: 0.009421350818 | L31: 23 | M31: 0.001 | N31: =$G28*N$5 -> 0.00125 | O31: 0.0015 | P31: 0.00175 | Q31: 0.002 | R31: 0.00225 | S31: 0.0025 | T31: 0.00275 | U31: 0.003 | V31: 0.00325 | W31: 0.0035 | X31: 0.00375 | Y31: 0.004
C32: 27 | D32: 0.00171 | E32: 0.001 | F32: 1 | G32: 0.001 | I32: 57 | J32: 0.01050703682 | L32: 24 | M32: 0.001 | N32: =$G29*N$5 -> 0.00125 | O32: 0.0015 | P32: 0.00175 | Q32: 0.002 | R32: 0.00225 | S32: 0.0025 | T32: 0.00275 | U32: 0.003 | V32: 0.00325 | W32: 0.0035 | X32: 0.00375 | Y32: 0.004
C33: 28 | D33: 0.0017 | E33: 0.001 | F33: 1 | G33: 0.001 | I33: 58 | J33: 0.01169020945 | L33: 25 | M33: 0.001 | N33: =$G30*N$5 -> 0.00125 | O33: 0.0015 | P33: 0.00175 | Q33: 0.002 | R33: 0.00225 | S33: 0.0025 | T33: 0.00275 | U33: 0.003 | V33: 0.00325 | W33: 0.0035 | X33: 0.00375 | Y33: 0.004
C34: 29 | D34: 0.00172 | E34: 0.001 | F34: 1 | G34: 0.001 | I34: 59 | J34: 0.01297847873 | L34: 26 | M34: 0.001 | N34: =$G31*N$5 -> 0.00125 | O34: 0.0015 | P34: 0.00175 | Q34: 0.002 | R34: 0.00225 | S34: 0.0025 | T34: 0.00275 | U34: 0.003 | V34: 0.00325 | W34: 0.0035 | X34: 0.00375 | Y34: 0.004
C35: 30 | D35: 0.00175 | E35: 0.001 | F35: 1 | G35: 0.001 | I35: 60 | J35: 0.01444740346 | L35: 27 | M35: 0.001 | N35: =$G32*N$5 -> 0.00125 | O35: 0.0015 | P35: 0.00175 | Q35: 0.002 | R35: 0.00225 | S35: 0.0025 | T35: 0.00275 | U35: 0.003 | V35: 0.00325 | W35: 0.0035 | X35: 0.00375 | Y35: 0.004
C36: 31 | D36: 0.0018 | E36: 0.001 | F36: 1 | G36: 0.001 | I36: 61 | J36: 0.01601026819 | L36: 28 | M36: 0.001 | N36: =$G33*N$5 -> 0.00125 | O36: 0.0015 | P36: 0.00175 | Q36: 0.002 | R36: 0.00225 | S36: 0.0025 | T36: 0.00275 | U36: 0.003 | V36: 0.00325 | W36: 0.0035 | X36: 0.00375 | Y36: 0.004
C37: 32 | D37: 0.00187 | E37: 0.001 | F37: 1 | G37: 0.001 | I37: 62 | J37: =VLOOKUP(I37,Multiplier_CSO_1980_qx,5) -> 0.01774680763 | L37: 29 | M37: 0.001 | N37: =$G34*N$5 -> 0.00125 | O37: 0.0015 | P37: 0.00175 | Q37: 0.002 | R37: 0.00225 | S37: 0.0025 | T37: 0.00275 | U37: 0.003 | V37: 0.00325 | W37: 0.0035 | X37: 0.00375 | Y37: 0.004
C38: 33 | D38: 0.00195 | E38: 0.001 | F38: 1 | G38: 0.001 | I38: 63 | J38: 0.01964004893 | L38: 30 | M38: 0.001 | N38: =$G35*N$5 -> 0.00125 | O38: 0.0015 | P38: 0.00175 | Q38: 0.002 | R38: 0.00225 | S38: 0.0025 | T38: 0.00275 | U38: 0.003 | V38: 0.00325 | W38: 0.0035 | X38: 0.00375 | Y38: 0.004
C39: 34 | D39: 0.00205 | E39: 0.001 | F39: 1 | G39: 0.001 | I39: 64 | J39: 0.02174455495 | L39: 31 | M39: 0.001 | N39: =$G36*N$5 -> 0.00125 | O39: 0.0015 | P39: 0.00175 | Q39: 0.002 | R39: 0.00225 | S39: 0.0025 | T39: 0.00275 | U39: 0.003 | V39: 0.00325 | W39: 0.0035 | X39: 0.00375 | Y39: 0.004
C40: 35 | D40: 0.00217 | E40: 0.001 | F40: 1 | G40: 0.001 | I40: 65 | J40: 0.02404984878 | L40: 32 | M40: 0.001 | N40: =$G37*N$5 -> 0.00125 | O40: 0.0015 | P40: 0.00175 | Q40: 0.002 | R40: 0.00225 | S40: 0.0025 | T40: 0.00275 | U40: 0.003 | V40: 0.00325 | W40: 0.0035 | X40: 0.00375 | Y40: 0.004
C41: 36 | D41: 0.00232 | E41: 0.001 | F41: 1 | G41: 0.001 | I41: 66 | J41: 0.02650935295 | L41: 33 | M41: 0.001 | N41: =$G38*N$5 -> 0.00125 | O41: 0.0015 | P41: 0.00175 | Q41: 0.002 | R41: 0.00225 | S41: 0.0025 | T41: 0.00275 | U41: 0.003 | V41: 0.00325 | W41: 0.0035 | X41: 0.00375 | Y41: 0.004
C42: 37 | D42: 0.00249 | E42: 0.001039840756 | F42: 1 | G42: 0.001039840756 | I42: 67 | J42: 0.02930234342 | L42: 34 | M42: 0.001 | N42: =$G39*N$5 -> 0.00125 | O42: 0.0015 | P42: 0.00175 | Q42: 0.002 | R42: 0.00225 | S42: 0.0025 | T42: 0.00275 | U42: 0.003 | V42: 0.00325 | W42: 0.0035 | X42: 0.00375 | Y42: 0.004
C43: 38 | D43: 0.00268 | E43: 0.001159885796 | F43: 1 | G43: 0.001159885796 | I43: 68 | J43: 0.03224149512 | L43: 35 | M43: 0.001 | N43: =$G40*N$5 -> 0.00125 | O43: 0.0015 | P43: 0.00175 | Q43: 0.002 | R43: 0.00225 | S43: 0.0025 | T43: 0.00275 | U43: 0.003 | V43: 0.00325 | W43: 0.0035 | X43: 0.00375 | Y43: 0.004
C44: 39 | D44: 0.0029 | E44: 0.001280333482 | F44: 1 | G44: 0.001280333482 | I44: 69 | J44: 0.03556118075 | L44: 36 | M44: 0.001 | N44: =$G41*N$5 -> 0.00125 | O44: 0.0015 | P44: 0.00175 | Q44: 0.002 | R44: 0.00225 | S44: 0.0025 | T44: 0.00275 | U44: 0.003 | V44: 0.00325 | W44: 0.0035 | X44: 0.00375 | Y44: 0.004
C45: 40 | D45: 0.00315 | E45: 0.001431041679 | F45: 1 | G45: 0.001431041679 | I45: 70 | J45: 0.03911607823 | L45: 37 | M45: 0.001039840756 | N45: =$G42*N$5 -> 0.001299800945 | O45: 0.001559761134 | P45: 0.001819721323 | Q45: 0.002079681512 | R45: 0.002339641701 | S45: 0.00259960189 | T45: 0.002859562078 | U45: 0.003119522267 | V45: 0.003379482456 | W45: 0.003639442645 | X45: 0.003899402834 | Y45: 0.004159363023
C46: 41 | D46: 0.00342 | E46: 0.001612229056 | F46: 1 | G46: 0.001612229056 | I46: 71 | J46: 0.04299938321 | L46: 38 | M46: 0.001159885796 | N46: =$G43*N$5 -> 0.001449857245 | O46: 0.001739828694 | P46: 0.002029800143 | Q46: 0.002319771592 | R46: 0.002609743041 | S46: 0.00289971449 | T46: 0.003189685939 | U46: 0.003479657388 | V46: 0.003769628837 | W46: 0.004059600286 | X46: 0.004349571734 | Y46: 0.004639543183
C47: 42 | D47: 0.00371 | E47: 0.001854066986 | F47: 1 | G47: 0.001854066986 | I47: 72 | J47: 0.04723321978 | L47: 39 | M47: 0.001280333482 | N47: =$G44*N$5 -> 0.001600416853 | O47: 0.001920500223 | P47: 0.002240583594 | Q47: 0.002560666964 | R47: 0.002880750335 | S47: 0.003200833706 | T47: 0.003520917076 | U47: 0.003841000447 | V47: 0.004161083817 | W47: 0.004481167188 | X47: 0.004801250558 | Y47: 0.005121333929
C48: 43 | D48: 0.00403 | E48: 0.002067229912 | F48: 1 | G48: 0.002067229912 | I48: 73 | J48: 0.05179744878 | L48: 40 | M48: 0.001431041679 | N48: =$G45*N$5 -> 0.001788802099 | O48: 0.002146562519 | P48: 0.002504322938 | Q48: 0.002862083358 | R48: 0.003219843778 | S48: 0.003577604198 | T48: 0.003935364617 | U48: 0.004293125037 | V48: 0.004650885457 | W48: 0.005008645877 | X48: 0.005366406297 | Y48: 0.005724166716
C49: 44 | D49: 0.00437 | E49: 0.002341709448 | F49: 1 | G49: 0.002341709448 | I49: 74 | J49: 0.05686913983 | L49: 41 | M49: 0.001612229056 | N49: =$G46*N$5 -> 0.00201528632 | O49: 0.002418343584 | P49: 0.002821400848 | Q49: 0.003224458112 | R49: 0.003627515376 | S49: 0.00403057264 | T49: 0.004433629904 | U49: 0.004836687168 | V49: 0.005239744432 | W49: 0.005642801696 | X49: 0.00604585896 | Y49: 0.006448916224
C50: 45 | D50: 0.00473 | E50: 0.002618037375 | F50: 1 | G50: 0.002618037375 | I50: 75 | J50: 0.06229738491 | L50: 42 | M50: 0.001854066986 | N50: =$G47*N$5 -> 0.002317583732 | O50: 0.002781100478 | P50: 0.003244617225 | Q50: 0.003708133971 | R50: 0.004171650718 | S50: 0.004635167464 | T50: 0.005098684211 | U50: 0.005562200957 | V50: 0.006025717703 | W50: 0.00648923445 | X50: 0.006952751196 | Y50: 0.007416267943
C51: 46 | D51: 0.00512 | E51: 0.002986965967 | F51: 1 | G51: 0.002986965967 | I51: 76 | J51: 0.06816479401 | L51: 43 | M51: 0.002067229912 | N51: =$G48*N$5 -> 0.00258403739 | O51: 0.003100844868 | P51: 0.003617652346 | Q51: 0.004134459824 | R51: 0.004651267302 | S51: 0.00516807478 | T51: 0.005684882258 | U51: 0.006201689736 | V51: 0.006718497214 | W51: 0.007235304692 | X51: 0.00775211217 | Y51: 0.008268919648
C52: 47 | D52: 0.00553 | E52: 0.003359055833 | F52: 1 | G52: 0.003359055833 | I52: 77 | J52: 0.0746351719 | L52: 44 | M52: 0.002341709448 | N52: =$G49*N$5 -> 0.00292713681 | O52: 0.003512564172 | P52: 0.004097991534 | Q52: 0.004683418896 | R52: 0.005268846258 | S52: 0.00585427362 | T52: 0.006439700982 | U52: 0.007025128344 | V52: 0.007610555706 | W52: 0.008195983068 | X52: 0.00878141043 | Y52: 0.009366837792
C53: 48 | D53: 0.00597 | E53: 0.00376510597 | F53: 1 | G53: 0.00376510597 | I53: 78 | J53: 0.08145673238 | L53: 45 | M53: 0.002618037375 | N53: =$G50*N$5 -> 0.003272546718 | O53: 0.003927056062 | P53: 0.004581565406 | Q53: 0.005236074749 | R53: 0.005890584093 | S53: 0.006545093437 | T53: 0.007199602781 | U53: 0.007854112124 | V53: 0.008508621468 | W53: 0.009163130812 | X53: 0.009817640155 | Y53: 0.0104721495
C54: 49 | D54: 0.00646 | E54: 0.004266991771 | F54: 1 | G54: 0.004266991771 | I54: 79 | J54: 0.08897133712 | L54: 46 | M54: 0.002986965967 | N54: =$G51*N$5 -> 0.003733707458 | O54: 0.00448044895 | P54: 0.005227190442 | Q54: 0.005973931933 | R54: 0.006720673425 | S54: 0.007467414917 | T54: 0.008214156408 | U54: 0.0089608979 | V54: 0.009707639392 | W54: 0.01045438088 | X54: 0.01120112238 | Y54: 0.01194786387
C55: 50 | D55: 0.007 | E55: 0.004805632078 | F55: 1 | G55: 0.004805632078 | I55: 80 | J55: 0.09702148048 | L55: 47 | M55: 0.003359055833 | N55: =$G52*N$5 -> 0.004198819791 | O55: 0.005038583749 | P55: 0.005878347708 | Q55: 0.006718111666 | R55: 0.007557875624 | S55: 0.008397639582 | T55: 0.009237403541 | U55: 0.0100771675 | V55: 0.01091693146 | W55: 0.01175669542 | X55: 0.01259645937 | Y55: 0.01343622333
C56: 51 | D56: 0.00763 | E56: 0.005351705472 | F56: 1 | G56: 0.005351705472 | I56: 81 | J56: 0.1057658295 | L56: 48 | M56: 0.00376510597 | N56: =$G53*N$5 -> 0.004706382462 | O56: 0.005647658954 | P56: 0.006588935447 | Q56: 0.007530211939 | R56: 0.008471488431 | S56: 0.009412764924 | T56: 0.01035404142 | U56: 0.01129531791 | V56: 0.0122365944 | W56: 0.01317787089 | X56: 0.01411914739 | Y56: 0.01506042388
C57: 52 | D57: 0.00833 | E57: 0.006029871054 | F57: 1 | G57: 0.006029871054 | I57: 82 | J57: 0.1150118671 | L57: 49 | M57: 0.004266991771 | N57: =$G54*N$5 -> 0.005333739714 | O57: 0.006400487656 | P57: 0.007467235599 | Q57: 0.008533983542 | R57: 0.009600731484 | S57: 0.01066747943 | T57: 0.01173422737 | U57: 0.01280097531 | V57: 0.01386772326 | W57: 0.0149344712 | X57: 0.01600121914 | Y57: 0.01706796708
C58: 53 | D58: 0.00913 | E58: 0.006781981085 | F58: 1 | G58: 0.006781981085 | I58: 83 | J58: 0.1250419041 | L58: 50 | M58: 0.004805632078 | N58: =$G55*N$5 -> 0.006007040098 | O58: 0.007208448118 | P58: 0.008409856137 | Q58: 0.009611264157 | R58: 0.01081267218 | S58: 0.0120140802 | T58: 0.01321548822 | U58: 0.01441689624 | V58: 0.01561830425 | W58: 0.01681971227 | X58: 0.01802112029 | Y58: 0.01922252831
C59: 54 | D59: 0.01001 | E59: 0.007548706384 | F59: 1 | G59: 0.007548706384 | I59: 84 | J59: 0.1357598978 | L59: 51 | M59: 0.005351705472 | N59: =$G56*N$5 -> 0.00668963184 | O59: 0.008027558207 | P59: 0.009365484575 | Q59: 0.01070341094 | R59: 0.01204133731 | S59: 0.01337926368 | T59: 0.01471719005 | U59: 0.01605511641 | V59: 0.01739304278 | W59: 0.01873096915 | X59: 0.02006889552 | Y59: 0.02140682189
C60: 55 | D60: 0.01096 | E60: 0.008426700331 | F60: 1 | G60: 0.008426700331 | I60: 85 | J60: 0.1473326437 | L60: 52 | M60: 0.006029871054 | N60: =$G57*N$5 -> 0.007537338817 | O60: 0.00904480658 | P60: 0.01055227434 | Q60: 0.01205974211 | R60: 0.01356720987 | S60: 0.01507467763 | T60: 0.0165821454 | U60: 0.01808961316 | V60: 0.01959708092 | W60: 0.02110454869 | X60: 0.02261201645 | Y60: 0.02411948421
C61: 56 | D61: 0.01197 | E61: 0.009421350818 | F61: 1 | G61: 0.009421350818 | I61: 86 | J61: 0.1594454073 | L61: 53 | M61: 0.006781981085 | N61: =$G58*N$5 -> 0.008477476356 | O61: 0.01017297163 | P61: 0.0118684669 | Q61: 0.01356396217 | R61: 0.01525945744 | S61: 0.01695495271 | T61: 0.01865044798 | U61: 0.02034594326 | V61: 0.02204143853 | W61: 0.0237369338 | X61: 0.02543242907 | Y61: 0.02712792434
C62: 57 | D62: 0.01304 | E62: 0.01050703682 | F62: 1 | G62: 0.01050703682 | I62: 87 | J62: 0.1725773196 | L62: 54 | M62: 0.007548706384 | N62: =$G59*N$5 -> 0.009435882979 | O62: 0.01132305958 | P62: 0.01321023617 | Q62: 0.01509741277 | R62: 0.01698458936 | S62: 0.01887176596 | T62: 0.02075894255 | U62: 0.02264611915 | V62: 0.02453329575 | W62: 0.02642047234 | X62: 0.02830764894 | Y62: 0.03019482553
C63: 58 | D63: 0.01418 | E63: 0.01169020945 | F63: 1 | G63: 0.01169020945 | I63: 88 | J63: 0.1863942188 | L63: 55 | M63: 0.008426700331 | N63: =$G60*N$5 -> 0.01053337541 | O63: 0.0126400505 | P63: 0.01474672558 | Q63: 0.01685340066 | R63: 0.01896007575 | S63: 0.02106675083 | T63: 0.02317342591 | U63: 0.02528010099 | V63: 0.02738677608 | W63: 0.02949345116 | X63: 0.03160012624 | Y63: 0.03370680133
C64: 59 | D64: 0.01542 | E64: 0.01297847873 | F64: 1 | G64: 0.01297847873 | I64: 89 | J64: 0.2009188361 | L64: 56 | M64: 0.009421350818 | N64: =$G61*N$5 -> 0.01177668852 | O64: 0.01413202623 | P64: 0.01648736393 | Q64: 0.01884270164 | R64: 0.02119803934 | S64: 0.02355337705 | T64: 0.02590871475 | U64: 0.02826405245 | V64: 0.03061939016 | W64: 0.03297472786 | X64: 0.03533006557 | Y64: 0.03768540327
C65: 60 | D65: 0.0168 | E65: 0.01444740346 | F65: 1 | G65: 0.01444740346 | I65: 90 | J65: 0.2165580682 | L65: 57 | M65: 0.01050703682 | N65: =$G62*N$5 -> 0.01313379603 | O65: 0.01576055523 | P65: 0.01838731444 | Q65: 0.02101407365 | R65: 0.02364083285 | S65: 0.02626759206 | T65: 0.02889435126 | U65: 0.03152111047 | V65: 0.03414786967 | W65: 0.03677462888 | X65: 0.03940138809 | Y65: 0.04202814729
C66: 61 | D66: 0.01836 | E66: 0.01601026819 | F66: 1 | G66: 0.01601026819 | I66: 91 | J66: 0.2328767123 | L66: 58 | M66: 0.01169020945 | N66: =$G63*N$5 -> 0.01461276181 | O66: 0.01753531417 | P66: 0.02045786654 | Q66: 0.0233804189 | R66: 0.02630297126 | S66: 0.02922552362 | T66: 0.03214807599 | U66: 0.03507062835 | V66: 0.03799318071 | W66: 0.04091573307 | X66: 0.04383828544 | Y66: 0.0467608378
C67: 62 | D67: 0.02012 | E67: 0.01774680763 | F67: 1 | G67: 0.01774680763 | I67: 92 | J67: 0.25 | L67: 59 | M67: 0.01297847873 | N67: =$G64*N$5 -> 0.01622309841 | O67: 0.01946771809 | P67: 0.02271233777 | Q67: 0.02595695745 | R67: 0.02920157713 | S67: 0.03244619681 | T67: 0.03569081649 | U67: 0.03893543618 | V67: 0.04218005586 | W67: 0.04542467554 | X67: 0.04866929522 | Y67: 0.0519139149
C68: 63 | D68: 0.02209 | E68: 0.01964004893 | F68: 1 | G68: 0.01964004893 | I68: 93 | J68: 0.2678571429 | L68: 60 | M68: 0.01444740346 | N68: =$G65*N$5 -> 0.01805925433 | O68: 0.02167110519 | P68: 0.02528295606 | Q68: 0.02889480692 | R68: 0.03250665779 | S68: 0.03611850866 | T68: 0.03973035952 | U68: 0.04334221039 | V68: 0.04695406125 | W68: 0.05056591212 | X68: 0.05417776298 | Y68: 0.05778961385
C69: 64 | D69: 0.02427 | E69: 0.02174455495 | F69: 1 | G69: 0.02174455495 | I69: 94 | J69: =VLOOKUP(I69,Multiplier_CSO_1980_qx,5) -> 0.2868757259 | L69: 61 | M69: 0.01601026819 | N69: =$G66*N$5 -> 0.02001283524 | O69: 0.02401540228 | P69: 0.02801796933 | Q69: 0.03202053638 | R69: 0.03602310342 | S69: 0.04002567047 | T69: 0.04402823752 | U69: 0.04803080457 | V69: 0.05203337161 | W69: 0.05603593866 | X69: 0.06003850571 | Y69: 0.06404107276
C70: 65 | D70: 0.02662 | E70: 0.02404984878 | F70: 1 | G70: =E70*F70 -> 0.02404984878 | I70: 95 | J70: 0.3061889251 | L70: 62 | M70: 0.01774680763 | N70: =$G67*N$5 -> 0.02218350954 | O70: 0.02662021145 | P70: 0.03105691336 | Q70: 0.03549361527 | R70: 0.03993031718 | S70: 0.04436701909 | T70: 0.04880372099 | U70: 0.0532404229 | V70: 0.05767712481 | W70: 0.06211382672 | X70: 0.06655052863 | Y70: 0.07098723054
C71: 66 | D71: 0.02913 | E71: 0.02650935295 | F71: 1 | G71: 0.02650935295 | I71: =I70+1 -> 96 | J71: 0.3262910798 | L71: 63 | M71: 0.01964004893 | N71: =$G68*N$5 -> 0.02455006116 | O71: 0.02946007339 | P71: 0.03437008562 | Q71: 0.03928009785 | R71: 0.04419011008 | S71: 0.04910012231 | T71: 0.05401013454 | U71: 0.05892014678 | V71: 0.06383015901 | W71: 0.06874017124 | X71: 0.07365018347 | Y71: 0.0785601957
C72: 67 | D72: 0.03179 | E72: 0.02930234342 | F72: 1 | G72: 0.02930234342 | I72: 97 | J72: 0.3449477352 | L72: 64 | M72: 0.02174455495 | N72: =$G69*N$5 -> 0.02718069369 | O72: 0.03261683242 | P72: 0.03805297116 | Q72: 0.0434891099 | R72: 0.04892524864 | S72: 0.05436138737 | T72: 0.05979752611 | U72: 0.06523366485 | V72: 0.07066980359 | W72: 0.07610594232 | X72: 0.08154208106 | Y72: 0.0869782198
C73: 68 | D73: 0.03465 | E73: 0.03224149512 | F73: 1 | G73: 0.03224149512 | I73: 98 | J73: 0.3670212766 | L73: =+C70 -> 65 | M73: =G70 -> 0.02404984878 | N73: =$G70*N$5 -> 0.03006231097 | O73: 0.03607477317 | P73: 0.04208723536 | Q73: 0.04809969755 | R73: 0.05411215975 | S73: 0.06012462194 | T73: 0.06613708414 | U73: 0.07214954633 | V73: 0.07816200853 | W73: 0.08417447072 | X73: 0.09018693292 | Y73: 0.09619939511
C74: 69 | D74: 0.03781 | E74: 0.03556118075 | F74: 1 | G74: 0.03556118075 | I74: 99 | J74: 0.3670212766 | L74: 66 | M74: 0.02650935295 | N74: =$G71*N$5 -> 0.03313669118 | O74: 0.03976402942 | P74: 0.04639136766 | Q74: 0.0530187059 | R74: 0.05964604413 | S74: 0.06627338237 | T74: 0.07290072061 | U74: 0.07952805884 | V74: 0.08615539708 | W74: 0.09278273532 | X74: 0.09941007355 | Y74: 0.1060374118
C75: 70 | D75: 0.04137 | E75: 0.03911607823 | F75: 1 | G75: 0.03911607823 | I75: 100 | J75: 0.3670212766 | L75: 67 | M75: 0.02930234342 | N75: =$G72*N$5 -> 0.03662792928 | O75: 0.04395351513 | P75: 0.05127910099 | Q75: 0.05860468684 | R75: 0.0659302727 | S75: 0.07325585855 | T75: 0.08058144441 | U75: 0.08790703026 | V75: 0.09523261612 | W75: 0.102558202 | X75: 0.1098837878 | Y75: 0.1172093737
C76: 71 | D76: 0.04543 | E76: 0.04299938321 | F76: 1 | G76: 0.04299938321 | I76: 101 | J76: 0.3670212766 | L76: 68 | M76: 0.03224149512 | N76: =$G73*N$5 -> 0.0403018689 | O76: 0.04836224268 | P76: 0.05642261646 | Q76: 0.06448299024 | R76: 0.07254336402 | S76: 0.0806037378 | T76: 0.08866411158 | U76: 0.09672448536 | V76: 0.1047848591 | W76: 0.1128452329 | X76: 0.1209056067 | Y76: 0.1289659805
C77: 72 | D77: 0.05008 | E77: 0.04723321978 | F77: 1 | G77: 0.04723321978 | I77: 102 | J77: 0.3670212766 | L77: 69 | M77: 0.03556118075 | N77: =$G74*N$5 -> 0.04445147593 | O77: 0.05334177112 | P77: 0.0622320663 | Q77: 0.07112236149 | R77: 0.08001265668 | S77: 0.08890295186 | T77: 0.09779324705 | U77: 0.1066835422 | V77: 0.1155738374 | W77: 0.1244641326 | X77: 0.1333544278 | Y77: 0.142244723
C78: 73 | D78: 0.05534 | E78: 0.05179744878 | F78: 1 | G78: 0.05179744878 | I78: 103 | J78: 0.3670212766 | L78: 70 | M78: 0.03911607823 | N78: =$G75*N$5 -> 0.04889509779 | O78: 0.05867411735 | P78: 0.06845313691 | Q78: 0.07823215646 | R78: 0.08801117602 | S78: 0.09779019558 | T78: 0.1075692151 | U78: 0.1173482347 | V78: 0.1271272543 | W78: 0.1369062738 | X78: 0.1466852934 | Y78: 0.1564643129
C79: 74 | D79: 0.0611 | E79: 0.05686913983 | F79: 1 | G79: 0.05686913983 | I79: 104 | J79: 0.3670212766 | L79: 71 | M79: 0.04299938321 | N79: =$G76*N$5 -> 0.05374922901 | O79: 0.06449907481 | P79: 0.07524892061 | Q79: 0.08599876641 | R79: 0.09674861221 | S79: 0.107498458 | T79: 0.1182483038 | U79: 0.1289981496 | V79: 0.1397479954 | W79: 0.1504978412 | X79: 0.161247687 | Y79: 0.1719975328
C80: 75 | D80: 0.06725 | E80: 0.06229738491 | F80: 1 | G80: 0.06229738491 | I80: 105 | J80: 0.3670212766 | L80: 72 | M80: 0.04723321978 | N80: =$G77*N$5 -> 0.05904152472 | O80: 0.07084982967 | P80: 0.08265813461 | Q80: 0.09446643955 | R80: 0.1062747445 | S80: 0.1180830494 | T80: 0.1298913544 | U80: 0.1416996593 | V80: 0.1535079643 | W80: 0.1653162692 | X80: 0.1771245742 | Y80: 0.1889328791
C81: 76 | D81: 0.0737 | E81: 0.06816479401 | F81: 1 | G81: 0.06816479401 | I81: 106 | J81: 0.3670212766 | L81: 73 | M81: 0.05179744878 | N81: =$G78*N$5 -> 0.06474681098 | O81: 0.07769617317 | P81: 0.09064553537 | Q81: 0.1035948976 | R81: 0.1165442598 | S81: 0.129493622 | T81: 0.1424429842 | U81: 0.1553923463 | V81: 0.1683417085 | W81: 0.1812910707 | X81: 0.1942404329 | Y81: 0.2071897951
C82: 77 | D82: 0.08037 | E82: 0.0746351719 | F82: 1 | G82: 0.0746351719 | I82: 107 | J82: 0.3670212766 | L82: 74 | M82: 0.05686913983 | N82: =$G79*N$5 -> 0.07108642479 | O82: 0.08530370974 | P82: 0.0995209947 | Q82: 0.1137382797 | R82: 0.1279555646 | S82: 0.1421728496 | T82: 0.1563901345 | U82: 0.1706074195 | V82: 0.1848247044 | W82: 0.1990419894 | X82: 0.2132592744 | Y82: 0.2274765593
C83: 78 | D83: 0.08732 | E83: 0.08145673238 | F83: 1 | G83: 0.08145673238 | I83: 108 | J83: 0.3670212766 | L83: 75 | M83: 0.06229738491 | N83: =$G80*N$5 -> 0.07787173114 | O83: 0.09344607737 | P83: 0.1090204236 | Q83: 0.1245947698 | R83: 0.1401691161 | S83: 0.1557434623 | T83: 0.1713178085 | U83: 0.1868921547 | V83: 0.202466501 | W83: 0.2180408472 | X83: 0.2336151934 | Y83: 0.2491895397
C84: 79 | D84: 0.09476 | E84: 0.08897133712 | F84: 1 | G84: 0.08897133712 | I84: 109 | J84: 0.3670212766 | L84: 76 | M84: 0.06816479401 | N84: =$G81*N$5 -> 0.08520599251 | O84: 0.102247191 | P84: 0.1192883895 | Q84: 0.136329588 | R84: 0.1533707865 | S84: 0.170411985 | T84: 0.1874531835 | U84: 0.204494382 | V84: 0.2215355805 | W84: 0.238576779 | X84: 0.2556179775 | Y84: 0.272659176
C85: 80 | D85: 0.10294 | E85: 0.09702148048 | F85: 1 | G85: 0.09702148048 | I85: 110 | J85: 0.3670212766 | L85: 77 | M85: 0.0746351719 | N85: =$G82*N$5 -> 0.09329396488 | O85: 0.1119527579 | P85: 0.1306115508 | Q85: 0.1492703438 | R85: 0.1679291368 | S85: 0.1865879298 | T85: 0.2052467227 | U85: 0.2239055157 | V85: 0.2425643087 | W85: 0.2612231017 | X85: 0.2798818946 | Y85: 0.2985406876
C86: 81 | D86: 0.11209 | E86: 0.1057658295 | F86: 1 | G86: 0.1057658295 | I86: 111 | J86: 0.3670212766 | L86: 78 | M86: 0.08145673238 | N86: =$G83*N$5 -> 0.1018209155 | O86: 0.1221850986 | P86: 0.1425492817 | Q86: 0.1629134648 | R86: 0.1832776478 | S86: 0.2036418309 | T86: 0.224006014 | U86: 0.2443701971 | V86: 0.2647343802 | W86: 0.2850985633 | X86: 0.3054627464 | Y86: 0.3258269295
C87: 82 | D87: 0.12241 | E87: 0.1150118671 | F87: 1 | G87: 0.1150118671 | I87: 112 | J87: 0.3670212766 | L87: 79 | M87: 0.08897133712 | N87: =$G84*N$5 -> 0.1112141714 | O87: 0.1334570057 | P87: 0.15569984 | Q87: 0.1779426742 | R87: 0.2001855085 | S87: 0.2224283428 | T87: 0.2446711771 | U87: 0.2669140113 | V87: 0.2891568456 | W87: 0.3113996799 | X87: 0.3336425142 | Y87: 0.3558853485
C88: 83 | D88: 0.13384 | E88: 0.1250419041 | F88: 1 | G88: 0.1250419041 | I88: 113 | J88: 0.3670212766 | L88: 80 | M88: 0.09702148048 | N88: =$G85*N$5 -> 0.1212768506 | O88: 0.1455322207 | P88: 0.1697875908 | Q88: 0.194042961 | R88: 0.2182983311 | S88: 0.2425537012 | T88: 0.2668090713 | U88: 0.2910644414 | V88: 0.3153198115 | W88: 0.3395751817 | X88: 0.3638305518 | Y88: 0.3880859219
C89: 84 | D89: 0.14612 | E89: 0.1357598978 | F89: 1 | G89: 0.1357598978 | I89: 114 | J89: 0.3670212766 | L89: 81 | M89: 0.1057658295 | N89: =$G86*N$5 -> 0.1322072869 | O89: 0.1586487443 | P89: 0.1850902016 | Q89: 0.211531659 | R89: 0.2379731164 | S89: 0.2644145738 | T89: 0.2908560311 | U89: 0.3172974885 | V89: 0.3437389459 | W89: 0.3701804033 | X89: 0.3966218606 | Y89: 0.423063318
C90: 85 | D90: 0.15898 | E90: 0.1473326437 | F90: 1 | G90: 0.1473326437 | I90: 115 | J90: 0.3670212766 | L90: 82 | M90: 0.1150118671 | N90: =$G87*N$5 -> 0.1437648339 | O90: 0.1725178006 | P90: 0.2012707674 | Q90: 0.2300237342 | R90: 0.2587767009 | S90: 0.2875296677 | T90: 0.3162826345 | U90: 0.3450356013 | V90: 0.373788568 | W90: 0.4025415348 | X90: 0.4312945016 | Y90: 0.4600474684
C91: 86 | D91: 0.17221 | E91: 0.1594454073 | F91: 1 | G91: 0.1594454073 | I91: 116 | J91: 0.3670212766 | L91: 83 | M91: 0.1250419041 | N91: =$G88*N$5 -> 0.1563023802 | O91: 0.1875628562 | P91: 0.2188233322 | Q91: 0.2500838082 | R91: 0.2813442843 | S91: 0.3126047603 | T91: 0.3438652363 | U91: 0.3751257124 | V91: 0.4063861884 | W91: 0.4376466644 | X91: 0.4689071405 | Y91: 0.5001676165
C92: 87 | D92: 0.18573 | E92: 0.1725773196 | F92: 1 | G92: 0.1725773196 | I92: 117 | J92: 0.3670212766 | L92: 84 | M92: 0.1357598978 | N92: =$G89*N$5 -> 0.1696998723 | O92: 0.2036398467 | P92: 0.2375798212 | Q92: 0.2715197957 | R92: 0.3054597701 | S92: 0.3393997446 | T92: 0.373339719 | U92: 0.4072796935 | V92: 0.4412196679 | W92: 0.4751596424 | X92: 0.5090996169 | Y92: 0.5430395913
C93: 88 | D93: 0.19953 | E93: 0.1863942188 | F93: 1 | G93: 0.1863942188 | I93: 118 | J93: 0.3670212766 | L93: 85 | M93: 0.1473326437 | N93: =$G90*N$5 -> 0.1841658046 | O93: 0.2209989656 | P93: 0.2578321265 | Q93: 0.2946652874 | R93: 0.3314984484 | S93: 0.3683316093 | T93: 0.4051647702 | U93: 0.4419979311 | V93: 0.4788310921 | W93: 0.515664253 | X93: 0.5524974139 | Y93: 0.5893305748
C94: 89 | D94: 0.21369 | E94: 0.2009188361 | F94: 1 | G94: 0.2009188361 | I94: 119 | J94: 0.3670212766 | L94: 86 | M94: 0.1594454073 | N94: =$G91*N$5 -> 0.1993067591 | O94: 0.2391681109 | P94: 0.2790294627 | Q94: 0.3188908146 | R94: 0.3587521664 | S94: 0.3986135182 | T94: 0.43847487 | U94: 0.4783362218 | V94: 0.5181975737 | W94: 0.5580589255 | X94: 0.5979202773 | Y94: 0.6377816291
C95: 90 | D95: 0.22843 | E95: 0.2165580682 | F95: 1 | G95: 0.2165580682 | I95: 120 | J95: 0.3670212766 | L95: 87 | M95: 0.1725773196 | N95: =$G92*N$5 -> 0.2157216495 | O95: 0.2588659794 | P95: 0.3020103093 | Q95: 0.3451546392 | R95: 0.3882989691 | S95: 0.431443299 | T95: 0.4745876289 | U95: 0.5177319588 | V95: 0.5608762887 | W95: 0.6040206186 | X95: 0.6471649485 | Y95: 0.6903092784
C96: 91 | D96: 0.24411 | E96: 0.2328767123 | F96: 1 | G96: 0.2328767123 | I96: 121 | J96: 0.3670212766 | L96: 88 | M96: 0.1863942188 | N96: =$G93*N$5 -> 0.2329927735 | O96: 0.2795913282 | P96: 0.3261898829 | Q96: 0.3727884376 | R96: 0.4193869923 | S96: 0.465985547 | T96: 0.5125841017 | U96: 0.5591826564 | V96: 0.6057812111 | W96: 0.6523797658 | X96: 0.6989783205 | Y96: 0.7455768752
C97: 92 | D97: 0.26143 | E97: 0.25 | F97: 1 | G97: 0.25 | I97: 122 | J97: 0.3670212766 | L97: 89 | M97: 0.2009188361 | N97: =$G94*N$5 -> 0.2511485452 | O97: 0.3013782542 | P97: 0.3516079632 | Q97: 0.4018376723 | R97: 0.4520673813 | S97: 0.5022970904 | T97: 0.5525267994 | U97: 0.6027565084 | V97: 0.6529862175 | W97: 0.7032159265 | X97: 0.7534456355 | Y97: 0.8036753446
C98: 93 | D98: 0.28213 | E98: 0.2678571429 | F98: 1 | G98: 0.2678571429 | I98: 123 | J98: 0.3670212766 | L98: 90 | M98: 0.2165580682 | N98: =$G95*N$5 -> 0.2706975853 | O98: 0.3248371023 | P98: 0.3789766194 | Q98: 0.4331161365 | R98: 0.4872556535 | S98: 0.5413951706 | T98: 0.5955346876 | U98: 0.6496742047 | V98: 0.7038137217 | W98: 0.7579532388 | X98: 0.8120927558 | Y98: 0.8662322729
C99: 94 | D99: 0.30997 | E99: 0.2868757259 | F99: 1 | G99: 0.2868757259 | I99: 124 | J99: 0.3670212766 | L99: 91 | M99: 0.2328767123 | N99: =$G96*N$5 -> 0.2910958904 | O99: 0.3493150685 | P99: 0.4075342466 | Q99: 0.4657534247 | R99: 0.5239726027 | S99: 0.5821917808 | T99: 0.6404109589 | U99: 0.698630137 | V99: 0.7568493151 | W99: 0.8150684932 | X99: 0.8732876712 | Y99: 0.9315068493
C100: 95 | D100: 0.35186 | E100: 0.3061889251 | F100: 1 | G100: 0.3061889251 | I100: 125 | J100: 0.3670212766 | L100: 92 | M100: 0.25 | N100: =$G97*N$5 -> 0.3125 | O100: 0.375 | P100: 0.4375 | Q100: 0.5 | R100: 0.5625 | S100: 0.625 | T100: 0.6875 | U100: 0.75 | V100: 0.8125 | W100: 0.875 | X100: 0.9375 | Y100: 1
C101: 96 | D101: 0.42099 | E101: 0.3262910798 | F101: 1 | G101: 0.3262910798 | I101: 126 | J101: =VLOOKUP(I101,Multiplier_CSO_1980_qx,5) -> 0.3670212766 | L101: 93 | M101: 0.2678571429 | N101: =$G98*N$5 -> 0.3348214286 | O101: 0.4017857143 | P101: 0.46875 | Q101: 0.5357142857 | R101: 0.6026785714 | S101: 0.6696428571 | T101: 0.7366071429 | U101: 0.8035714286 | V101: 0.8705357143 | W101: 0.9375 | X101: 1.004464286 | Y101: 1.071428571
C102: 97 | D102: 0.541 | E102: 0.3449477352 | F102: 1 | G102: 0.3449477352 | I102: 127 | J102: 0.3670212766 | L102: 94 | M102: 0.2868757259 | N102: =$G99*N$5 -> 0.3585946574 | O102: 0.4303135889 | P102: 0.5020325203 | Q102: 0.5737514518 | R102: 0.6454703833 | S102: 0.7171893148 | T102: 0.7889082462 | U102: 0.8606271777 | V102: 0.9323461092 | W102: 1.004065041 | X102: 1.075783972 | Y102: 1.147502904
C103: 98 | D103: 0.74514 | E103: 0.3670212766 | F103: 1 | G103: 0.3670212766 | I103: 128 | J103: 0.3670212766 | L103: 95 | M103: 0.3061889251 | N103: =$G100*N$5 -> 0.3827361564 | O103: 0.4592833876 | P103: 0.5358306189 | Q103: 0.6123778502 | R103: 0.6889250814 | S103: 0.7654723127 | T103: 0.842019544 | U103: 0.9185667752 | V103: 0.9951140065 | W103: 1.071661238 | X103: 1.148208469 | Y103: 1.2247557
C104: 99 | D104: 1 | E104: 0.3949579832 | F104: 1 | G104: 0.3949579832 | I104: 129 | J104: 0.3670212766 | L104: 96 | M104: 0.3262910798 | N104: =$G101*N$5 -> 0.4078638498 | O104: 0.4894366197 | P104: 0.5710093897 | Q104: 0.6525821596 | R104: 0.7341549296 | S104: 0.8157276995 | T104: 0.8973004695 | U104: 0.9788732394 | V104: 1.060446009 | W104: 1.142018779 | X104: 1.223591549 | Y104: 1.305164319
E105: 0.4027777778 | L105: 97 | M105: 0.3449477352 | N105: =$G102*N$5 -> 0.431184669 | O105: 0.5174216028 | P105: 0.6036585366 | Q105: 0.6898954704 | R105: 0.7761324042 | S105: 0.862369338 | T105: 0.9486062718 | U105: 1.034843206 | V105: 1.121080139 | W105: 1.207317073 | X105: 1.293554007 | Y105: 1.379790941
E106: 0.4418604651 | L106: 98 | M106: 0.3670212766 | N106: =$G103*N$5 -> 0.4587765957 | O106: 0.5505319149 | P106: 0.642287234 | Q106: 0.7340425532 | R106: 0.8257978723 | S106: 0.9175531915 | T106: 1.009308511 | U106: 1.10106383 | V106: 1.192819149 | W106: 1.284574468 | X106: 1.376329787 | Y106: 1.468085106
E107: 0.4583333333 | L107: 99 | M107: 0.3949579832 | N107: =$G104*N$5 -> 0.493697479 | O107: 0.5924369748 | P107: 0.6911764706 | Q107: 0.7899159664 | R107: 0.8886554622 | S107: 0.987394958 | T107: 1.086134454 | U107: 1.18487395 | V107: 1.283613445 | W107: 1.382352941 | X107: 1.481092437 | Y107: 1.579831933
E108: 0.4615384615
E109: 0.5714285714
E110: 0.3333333333
E111: 0.5
E112: 1
E113: 1

Sheet Illustration
AF2: Standard 100%
AB3: EGP | AC3: A | AD3: 7 | AE3: Annually | AF3: 1.25
A4: Life Insured Age | B4: 30 | M4: Annual Increase in TFA | O4: 0.03 | AA4: 16.09 | AB4: USD | AC4: B | AD4: =+AD3+1 -> 8 | AE4: Semi-Annually | AF4: =AF3+25% -> 1.5
A5: Currency | B5: USD | M5: Max TFA Multiple | O5: 1.5 | AA5: 5696 | AB5: GP
A6: ="Takaful Face Amount "& Currency -> Takaful Face Amount USD | B6: 1000
A7: Equivalent Takaful Face Amount in EGP | B7: 1000
A8: Death Benefit Option | B8: A | L8: =+L17-L9 -> 0.05617519011
A9: Contribution Paying Years | B9: 10 | L9: 0.99452726 | N9: =+MIN(Max_TFA_Multiple*M17,M17*(1+Annual_Increase_in_TFA)^(E17-1)) -> 1000
A10: Mode Of Payment | B10: Annually | I10: =+I11-I17 -> -0.1312066502
A11: Annual Indexation in Target contribution | B11: 0 | I11: 2.439669943 | U11: =COUNTIFS(U29:U820,"<0",E29:E820,"<="&Contribution_Paying_Years) -> 0
A12: Policy Breakeven Year at which contribution stops | B12: 10 | E12: 1 | F12: =+E12+1 -> 2 | G12: =+F12+1 -> 3 | H12: 4 | I12: 5 | J12: 6 | K12: =+J12+1 -> 7 | L12: =+K12+1 -> 8 | M12: 9 | N12: 10 | O12: =+N12+1 -> 11 | P12: 12 | Q12: =+P12+1 -> 13 | R12: =+Q12+1 -> 14 | S12: 15 | T12: 16 | U12: 17 | V12: 18 | AF12: =#REF!+25% -> 
A13: Breakeven amount as % from Total paid Contributions | B13: 0.5 | D13: Age | N13: Indexed Face Amount | O13: Net Amount at Risk | P13: qx | Q13: COI | R13: Asset (2) | S13: Credited Net Investement Return Rate | T13: Credited Net Investment Return | U13: PIA | V13: PIA %
A14: Annual Target Cont. | B14: 3.672680848 | H14: Cumulative Target Cont. | I14: Wakallah Fees | J14: Monthly Admin and | K14: Monthly Per Unit Charge | L14: Asset (1) | M14: Face Amount
E15: Policy Year | F15: Month | G15: Annual Cont. | J15: Fund Management Fees | K15: UW Fees (Per Mille) | AD15: =+AD14+1 -> 1 | AF15: =AF14+25% -> 0.25
A17: PIA @ Breakeven Year | B17: =+VLOOKUP(Contribution_Paying_Years,E17:V1380,17) -> 18.36340424 | D17: =Age+E17-1 -> 30 | E17: =ROUNDUP(F17/12,0) -> 1 | F17: 1 | G17: =+IF(E17>Contribution_Paying_Years,0,$B$14) -> 3.672680848 | H17: =IFERROR(SUM(G17:$G$17),"") -> 3.672680848 | I17: =IFERROR(VLOOKUP(E17,Parameters,6,FALSE)*G17,0) -> 2.570876594 | J17: =+MAX(((VLOOKUP(E17,Parameters,8)*(G17-I17))/1),0) -> 0.001101804254 | K17: =IFERROR(VLOOKUP(E17,Parameters,9,FALSE)*Equivalent_Takaful_Face_Amount_in_EGP/1000,K16) -> 0.05 | L17: =+G17-I17-J17-K17 -> 1.05070245 | M17: =+Equivalent_Takaful_Face_Amount_in_EGP -> 1000 | N17: =+IF(Currency="EGP",M17,MIN(Max_TFA_Multiple*M17,M17*(1+Annual_Increase_in_TFA)^(E17-1))) -> 1000 | O17: =IF(Death_Benefit_Option="B",N17,MAX(0,N17-L17)) -> 998.9492975 | P17: =+VLOOKUP(D17,COI_Rates,2,0) -> 0.001 | Q17: =+O17*P17/12 -> 0.0832457748 | R17: =+L17-Q17 -> 0.9674566753 | S17: 0.09 | T17: =MAX(0,(R17*(1+S17)^(1/12)-R17)) -> 0.006972773053 | U17: =+T17+R17 -> 0.9744294484 | V17: =+U17/H17 -> 0.2653183026 | AD17: =+AD15+1 -> 2 | AF17: =AF15+25% -> 0.5
A18: Total Paid Contributions at Breakeven Year | B18: =+VLOOKUP(Contribution_Paying_Years,E17:V1380,4) -> 36.72680848 | D18: 30 | E18: =ROUNDUP(F18/12,0) -> 1 | F18: =+F17+1 -> 2 | G18: 0 | H18: =IFERROR(SUM(G$17:$G18),"") -> 3.672680848 | I18: 0 | J18: =+MAX(((VLOOKUP(E18,Parameters,8)*U17)/1),0) -> 0.0009744294484 | K18: 0.05 | L18: =+G18+U17-I18-J18-K18 -> 0.9234550189 | M18: 1000 | N18: 1000 | O18: 999.076545 | P18: 0.001 | Q18: 0.08325637875 | R18: 0.8401986402 | S18: 0.09 | T18: =MAX(0,(R18*(1+S18)^(1/12)-R18)) -> 0.00605558325 | U18: =+T18+R18 -> 0.8462542234 | V18: 0.2304186665 | AD18: 3 | AF18: =AF17+25% -> 0.75
A19: ="Amount to goalseek at breakeven year "&B13*100&" % of cont" -> Amount to goalseek at breakeven year 50 % of cont | B19: =B18*B13 -> 18.36340424 | D19: 30 | E19: 1 | F19: =+F18+1 -> 3 | G19: 0 | H19: =IFERROR(SUM(G$17:$G19),"") -> 3.672680848 | I19: 0 | J19: 0.0008462542234 | K19: 0.05 | L19: 0.7954079692 | M19: 1000 | N19: 1000 | O19: 999.204592 | P19: 0.001 | Q19: 0.08326704934 | R19: 0.7121409199 | S19: 0.09 | T19: 0.005132629856 | U19: 0.7172735497 | V19: 0.1952997223 | AD19: 4 | AF19: =AF18+25% -> 1
A20: Difference to be zeroized | B20: =B19-B17 -> -5.329070518e-14 | D20: 30 | E20: 1 | F20: 4 | G20: 0 | H20: =IFERROR(SUM(G$17:$G20),"") -> 3.672680848 | I20: 0 | J20: 0.0007172735497 | K20: 0.05 | L20: 0.6665562762 | M20: 1000 | N20: 1000 | O20: 999.3334437 | P20: 0.001 | Q20: 0.08327778698 | R20: 0.5832784892 | S20: 0.09 | T20: 0.004203876655 | U20: 0.5874823659 | V20: 0.1599600919 | AD20: 5 | AF20: =AF19+25% -> 1.25
A21: # of -ve PIA months | B21: =+U11 -> 0 | D21: 30 | E21: 1 | F21: 5 | G21: 0 | H21: =IFERROR(SUM(G$17:$G21),"") -> 3.672680848 | I21: 0 | J21: 0.0005874823659 | K21: 0.05 | L21: 0.5368948835 | M21: 1000 | N21: 1000 | O21: 999.4631051 | P21: 0.001 | Q21: 0.08328859209 | R21: 0.4536062914 | S21: 0.09 | T21: 0.0032692872 | U21: 0.4568755786 | V21: 0.1243983884 | AD21: 6
B22: =B18<B17 -> FALSE | D22: 30 | E22: 1 | F22: 6 | G22: 0 | H22: =IFERROR(SUM(G$17:$G22),"") -> 3.672680848 | I22: 0 | J22: 0.0004568755786 | K22: 0.05 | L22: 0.406418703 | M22: 1000 | N22: 1000 | O22: 999.5935813 | P22: 0.001 | Q22: 0.08329946511 | R22: 0.3231192379 | S22: 0.09 | T22: 0.002328824817 | U22: 0.3254480627 | V22: 0.0886132164 | AD22: 7
B23: =+VLOOKUP(Contribution_Paying_Years,E17:V1380,18) -> 0.5 | D23: 30 | E23: 1 | F23: 7 | G23: 0 | H23: =IFERROR(SUM(G$17:$G23),"") -> 3.672680848 | I23: 0 | J23: 0.0003254480627 | K23: 0.05 | L23: 0.2751226147 | M23: 1000 | N23: 1000 | O23: 999.7248774 | P23: 0.001 | Q23: 0.08331040645 | R23: 0.1918122082 | S23: 0.09 | T23: 0.001382452601 | U23: 0.1931946608 | V23: 0.05260317159 | AD23: 8
D24: 30 | E24: 1 | F24: 8 | G24: 0 | H24: =IFERROR(SUM(G$17:$G24),"") -> 3.672680848 | I24: 0 | J24: 0.0001931946608 | K24: 0.05 | L24: 0.1430014662 | M24: 1000 | N24: 1000 | O24: 999.8569985 | P24: 0.001 | Q24: 0.08332141654 | R24: 0.05968004962 | S24: 0.09 | T24: 0.0004301334131 | U24: 0.06011018303 | V24: 0.01636684088 | AD24: 9
D25: 30 | E25: 1 | F25: 9 | G25: 0 | H25: =IFERROR(SUM(G$17:$G25),"") -> 3.672680848 | I25: 0 | J25: 6.011018303e-05 | K25: 0.05 | L25: 0.01005007285 | M25: 1000 | N25: 1000 | O25: 999.9899499 | P25: 0.001 | Q25: 0.08333249583 | R25: -0.07328242298 | S25: 0.09 | T25: 0 | U25: -0.07328242298 | V25: -0.01995338719 | AD25: 10
D26: 30 | E26: 1 | F26: 10 | G26: 0 | H26: =IFERROR(SUM(G$17:$G26),"") -> 3.672680848 | I26: 0 | J26: 0 | K26: 0.05 | L26: -0.123282423 | M26: 1000 | N26: 1000 | O26: 1000.123282 | P26: 0.001 | Q26: 0.08334360687 | R26: -0.2066260298 | S26: 0.09 | T26: 0 | U26: -0.2066260298 | V26: -0.05626027373 | AD26: 11
D27: 30 | E27: 1 | F27: 11 | G27: 0 | H27: =IFERROR(SUM(G$17:$G27),"") -> 3.672680848 | I27: 0 | J27: 0 | K27: 0.05 | L27: -0.2566260298 | M27: 1000 | N27: 1000 | O27: 1000.256626 | P27: 0.001 | Q27: 0.08335471884 | R27: -0.3399807487 | S27: 0.09 | T27: 0 | U27: -0.3399807487 | V27: -0.09257018586 | AD27: 12
D28: 30 | E28: 1 | F28: 12 | G28: 0 | H28: =IFERROR(SUM(G$17:$G28),"") -> 3.672680848 | I28: 0 | J28: 0 | K28: 0.05 | L28: -0.3899807487 | M28: 1000 | N28: 1000 | O28: 1000.389981 | P28: 0.001 | Q28: 0.08336583173 | R28: -0.4733465804 | S28: 0.09 | T28: 0 | U28: -0.4733465804 | V28: -0.1288831238 | AD28: 13
D29: 31 | E29: 2 | F29: 13 | G29: =+IF(E29>Contribution_Paying_Years,0,$B$14) -> 3.672680848 | H29: =IFERROR(SUM(G$17:$G29),"") -> 7.345361696 | I29: 1.469072339 | J29: 0 | K29: 0.05 | L29: 1.680261928 | M29: 1000 | N29: 1030 | O29: 1028.319738 | P29: 0.001 | Q29: 0.08569331151 | R29: 1.594568617 | S29: 0.09 | T29: 0.01149257157 | U29: 1.606061188 | V29: 0.2186497078 | AD29: 14
D30: 31 | E30: 2 | F30: 14 | G30: 0 | H30: =IFERROR(SUM(G$17:$G30),"") -> 7.345361696 | I30: 0 | J30: 0.001606061188 | K30: 0.05 | L30: 1.554455127 | M30: 1000 | N30: 1030 | O30: 1028.445545 | P30: 0.001 | Q30: 0.08570379541 | R30: 1.468751332 | S30: 0.09 | T30: 0.01058576572 | U30: 1.479337098 | V30: 0.2013974476 | AD30: 15
D31: 31 | E31: 2 | F31: 15 | G31: 0 | H31: =IFERROR(SUM(G$17:$G31),"") -> 7.345361696 | I31: 0 | J31: 0.001479337098 | K31: 0.05 | L31: 1.42785776 | M31: 1000 | N31: 1030 | O31: 1028.572142 | P31: 0.001 | Q31: 0.08571434519 | R31: 1.342143415 | S31: 0.09 | T31: 0.00967326153 | U31: 1.351816677 | V31: 0.1840367749 | AD31: 16
D32: 31 | E32: 2 | F32: 16 | G32: 0 | H32: =IFERROR(SUM(G$17:$G32),"") -> 7.345361696 | I32: 0 | J32: 0.001351816677 | K32: 0.05 | L32: 1.30046486 | M32: 1000 | N32: 1030 | O32: 1028.699535 | P32: 0.001 | Q32: 0.08572496126 | R32: 1.214739899 | S32: 0.09 | T32: 0.008755023196 | U32: 1.223494922 | V32: 0.1665670082 | AD32: 17
D33: 31 | E33: 2 | F33: 17 | G33: 0 | H33: =IFERROR(SUM(G$17:$G33),"") -> 7.345361696 | I33: 0 | J33: 0.001223494922 | K33: 0.05 | L33: 1.172271427 | M33: 1000 | N33: 1030 | O33: 1028.827729 | P33: 0.001 | Q33: 0.08573564405 | R33: 1.086535783 | S33: 0.09 | T33: 0.007831014683 | U33: 1.094366798 | V33: 0.1489874622 | AD33: 18
D34: 31 | E34: 2 | F34: 18 | G34: 0 | H34: =IFERROR(SUM(G$17:$G34),"") -> 7.345361696 | I34: 0 | J34: 0.001094366798 | K34: 0.05 | L34: 1.043272431 | M34: 1000 | N34: 1030 | O34: 1028.956728 | P34: 0.001 | Q34: 0.08574639396 | R34: 0.957526037 | S34: 0.09 | T34: 0.006901199732 | U34: 0.9644272367 | V34: 0.1312974468 | AD34: 19
D35: 31 | E35: 2 | F35: 19 | G35: 0 | H35: =IFERROR(SUM(G$17:$G35),"") -> 7.345361696 | I35: 0 | J35: 0.0009644272367 | K35: 0.05 | L35: 0.9134628095 | M35: 1000 | N35: 1030 | O35: 1029.086537 | P35: 0.001 | Q35: 0.08575721143 | R35: 0.8277055981 | S35: 0.09 | T35: 0.005965541856 | U35: 0.8336711399 | V35: 0.113496268 | AD35: 20
D36: 31 | E36: 2 | F36: 20 | G36: 0 | H36: =IFERROR(SUM(G$17:$G36),"") -> 7.345361696 | I36: 0 | J36: 0.0008336711399 | K36: 0.05 | L36: 0.7828374688 | M36: 1000 | N36: 1030 | O36: 1029.217163 | P36: 0.001 | Q36: 0.08576809688 | R36: 0.6970693719 | S36: 0.09 | T36: 0.005024004337 | U36: 0.7020933762 | V36: 0.09558322725 | AD36: 21
D37: 31 | E37: 2 | F37: 21 | G37: 0 | H37: =IFERROR(SUM(G$17:$G37),"") -> 7.345361696 | I37: 0 | J37: 0.0007020933762 | K37: 0.05 | L37: 0.6513912829 | M37: 1000 | N37: 1030 | O37: 1029.348609 | P37: 0.001 | Q37: 0.08577905073 | R37: 0.5656122321 | S37: 0.09 | T37: 0.004076550229 | U37: 0.5696887824 | V37: 0.07755762152 | AD37: 22
D38: 31 | E38: 2 | F38: 22 | G38: 0 | H38: =IFERROR(SUM(G$17:$G38),"") -> 7.345361696 | I38: 0 | J38: 0.0005696887824 | K38: 0.05 | L38: 0.5191190936 | M38: 1000 | N38: 1030 | O38: 1029.480881 | P38: 0.001 | Q38: 0.08579007341 | R38: 0.4333290202 | S38: 0.09 | T38: 0.003123142351 | U38: 0.4364521625 | V38: 0.0594187435 | AD38: 23
D39: 31 | E39: 2 | F39: 23 | G39: 0 | H39: =IFERROR(SUM(G$17:$G39),"") -> 7.345361696 | I39: 0 | J39: 0.0004364521625 | K39: 0.05 | L39: 0.3860157104 | M39: 1000 | N39: 1030 | O39: 1029.613984 | P39: 0.001 | Q39: 0.08580116536 | R39: 0.300214545 | S39: 0.09 | T39: 0.00216374329 | U39: 0.3023782883 | V39: 0.04116588138 | AD39: 24
D40: 31 | E40: 2 | F40: 24 | G40: 0 | H40: =IFERROR(SUM(G$17:$G40),"") -> 7.345361696 | I40: 0 | J40: 0.0003023782883 | K40: 0.05 | L40: 0.25207591 | M40: 1000 | N40: 1030 | O40: 1029.747924 | P40: 0.001 | Q40: 0.08581232701 | R40: 0.166263583 | S40: 0.09 | T40: 0.001198315398 | U40: 0.1674618984 | V40: 0.0227983189 | AD40: 25
D41: 32 | E41: 3 | F41: 25 | G41: =+IF(E41>Contribution_Paying_Years,0,$B$14) -> 3.672680848 | H41: =IFERROR(SUM(G$17:$G41),"") -> 11.01804254 | I41: 0.7345361696 | J41: 0.0001674618984 | K41: 0.05 | L41: 3.055439115 | M41: 1000 | N41: 1060.9 | O41: 1057.844561 | P41: 0.001 | Q41: 0.08815371341 | R41: 2.967285401 | S41: 0.09 | T41: 0.02138618526 | U41: 2.988671587 | V41: 0.2712525001 | AD41: 26
D42: 32 | E42: 3 | F42: 26 | G42: 0 | H42: =IFERROR(SUM(G$17:$G42),"") -> 11.01804254 | I42: 0 | J42: 0.002988671587 | K42: 0.05 | L42: 2.935682915 | M42: 1000 | N42: 1060.9 | O42: 1057.964317 | P42: 0.001 | Q42: 0.08816369309 | R42: 2.847519222 | S42: 0.09 | T42: 0.02052299168 | U42: 2.868042214 | V42: 0.2603041513 | AD42: 27
D43: 32 | E43: 3 | F43: 27 | G43: 0 | H43: =IFERROR(SUM(G$17:$G43),"") -> 11.01804254 | I43: 0 | J43: 0.002868042214 | K43: 0.05 | L43: 2.815174171 | M43: 1000 | N43: 1060.9 | O43: 1058.084826 | P43: 0.001 | Q43: 0.08817373549 | R43: 2.727000436 | S43: 0.09 | T43: 0.01965437383 | U43: 2.74665481 | V43: 0.2492870035 | AD43: 28
D44: 32 | E44: 3 | F44: 28 | G44: 0 | H44: =IFERROR(SUM(G$17:$G44),"") -> 11.01804254 | I44: 0 | J44: 0.00274665481 | K44: 0.05 | L44: 2.693908155 | M44: 1000 | N44: 1060.9 | O44: 1058.206092 | P44: 0.001 | Q44: 0.08818384099 | R44: 2.605724314 | S44: 0.09 | T44: 0.0187802976 | U44: 2.624504612 | V44: 0.2382006242 | AD44: 29
D45: 32 | E45: 3 | F45: 29 | G45: 0 | H45: =IFERROR(SUM(G$17:$G45),"") -> 11.01804254 | I45: 0 | J45: 0.002624504612 | K45: 0.05 | L45: 2.571880107 | M45: 1000 | N45: 1060.9 | O45: 1058.32812 | P45: 0.001 | Q45: 0.08819400999 | R45: 2.483686097 | S45: 0.09 | T45: 0.01790072872 | U45: 2.501586826 | V45: 0.2270445785 | AD45: 30
D46: 32 | E46: 3 | F46: 30 | G46: 0 | H46: =IFERROR(SUM(G$17:$G46),"") -> 11.01804254 | I46: 0 | J46: 0.002501586826 | K46: 0.05 | L46: 2.449085239 | M46: 1000 | N46: 1060.9 | O46: 1058.450915 | P46: 0.001 | Q46: 0.0882042429 | R46: 2.360880996 | S46: 0.09 | T46: 0.01701563265 | U46: 2.377896629 | V46: 0.2158184287 | AD46: 31
D47: 32 | E47: 3 | F47: 31 | G47: 0 | H47: =IFERROR(SUM(G$17:$G47),"") -> 11.01804254 | I47: 0 | J47: 0.002377896629 | K47: 0.05 | L47: 2.325518732 | M47: 1000 | N47: 1060.9 | O47: 1058.574481 | P47: 0.001 | Q47: 0.08821454011 | R47: 2.237304192 | S47: 0.09 | T47: 0.01612497467 | U47: 2.253429167 | V47: 0.204521734 | AD47: 32
D48: 32 | E48: 3 | F48: 32 | G48: 0 | H48: =IFERROR(SUM(G$17:$G48),"") -> 11.01804254 | I48: 0 | J48: 0.002253429167 | K48: 0.05 | L48: 2.201175737 | M48: 1000 | N48: 1060.9 | O48: 1058.698824 | P48: 0.001 | Q48: 0.08822490202 | R48: 2.112950835 | S48: 0.09 | T48: 0.01522871982 | U48: 2.128179555 | V48: 0.1931540513 | AD48: 33
D49: =Age+E49-1 -> 32 | E49: 3 | F49: 33 | G49: 0 | H49: =IFERROR(SUM(G$17:$G49),"") -> 11.01804254 | I49: =IFERROR(VLOOKUP(E49,Parameters,6,FALSE)*G49,0) -> 0 | J49: 0.002128179555 | K49: 0.05 | L49: 2.076051376 | M49: 1000 | N49: 1060.9 | O49: 1058.823949 | P49: 0.001 | Q49: 0.08823532905 | R49: 1.987816047 | S49: 0.09 | T49: 0.01432683294 | U49: 2.00214288 | V49: 0.1817149345 | AD49: 34
D50: 32 | E50: 3 | F50: 34 | G50: 0 | H50: =IFERROR(SUM(G$17:$G50),"") -> 11.01804254 | I50: 0 | J50: 0.00200214288 | K50: 0.05 | L50: 1.950140737 | M50: 1000 | N50: 1060.9 | O50: 1058.949859 | P50: 0.001 | Q50: 0.08824582161 | R50: 1.861894915 | S50: 0.09 | T50: 0.01341927863 | U50: 1.875314194 | V50: 0.1702039347 | AD50: 35
D51: 32 | E51: 3 | F51: 35 | G51: 0 | H51: =IFERROR(SUM(G$17:$G51),"") -> 11.01804254 | I51: 0 | J51: 0.001875314194 | K51: 0.05 | L51: 1.82343888 | M51: 1000 | N51: 1060.9 | O51: 1059.076561 | P51: 0.001 | Q51: 0.08825638009 | R51: 1.735182499 | S51: 0.09 | T51: 0.01250602129 | U51: 1.747688521 | V51: 0.1586206001 | AD51: 36
D52: 32 | E52: 3 | F52: 36 | G52: 0 | H52: =IFERROR(SUM(G$17:$G52),"") -> 11.01804254 | I52: 0 | J52: 0.001747688521 | K52: 0.05 | L52: 1.695940832 | M52: 1000 | N52: 1060.9 | O52: 1059.204059 | P52: 0.001 | Q52: 0.08826700493 | R52: 1.607673827 | S52: 0.09 | T52: 0.01158702506 | U52: 1.619260852 | V52: 0.1469644763 | AD52: 37
D53: 33 | E53: 4 | F53: 37 | G53: =+IF(E53>Contribution_Paying_Years,0,$B$14) -> 3.672680848 | H53: =IFERROR(SUM(G$17:$G53),"") -> 14.69072339 | I53: 0.3672680848 | J53: 0.001619260852 | K53: 0.05 | L53: 4.873054355 | M53: 1000 | N53: 1092.727 | O53: 1087.853946 | P53: 0.001 | Q53: 0.09065449547 | R53: 4.782399859 | S53: 0.09 | T53: 0.03446830201 | U53: 4.816868161 | V53: 0.3278850219 | AD53: 38
D54: 33 | E54: 4 | F54: 38 | G54: 0 | H54: =IFERROR(SUM(G$17:$G54),"") -> 14.69072339 | I54: 0 | J54: 0.004816868161 | K54: 0.05 | L54: 4.762051293 | M54: 1000 | N54: 1092.727 | O54: 1087.964949 | P54: 0.001 | Q54: 0.09066374573 | R54: 4.671387547 | S54: 0.09 | T54: 0.03366820039 | U54: 4.705055748 | V54: 0.3202739322 | AD54: 39
D55: 33 | E55: 4 | F55: 39 | G55: 0 | H55: =IFERROR(SUM(G$17:$G55),"") -> 14.69072339 | I55: 0 | J55: 0.004705055748 | K55: 0.05 | L55: 4.650350692 | M55: 1000 | N55: 1092.727 | O55: 1088.076649 | P55: 0.001 | Q55: 0.09067305411 | R55: 4.559677638 | S55: 0.09 | T55: 0.03286307095 | U55: 4.592540709 | V55: 0.3126150147 | AD55: 40
D56: 33 | E56: 4 | F56: 40 | G56: 0 | H56: =IFERROR(SUM(G$17:$G56),"") -> 14.69072339 | I56: 0 | J56: 0.004592540709 | K56: 0.05 | L56: 4.537948168 | M56: 1000 | N56: 1092.727 | O56: 1088.189052 | P56: 0.001 | Q56: 0.09068242099 | R56: 4.447265747 | S56: 0.09 | T56: 0.03205288211 | U56: 4.479318629 | V56: 0.3049079688 | AD56: 41
D57: 33 | E57: 4 | F57: 41 | G57: 0 | H57: =IFERROR(SUM(G$17:$G57),"") -> 14.69072339 | I57: 0 | J57: 0.004479318629 | K57: 0.05 | L57: 4.424839311 | M57: 1000 | N57: 1092.727 | O57: 1088.302161 | P57: 0.001 | Q57: 0.09069184672 | R57: 4.334147464 | S57: 0.09 | T57: 0.03123760207 | U57: 4.365385066 | V57: 0.2971524921 | AD57: 42
D58: 33 | E58: 4 | F58: 42 | G58: 0 | H58: =IFERROR(SUM(G$17:$G58),"") -> 14.69072339 | I58: 0 | J58: 0.004365385066 | K58: 0.05 | L58: 4.311019681 | M58: 1000 | N58: 1092.727 | O58: 1088.41598 | P58: 0.001 | Q58: 0.09070133169 | R58: 4.220318349 | S58: 0.09 | T58: 0.03041719884 | U58: 4.250735548 | V58: 0.2893482802 | AD58: 43
D59: 33 | E59: 4 | F59: 43 | G59: 0 | H59: =IFERROR(SUM(G$17:$G59),"") -> 14.69072339 | I59: 0 | J59: 0.004250735548 | K59: 0.05 | L59: 4.196484812 | M59: 1000 | N59: 1092.727 | O59: 1088.530515 | P59: 0.001 | Q59: 0.09071087627 | R59: 4.105773936 | S59: 0.09 | T59: 0.02959164022 | U59: 4.135365576 | V59: 0.2814950269 | AD59: 44
D60: 33 | E60: 4 | F60: 44 | G60: 0 | H60: =IFERROR(SUM(G$17:$G60),"") -> 14.69072339 | I60: 0 | J60: 0.004135365576 | K60: 0.05 | L60: 4.081230211 | M60: 1000 | N60: 1092.727 | O60: 1088.64577 | P60: 0.001 | Q60: 0.09072048082 | R60: 3.99050973 | S60: 0.09 | T60: 0.02876089382 | U60: 4.019270624 | V60: 0.2735924241 | AD60: 45
D61: 33 | E61: 4 | F61: 45 | G61: 0 | H61: =IFERROR(SUM(G$17:$G61),"") -> 14.69072339 | I61: 0 | J61: 0.004019270624 | K61: 0.05 | L61: 3.965251353 | M61: 1000 | N61: 1092.727 | O61: 1088.761749 | P61: 0.001 | Q61: 0.09073014572 | R61: 3.874521207 | S61: 0.09 | T61: 0.02792492704 | U61: 3.902446135 | V61: 0.2656401615 | AD61: 46
D62: 33 | E62: 4 | F62: 46 | G62: 0 | H62: =IFERROR(SUM(G$17:$G62),"") -> 14.69072339 | I62: 0 | J62: 0.003902446135 | K62: 0.05 | L62: 3.848543688 | M62: 1000 | N62: 1092.727 | O62: 1088.878456 | P62: 0.001 | Q62: 0.09073987136 | R62: 3.757803817 | S62: 0.09 | T62: 0.02708370707 | U62: 3.784887524 | V62: 0.2576379272 | AD62: 47
D63: 33 | E63: 4 | F63: 47 | G63: 0 | H63: =IFERROR(SUM(G$17:$G63),"") -> 14.69072339 | I63: 0 | J63: 0.003784887524 | K63: 0.05 | L63: 3.731102637 | M63: 1000 | N63: 1092.727 | O63: 1088.995897 | P63: 0.001 | Q63: 0.09074965811 | R63: 3.640352978 | S63: 0.09 | T63: 0.0262372009 | U63: 3.666590179 | V63: 0.2495854072 | AD63: 48
D64: 33 | E64: 4 | F64: 48 | G64: 0 | H64: =IFERROR(SUM(G$17:$G64),"") -> 14.69072339 | I64: 0 | J64: 0.003666590179 | K64: 0.05 | L64: 3.612923589 | M64: 1000 | N64: 1092.727 | O64: 1089.114076 | P64: 0.001 | Q64: 0.09075950637 | R64: 3.522164083 | S64: 0.09 | T64: 0.02538537532 | U64: 3.547549458 | V64: 0.2414822854 | AD64: 49
D65: 34 | E65: 5 | F65: 49 | G65: =+IF(E65>Contribution_Paying_Years,0,$B$14) -> 3.672680848 | H65: =IFERROR(SUM(G$17:$G65),"") -> 18.36340424 | I65: 0.3672680848 | J65: 0.003547549458 | K65: 0.05 | L65: 6.799414672 | M65: 1000 | N65: 1125.50881 | O65: 1118.709395 | P65: 0.001 | Q65: 0.09322578294 | R65: 6.706188889 | S65: 0.09 | T65: 0.04833367154 | U65: 6.75452256 | V65: 0.3678251849 | AD65: 50
D66: 34 | E66: 5 | F66: 50 | G66: 0 | H66: =IFERROR(SUM(G$17:$G66),"") -> 18.36340424 | I66: 0 | J66: 0.00675452256 | K66: 0.05 | L66: 6.697768038 | M66: 1000 | N66: 1125.50881 | O66: 1118.811042 | P66: 0.001 | Q66: 0.0932342535 | R66: 6.604533784 | S66: 0.09 | T66: 0.04760101034 | U66: 6.652134795 | V66: 0.3622495431 | AD66: 51
D67: 34 | E67: 5 | F67: 51 | G67: 0 | H67: =IFERROR(SUM(G$17:$G67),"") -> 18.36340424 | I67: 0 | J67: 0.006652134795 | K67: 0.05 | L67: 6.59548266 | M67: 1000 | N67: 1125.50881 | O67: 1118.913327 | P67: 0.001 | Q67: 0.09324277728 | R67: 6.502239883 | S67: 0.09 | T67: 0.04686374511 | U67: 6.549103628 | V67: 0.356638864 | AD67: 52
D68: 34 | E68: 5 | F68: 52 | G68: 0 | H68: =IFERROR(SUM(G$17:$G68),"") -> 18.36340424 | I68: 0 | J68: 0.006549103628 | K68: 0.05 | L68: 6.492554524 | M68: 1000 | N68: 1125.50881 | O68: 1119.016255 | P68: 0.001 | Q68: 0.09325135462 | R68: 6.399303169 | S68: 0.09 | T68: 0.04612184694 | U68: 6.445425016 | V68: 0.3509929277 | AD68: 53
D69: 34 | E69: 5 | F69: 53 | G69: 0 | H69: =IFERROR(SUM(G$17:$G69),"") -> 18.36340424 | I69: 0 | J69: 0.006445425016 | K69: 0.05 | L69: 6.388979591 | M69: 1000 | N69: 1125.50881 | O69: 1119.11983 | P69: 0.001 | Q69: 0.09325998587 | R69: 6.295719606 | S69: 0.09 | T69: 0.0453752867 | U69: 6.341094892 | V69: 0.3453115125 | AD69: 54
D70: 34 | E70: 5 | F70: 54 | G70: 0 | H70: =IFERROR(SUM(G$17:$G70),"") -> 18.36340424 | I70: 0 | J70: 0.006341094892 | K70: 0.05 | L70: 6.284753797 | M70: 1000 | N70: 1125.50881 | O70: 1119.224056 | P70: 0.001 | Q70: 0.09326867135 | R70: 6.191485126 | S70: 0.09 | T70: 0.04462403511 | U70: 6.236109161 | V70: 0.3395943954 | AD70: 55
D71: 34 | E71: 5 | F71: 55 | G71: 0 | H71: =IFERROR(SUM(G$17:$G71),"") -> 18.36340424 | I71: 0 | J71: 0.006236109161 | K71: 0.05 | L71: 6.179873052 | M71: 1000 | N71: 1125.50881 | O71: 1119.328937 | P71: 0.001 | Q71: 0.09327741141 | R71: 6.086595641 | S71: 0.09 | T71: 0.04386806268 | U71: 6.130463703 | V71: 0.3338413522 | AD71: 56
D72: 34 | E72: 5 | F72: 56 | G72: 0 | H72: =IFERROR(SUM(G$17:$G72),"") -> 18.36340424 | I72: 0 | J72: 0.006130463703 | K72: 0.05 | L72: 6.07433324 | M72: 1000 | N72: 1125.50881 | O72: 1119.434477 | P72: 0.001 | Q72: 0.0932862064 | R72: 5.981047033 | S72: 0.09 | T72: 0.04310733974 | U72: 6.024154373 | V72: 0.3280521571 | AD72: 57
D73: 34 | E73: 5 | F73: 57 | G73: 0 | H73: =IFERROR(SUM(G$17:$G73),"") -> 18.36340424 | I73: 0 | J73: 0.006024154373 | K73: 0.05 | L73: 5.968130218 | M73: 1000 | N73: 1125.50881 | O73: 1119.54068 | P73: 0.001 | Q73: 0.09329505665 | R73: 5.874835162 | S73: 0.09 | T73: 0.04234183644 | U73: 5.917176998 | V73: 0.3222265829 | AD73: 58
D74: 34 | E74: 5 | F74: 58 | G74: 0 | H74: =IFERROR(SUM(G$17:$G74),"") -> 18.36340424 | I74: 0 | J74: 0.005917176998 | K74: 0.05 | L74: 5.861259821 | M74: 1000 | N74: 1125.50881 | O74: 1119.64755 | P74: 0.001 | Q74: 0.09330396251 | R74: 5.767955859 | S74: 0.09 | T74: 0.04157152275 | U74: 5.809527382 | V74: 0.3163644009 | AD74: 59
D75: 34 | E75: 5 | F75: 59 | G75: 0 | H75: =IFERROR(SUM(G$17:$G75),"") -> 18.36340424 | I75: 0 | J75: 0.005809527382 | K75: 0.05 | L75: 5.753717854 | M75: 1000 | N75: 1125.50881 | O75: 1119.755092 | P75: 0.001 | Q75: 0.09331292435 | R75: 5.66040493 | S75: 0.09 | T75: 0.04079636843 | U75: 5.701201298 | V75: 0.3104653812 | AD75: =+AD74+1 -> 60
D76: 34 | E76: 5 | F76: 60 | G76: 0 | H76: =IFERROR(SUM(G$17:$G76),"") -> 18.36340424 | I76: 0 | J76: 0.005701201298 | K76: 0.05 | L76: 5.645500097 | M76: 1000 | N76: 1125.50881 | O76: 1119.86331 | P76: 0.001 | Q76: 0.09332194249 | R76: 5.552178154 | S76: 0.09 | T76: 0.04001634307 | U76: 5.592194497 | V76: 0.3045292923 | AD76: 61
D77: 35 | E77: 6 | F77: 61 | G77: =+IF(E77>Contribution_Paying_Years,0,$B$14) -> 3.672680848 | H77: =IFERROR(SUM(G$17:$G77),"") -> 22.03608509 | I77: 0.1836340424 | J77: 0.005592194497 | K77: 0.05 | L77: 9.025649109 | M77: 1000 | N77: 1159.274074 | O77: 1150.248425 | P77: 0.001 | Q77: 0.09585403543 | R77: 8.929795073 | S77: 0.09 | T77: 0.06435992024 | U77: 8.994154993 | V77: 0.4081557571 | AD77: 62
D78: 35 | E78: 6 | F78: 62 | G78: 0 | H78: =IFERROR(SUM(G$17:$G78),"") -> 22.03608509 | I78: 0 | J78: 0.008994154993 | K78: 0.05 | L78: 8.935160838 | M78: 1000 | N78: 1159.274074 | O78: 1150.338913 | P78: 0.001 | Q78: 0.09586157612 | R78: 8.839299262 | S78: 0.09 | T78: 0.06370768767 | U78: 8.90300695 | V78: 0.4040194488 | AD78: 63
D79: 35 | E79: 6 | F79: 63 | G79: 0 | H79: =IFERROR(SUM(G$17:$G79),"") -> 22.03608509 | I79: 0 | J79: 0.00890300695 | K79: 0.05 | L79: 8.844103943 | M79: 1000 | N79: 1159.274074 | O79: 1150.42997 | P79: 0.001 | Q79: 0.0958691642 | R79: 8.748234779 | S79: 0.09 | T79: 0.0630513565 | U79: 8.811286135 | V79: 0.399857148 | AD79: 64
D80: 35 | E80: 6 | F80: 64 | G80: 0 | H80: =IFERROR(SUM(G$17:$G80),"") -> 22.03608509 | I80: 0 | J80: 0.008811286135 | K80: 0.05 | L80: 8.752474849 | M80: 1000 | N80: 1159.274074 | O80: 1150.521599 | P80: 0.001 | Q80: 0.09587679995 | R80: 8.656598049 | S80: 0.09 | T80: 0.06239090096 | U80: 8.71898895 | V80: 0.3956686914 | AD80: 65
D81: =Age+E81-1 -> 35 | E81: 6 | F81: 65 | G81: 0 | H81: =IFERROR(SUM(G$17:$G81),"") -> 22.03608509 | I81: =IFERROR(VLOOKUP(E81,Parameters,6,FALSE)*G81,0) -> 0 | J81: 0.00871898895 | K81: =IFERROR(VLOOKUP(E81,Parameters,9,FALSE)*Equivalent_Takaful_Face_Amount_in_EGP/1000,K80) -> 0.05 | L81: 8.660269961 | M81: =+Equivalent_Takaful_Face_Amount_in_EGP -> 1000 | N81: =+IF(Currency="EGP",M81,MIN(Max_TFA_Multiple*M81,M81*(1+Annual_Increase_in_TFA)^(E81-1))) -> 1159.274074 | O81: =IF(Death_Benefit_Option="B",N81,MAX(0,N81-L81)) -> 1150.613804 | P81: =+VLOOKUP(D81,COI_Rates,2,0) -> 0.001 | Q81: =+O81*P81/12 -> 0.09588448369 | R81: =+L81-Q81 -> 8.564385477 | S81: 0.09 | T81: 0.06172629514 | U81: 8.626111773 | V81: =+U81/H81 -> 0.3914539147 | AD81: 66
D82: 35 | E82: =ROUNDUP(F82/12,0) -> 6 | F82: 66 | G82: 0 | H82: =IFERROR(SUM(G$17:$G82),"") -> 22.03608509 | I82: 0 | J82: =+MAX(((VLOOKUP(E82,Parameters,8)*U81)/1),0) -> 0.008626111773 | K82: 0.05 | L82: =+G82+U81-I82-J82-K82 -> 8.567485661 | M82: 1000 | N82: 1159.274074 | O82: 1150.706589 | P82: 0.001 | Q82: 0.09589221572 | R82: 8.471593445 | S82: 0.09 | T82: =MAX(0,(R82*(1+S82)^(1/12)-R82)) -> 0.06105751296 | U82: =+T82+R82 -> 8.532650958 | V82: 0.3872126525 | AD82: 67
D83: 35 | E83: 6 | F83: =+F82+1 -> 67 | G83: 0 | H83: =IFERROR(SUM(G$17:$G83),"") -> 22.03608509 | I83: 0 | J83: 0.008532650958 | K83: 0.05 | L83: 8.474118307 | M83: 1000 | N83: 1159.274074 | O83: 1150.799956 | P83: 0.001 | Q83: 0.09589999633 | R83: 8.378218311 | S83: 0.09 | T83: 0.06038452818 | U83: 8.438602839 | V83: 0.3829447384 | AD83: 68
D84: 35 | E84: 6 | F84: 68 | G84: 0 | H84: =IFERROR(SUM(G$17:$G84),"") -> 22.03608509 | I84: 0 | J84: 0.008438602839 | K84: 0.05 | L84: 8.380164236 | M84: 1000 | N84: 1159.274074 | O84: 1150.89391 | P84: 0.001 | Q84: 0.09590782584 | R84: 8.28425641 | S84: 0.09 | T84: 0.05970731438 | U84: 8.343963725 | V84: 0.3786500048 | AD84: 69
D85: 35 | E85: 6 | F85: 69 | G85: 0 | H85: =IFERROR(SUM(G$17:$G85),"") -> 22.03608509 | I85: 0 | J85: 0.008343963725 | K85: 0.05 | L85: 8.285619761 | M85: 1000 | N85: 1159.274074 | O85: 1150.988455 | P85: 0.001 | Q85: 0.09591570454 | R85: 8.189704056 | S85: 0.09 | T85: 0.059025845 | U85: 8.248729901 | V85: 0.3743282833 | AD85: 70
D86: 35 | E86: 6 | F86: 70 | G86: 0 | H86: =IFERROR(SUM(G$17:$G86),"") -> 22.03608509 | I86: 0 | J86: 0.008248729901 | K86: 0.05 | L86: 8.190481171 | M86: 1000 | N86: 1159.274074 | O86: 1151.083593 | P86: 0.001 | Q86: 0.09592363276 | R86: 8.094557539 | S86: 0.09 | T86: 0.05834009328 | U86: 8.152897632 | V86: 0.3699794042 | AD86: 71
D87: 35 | E87: 6 | F87: 71 | G87: 0 | H87: =IFERROR(SUM(G$17:$G87),"") -> 22.03608509 | I87: 0 | J87: 0.008152897632 | K87: 0.05 | L87: 8.094744734 | M87: 1000 | N87: 1159.274074 | O87: 1151.17933 | P87: 0.001 | Q87: 0.0959316108 | R87: 7.998813124 | S87: 0.09 | T87: 0.05765003233 | U87: 8.056463156 | V87: 0.3656031969 | AD87: 72
D88: 35 | E88: 6 | F88: 72 | G88: 0 | H88: =IFERROR(SUM(G$17:$G88),"") -> 22.03608509 | I88: 0 | J88: 0.008056463156 | K88: 0.05 | L88: 7.998406693 | M88: 1000 | N88: 1159.274074 | O88: 1151.275668 | P88: 0.001 | Q88: 0.09593963897 | R88: 7.902467054 | S88: 0.09 | T88: 0.05695563505 | U88: 7.959422689 | V88: 0.3611994897
D89: 36 | E89: 7 | F89: 73 | G89: =+IF(E89>Contribution_Paying_Years,0,$B$14) -> 3.672680848 | H89: =IFERROR(SUM(G$17:$G89),"") -> 25.70876594 | I89: 0.1836340424 | J89: 0.007959422689 | K89: 0.05 | L89: 11.39051007 | M89: 1000 | N89: 1194.052297 | O89: 1182.661786 | P89: 0.001 | Q89: 0.09855514887 | R89: 11.29195492 | S89: 0.09 | T89: 0.08138477 | U89: 11.37333969 | V89: 0.4423915065
D90: 36 | E90: 7 | F90: 74 | G90: 0 | H90: =IFERROR(SUM(G$17:$G90),"") -> 25.70876594 | I90: 0 | J90: 0.01137333969 | K90: 0.05 | L90: 11.31196635 | M90: 1000 | N90: 1194.052297 | O90: 1182.74033 | P90: 0.001 | Q90: 0.09856169418 | R90: 11.21340466 | S90: 0.09 | T90: 0.08081863285 | U90: 11.29422329 | V90: 0.439314097
D91: 36 | E91: 7 | F91: 75 | G91: 0 | H91: =IFERROR(SUM(G$17:$G91),"") -> 25.70876594 | I91: 0 | J91: 0.01129422329 | K91: 0.05 | L91: 11.23292907 | M91: 1000 | N91: 1194.052297 | O91: 1182.819367 | P91: 0.001 | Q91: 0.09856828062 | R91: 11.13436079 | S91: 0.09 | T91: 0.08024893812 | U91: 11.21460973 | V91: 0.4362173491
D92: 36 | E92: 7 | F92: 76 | G92: 0 | H92: =IFERROR(SUM(G$17:$G92),"") -> 25.70876594 | I92: 0 | J92: 0.01121460973 | K92: 0.05 | L92: 11.15339512 | M92: 1000 | N92: 1194.052297 | O92: 1182.898901 | P92: 0.001 | Q92: 0.09857490845 | R92: 11.05482021 | S92: 0.09 | T92: 0.07967566344 | U92: 11.13449587 | V92: 0.4331011414
D93: 36 | E93: 7 | F93: 77 | G93: 0 | H93: =IFERROR(SUM(G$17:$G93),"") -> 25.70876594 | I93: 0 | J93: 0.01113449587 | K93: 0.05 | L93: 11.07336138 | M93: 1000 | N93: 1194.052297 | O93: 1182.978935 | P93: 0.001 | Q93: 0.09858157793 | R93: 10.9747798 | S93: 0.09 | T93: 0.07909878632 | U93: 11.05387858 | V93: 0.4299653516
D94: 36 | E94: 7 | F94: 78 | G94: 0 | H94: =IFERROR(SUM(G$17:$G94),"") -> 25.70876594 | I94: 0 | J94: 0.01105387858 | K94: 0.05 | L94: 10.99282471 | M94: 1000 | N94: 1194.052297 | O94: 1183.059472 | P94: 0.001 | Q94: 0.09858828932 | R94: 10.89423642 | S94: 0.09 | T94: 0.07851828413 | U94: 10.9727547 | V94: 0.4268098565
D95: 36 | E95: 7 | F95: 79 | G95: 0 | H95: =IFERROR(SUM(G$17:$G95),"") -> 25.70876594 | I95: 0 | J95: 0.0109727547 | K95: 0.05 | L95: 10.91178195 | M95: 1000 | N95: 1194.052297 | O95: 1183.140515 | P95: 0.001 | Q95: 0.09859504288 | R95: 10.8131869 | S95: 0.09 | T95: 0.07793413408 | U95: 10.89112104 | V95: 0.4236345324
D96: 36 | E96: 7 | F96: 80 | G96: 0 | H96: =IFERROR(SUM(G$17:$G96),"") -> 25.70876594 | I96: 0 | J96: 0.01089112104 | K96: 0.05 | L96: 10.83022992 | M96: 1000 | N96: 1194.052297 | O96: 1183.222067 | P96: 0.001 | Q96: 0.09860183888 | R96: 10.73162808 | S96: 0.09 | T96: 0.07734631326 | U96: 10.80897439 | V96: 0.4204392547
D97: 36 | E97: 7 | F97: 81 | G97: 0 | H97: =IFERROR(SUM(G$17:$G97),"") -> 25.70876594 | I97: 0 | J97: 0.01080897439 | K97: 0.05 | L97: 10.74816542 | M97: 1000 | N97: 1194.052297 | O97: 1183.304131 | P97: 0.001 | Q97: 0.09860867759 | R97: 10.64955674 | S97: 0.09 | T97: 0.07675479858 | U97: 10.72631154 | V97: 0.417223898
D98: 36 | E98: 7 | F98: 82 | G98: 0 | H98: =IFERROR(SUM(G$17:$G98),"") -> 25.70876594 | I98: 0 | J98: 0.01072631154 | K98: 0.05 | L98: 10.66558522 | M98: 1000 | N98: 1194.052297 | O98: 1183.386711 | P98: 0.001 | Q98: 0.09861555928 | R98: 10.56696967 | S98: 0.09 | T98: 0.07615956685 | U98: 10.64312923 | V98: 0.4139883361
D99: 36 | E99: 7 | F99: 83 | G99: 0 | H99: =IFERROR(SUM(G$17:$G99),"") -> 25.70876594 | I99: 0 | J99: 0.01064312923 | K99: 0.05 | L99: 10.5824861 | M99: 1000 | N99: 1194.052297 | O99: 1183.46981 | P99: 0.001 | Q99: 0.0986224842 | R99: 10.48386362 | S99: 0.09 | T99: 0.0755605947 | U99: 10.55942421 | V99: 0.410732442
D100: 36 | E100: 7 | F100: 84 | G100: 0 | H100: =IFERROR(SUM(G$17:$G100),"") -> 25.70876594 | I100: 0 | J100: 0.01055942421 | K100: 0.05 | L100: 10.49886479 | M100: 1000 | N100: 1194.052297 | O100: 1183.553432 | P100: 0.001 | Q100: 0.09862945264 | R100: 10.40023534 | S100: 0.09 | T100: 0.07495785864 | U100: 10.4751932 | V100: 0.407456088
D101: 37 | E101: 8 | F101: 85 | G101: =+IF(E101>Contribution_Paying_Years,0,$B$14) -> 3.672680848 | H101: =IFERROR(SUM(G$17:$G101),"") -> 29.38144678 | I101: 0.1836340424 | J101: 0.0104751932 | K101: 0.05 | L101: 13.90376481 | M101: 1000 | N101: 1229.873865 | O101: 1215.970101 | P101: 0.001039840756 | Q101: 0.105367939 | R101: 13.79839687 | S101: 0.09 | T101: 0.09944950748 | U101: 13.89784638 | V101: 0.4730143644
D102: 37 | E102: 8 | F102: 86 | G102: 0 | H102: =IFERROR(SUM(G$17:$G102),"") -> 29.38144678 | I102: 0 | J102: 0.01389784638 | K102: 0.05 | L102: 13.83394853 | M102: 1000 | N102: 1229.873865 | O102: 1216.039917 | P102: 0.001039840756 | Q102: 0.1053739889 | R102: 13.72857454 | S102: 0.09 | T102: 0.09894627539 | U102: 13.82752082 | V102: 0.4706208281
D103: 37 | E103: 8 | F103: 87 | G103: 0 | H103: =IFERROR(SUM(G$17:$G103),"") -> 29.38144678 | I103: 0 | J103: 0.01382752082 | K103: 0.05 | L103: 13.7636933 | M103: 1000 | N103: 1229.873865 | O103: 1216.110172 | P103: 0.001039840756 | Q103: 0.1053800767 | R103: 13.65831322 | S103: 0.09 | T103: 0.09843987932 | U103: 13.7567531 | V103: 0.4682122429
D104: 37 | E104: 8 | F104: 88 | G104: 0 | H104: =IFERROR(SUM(G$17:$G104),"") -> 29.38144678 | I104: 0 | J104: 0.0137567531 | K104: 0.05 | L104: 13.69299635 | M104: 1000 | N104: 1229.873865 | O104: 1216.180869 | P104: 0.001039840756 | Q104: 0.1053862028 | R104: 13.58761014 | S104: 0.09 | T104: 0.09793029939 | U104: 13.68554044 | V104: 0.4657885142
D105: 37 | E105: 8 | F105: 89 | G105: 0 | H105: =IFERROR(SUM(G$17:$G105),"") -> 29.38144678 | I105: 0 | J105: 0.01368554044 | K105: 0.05 | L105: 13.6218549 | M105: 1000 | N105: 1229.873865 | O105: 1216.252011 | P105: 0.001039840756 | Q105: 0.1053923675 | R105: 13.51646253 | S105: 0.09 | T105: 0.09741751557 | U105: 13.61388005 | V105: 0.4633495467
D106: 37 | E106: 8 | F106: 90 | G106: 0 | H106: =IFERROR(SUM(G$17:$G106),"") -> 29.38144678 | I106: 0 | J106: 0.01361388005 | K106: 0.05 | L106: 13.55026617 | M106: 1000 | N106: 1229.873865 | O106: 1216.323599 | P106: 0.001039840756 | Q106: 0.1053985709 | R106: 13.4448676 | S106: 0.09 | T106: 0.09690150772 | U106: 13.54176911 | V106: 0.4608952447
D107: 37 | E107: 8 | F107: 91 | G107: 0 | H107: =IFERROR(SUM(G$17:$G107),"") -> 29.38144678 | I107: 0 | J107: 0.01354176911 | K107: 0.05 | L107: 13.47822734 | M107: 1000 | N107: 1229.873865 | O107: 1216.395638 | P107: 0.001039840756 | Q107: 0.1054048133 | R107: 13.37282252 | S107: 0.09 | T107: 0.09638225558 | U107: 13.46920478 | V107: 0.4584255118
D108: 37 | E108: 8 | F108: 92 | G108: 0 | H108: =IFERROR(SUM(G$17:$G108),"") -> 29.38144678 | I108: 0 | J108: 0.01346920478 | K108: 0.05 | L108: 13.40573557 | M108: 1000 | N108: 1229.873865 | O108: 1216.46813 | P108: 0.001039840756 | Q108: 0.105411095 | R108: 13.30032448 | S108: 0.09 | T108: 0.09585973873 | U108: 13.39618422 | V108: 0.4559402509
D109: 37 | E109: 8 | F109: 93 | G109: 0 | H109: =IFERROR(SUM(G$17:$G109),"") -> 29.38144678 | I109: 0 | J109: 0.01339618422 | K109: 0.05 | L109: 13.33278803 | M109: 1000 | N109: 1229.873865 | O109: 1216.541077 | P109: 0.001039840756 | Q109: 0.1054174161 | R109: 13.22737062 | S109: 0.09 | T109: 0.09533393667 | U109: 13.32270455 | V109: 0.4534393644
D110: 37 | E110: 8 | F110: 94 | G110: 0 | H110: =IFERROR(SUM(G$17:$G110),"") -> 29.38144678 | I110: 0 | J110: 0.01332270455 | K110: 0.05 | L110: 13.25938185 | M110: 1000 | N110: 1229.873865 | O110: 1216.614484 | P110: 0.001039840756 | Q110: 0.105423777 | R110: 13.15395807 | S110: 0.09 | T110: 0.09480482872 | U110: 13.2487629 | V110: 0.4509227541
D111: 37 | E111: 8 | F111: 95 | G111: 0 | H111: =IFERROR(SUM(G$17:$G111),"") -> 29.38144678 | I111: 0 | J111: 0.0132487629 | K111: 0.05 | L111: 13.18551414 | M111: 1000 | N111: 1229.873865 | O111: 1216.688351 | P111: 0.001039840756 | Q111: 0.1054301779 | R111: 13.08008396 | S111: 0.09 | T111: 0.09427239411 | U111: 13.17435636 | V111: 0.448390321
D112: 37 | E112: 8 | F112: 96 | G112: 0 | H112: =IFERROR(SUM(G$17:$G112),"") -> 29.38144678 | I112: 0 | J112: 0.01317435636 | K112: 0.05 | L112: 13.111182 | M112: 1000 | N112: 1229.873865 | O112: 1216.762683 | P112: 0.001039840756 | Q112: 0.105436619 | R112: 13.00574538 | S112: 0.09 | T112: 0.09373661192 | U112: 13.09948199 | V112: 0.4458419658
D113: =Age+E113-1 -> 38 | E113: 9 | F113: 97 | G113: =+IF(E113>Contribution_Paying_Years,0,$B$14) -> 3.672680848 | H113: =IFERROR(SUM(G$17:$G113),"") -> 33.05412763 | I113: =IFERROR(VLOOKUP(E113,Parameters,6,FALSE)*G113,0) -> 0.1836340424 | J113: 0.01309948199 | K113: 0.05 | L113: 16.52542932 | M113: 1000 | N113: 1266.770081 | O113: 1250.244652 | P113: 0.001159885796 | Q113: 0.1208450844 | R113: 16.40458423 | S113: 0.09 | T113: 0.1182331424 | U113: 16.52281737 | V113: 0.4998715306
D114: 38 | E114: 9 | F114: 98 | G114: 0 | H114: =IFERROR(SUM(G$17:$G114),"") -> 33.05412763 | I114: 0 | J114: 0.01652281737 | K114: 0.05 | L114: 16.45629456 | M114: 1000 | N114: 1266.770081 | O114: 1250.313787 | P114: 0.001159885796 | Q114: 0.1208517668 | R114: 16.33544279 | S114: 0.09 | T114: 0.1177348177 | U114: 16.45317761 | V114: 0.4977646904
D115: 38 | E115: 9 | F115: 99 | G115: 0 | H115: =IFERROR(SUM(G$17:$G115),"") -> 33.05412763 | I115: 0 | J115: 0.01645317761 | K115: 0.05 | L115: 16.38672443 | M115: 1000 | N115: 1266.770081 | O115: 1250.383357 | P115: 0.001159885796 | Q115: 0.1208584913 | R115: 16.26586594 | S115: 0.09 | T115: 0.1172333548 | U115: 16.38309929 | V115: 0.4956445826
D116: 38 | E116: 9 | F116: 100 | G116: 0 | H116: =IFERROR(SUM(G$17:$G116),"") -> 33.05412763 | I116: 0 | J116: 0.01638309929 | K116: 0.05 | L116: 16.31671619 | M116: 1000 | N116: 1266.770081 | O116: 1250.453365 | P116: 0.001159885796 | Q116: 0.1208652581 | R116: 16.19585094 | S116: 0.09 | T116: 0.1167287341 | U116: 16.31257967 | V116: 0.4935111237
D117: 38 | E117: 9 | F117: 101 | G117: 0 | H117: =IFERROR(SUM(G$17:$G117),"") -> 33.05412763 | I117: 0 | J117: 0.01631257967 | K117: 0.05 | L117: 16.24626709 | M117: 1000 | N117: 1266.770081 | O117: 1250.523814 | P117: 0.001159885796 | Q117: 0.1208720675 | R117: 16.12539502 | S117: 0.09 | T117: 0.1162209355 | U117: 16.24161596 | V117: 0.4913642296
D118: 38 | E118: 9 | F118: 102 | G118: 0 | H118: =IFERROR(SUM(G$17:$G118),"") -> 33.05412763 | I118: 0 | J118: 0.01624161596 | K118: 0.05 | L118: 16.17537434 | M118: 1000 | N118: 1266.770081 | O118: 1250.594707 | P118: 0.001159885796 | Q118: 0.1208789198 | R118: 16.05449542 | S118: 0.09 | T118: 0.1157099392 | U118: 16.17020536 | V118: 0.4892038157
D119: 38 | E119: 9 | F119: 103 | G119: 0 | H119: =IFERROR(SUM(G$17:$G119),"") -> 33.05412763 | I119: 0 | J119: 0.01617020536 | K119: 0.05 | L119: 16.10403516 | M119: 1000 | N119: 1266.770081 | O119: 1250.666046 | P119: 0.001159885796 | Q119: 0.1208858152 | R119: 15.98314934 | S119: 0.09 | T119: 0.1151957249 | U119: 16.09834507 | V119: 0.4870297969
D120: 38 | E120: 9 | F120: 104 | G120: 0 | H120: =IFERROR(SUM(G$17:$G120),"") -> 33.05412763 | I120: 0 | J120: 0.01609834507 | K120: 0.05 | L120: 16.03224672 | M120: 1000 | N120: 1266.770081 | O120: 1250.737835 | P120: 0.001159885796 | Q120: 0.1208927541 | R120: 15.91135397 | S120: 0.09 | T120: 0.1146782724 | U120: 16.02603224 | V120: 0.4848420874
D121: 38 | E121: 9 | F121: 105 | G121: 0 | H121: =IFERROR(SUM(G$17:$G121),"") -> 33.05412763 | I121: 0 | J121: 0.01602603224 | K121: 0.05 | L121: 15.96000621 | M121: 1000 | N121: 1266.770081 | O121: 1250.810075 | P121: 0.001159885796 | Q121: 0.1208997366 | R121: 15.83910647 | S121: 0.09 | T121: 0.1141575614 | U121: 15.95326403 | V121: 0.4826406012
D122: 38 | E122: 9 | F122: 106 | G122: 0 | H122: =IFERROR(SUM(G$17:$G122),"") -> 33.05412763 | I122: 0 | J122: 0.01595326403 | K122: 0.05 | L122: 15.88731077 | M122: 1000 | N122: 1266.770081 | O122: 1250.882771 | P122: 0.001159885796 | Q122: 0.1209067632 | R122: 15.766404 | S122: 0.09 | T122: 0.1136335712 | U122: 15.88003758 | V122: 0.4804252513
D123: 38 | E123: 9 | F123: 107 | G123: 0 | H123: =IFERROR(SUM(G$17:$G123),"") -> 33.05412763 | I123: 0 | J123: 0.01588003758 | K123: 0.05 | L123: 15.81415754 | M123: 1000 | N123: 1266.770081 | O123: 1250.955924 | P123: 0.001159885796 | Q123: 0.1209138339 | R123: 15.6932437 | S123: 0.09 | T123: 0.1131062813 | U123: 15.80634999 | V123: 0.4781959506
D124: 38 | E124: 9 | F124: 108 | G124: 0 | H124: =IFERROR(SUM(G$17:$G124),"") -> 33.05412763 | I124: 0 | J124: 0.01580634999 | K124: 0.05 | L124: 15.74054364 | M124: 1000 | N124: 1266.770081 | O124: 1251.029538 | P124: 0.001159885796 | Q124: 0.1209209493 | R124: 15.61962269 | S124: 0.09 | T124: 0.1125756708 | U124: 15.73219836 | V124: 0.4759526112
D125: 39 | E125: 10 | F125: 109 | G125: =+IF(E125>Contribution_Paying_Years,0,$B$14) -> 3.672680848 | H125: =IFERROR(SUM(G$17:$G125),"") -> 36.72680848 | I125: 0.1836340424 | J125: 0.01573219836 | K125: 0.05 | L125: 19.15551296 | M125: 1000 | N125: 1304.773184 | O125: 1285.617671 | P125: 0.001280333482 | Q125: 0.1371682791 | R125: 19.01834468 | S125: 0.09 | T125: 0.1370713591 | U125: 19.15541604 | V125: 0.5215649504
D126: 39 | E126: 10 | F126: 110 | G126: 0 | H126: =IFERROR(SUM(G$17:$G126),"") -> 36.72680848 | I126: 0 | J126: 0.01915541604 | K126: 0.05 | L126: 19.08626063 | M126: 1000 | N126: 1304.773184 | O126: 1285.686923 | P126: 0.001280333482 | Q126: 0.137175668 | R126: 18.94908496 | S126: 0.09 | T126: 0.1365721819 | U126: 19.08565714 | V126: 0.5196655504
D127: 39 | E127: 10 | F127: 111 | G127: 0 | H127: =IFERROR(SUM(G$17:$G127),"") -> 36.72680848 | I127: 0 | J127: 0.01908565714 | K127: 0.05 | L127: 19.01657148 | M127: 1000 | N127: 1304.773184 | O127: 1285.756612 | P127: 0.001280333482 | Q127: 0.1371831034 | R127: 18.87938838 | S127: 0.09 | T127: 0.1360698561 | U127: 19.01545824 | V127: 0.5177541699
D128: 39 | E128: 10 | F128: 112 | G128: 0 | H128: =IFERROR(SUM(G$17:$G128),"") -> 36.72680848 | I128: 0 | J128: 0.01901545824 | K128: 0.05 | L128: 18.94644278 | M128: 1000 | N128: 1304.773184 | O128: 1285.826741 | P128: 0.001280333482 | Q128: 0.1371905857 | R128: 18.80925219 | S128: 0.09 | T128: 0.1355643619 | U128: 18.94481656 | V128: 0.5158307334
D129: 39 | E129: 10 | F129: 113 | G129: 0 | H129: =IFERROR(SUM(G$17:$G129),"") -> 36.72680848 | I129: 0 | J129: 0.01894481656 | K129: 0.05 | L129: 18.87587174 | M129: 1000 | N129: 1304.773184 | O129: 1285.897312 | P129: 0.001280333482 | Q129: 0.1371981153 | R129: 18.73867362 | S129: 0.09 | T129: 0.1350556793 | U129: 18.8737293 | V129: 0.513895165
D130: 39 | E130: 10 | F130: 114 | G130: 0 | H130: =IFERROR(SUM(G$17:$G130),"") -> 36.72680848 | I130: 0 | J130: 0.0188737293 | K130: 0.05 | L130: 18.80485557 | M130: 1000 | N130: 1304.773184 | O130: 1285.968328 | P130: 0.001280333482 | Q130: 0.1372056923 | R130: 18.66764988 | S130: 0.09 | T130: 0.1345437882 | U130: 18.80219367 | V130: 0.511947388
D131: 39 | E131: 10 | F131: 115 | G131: 0 | H131: =IFERROR(SUM(G$17:$G131),"") -> 36.72680848 | I131: 0 | J131: 0.01880219367 | K131: 0.05 | L131: 18.73339148 | M131: 1000 | N131: 1304.773184 | O131: 1286.039792 | P131: 0.001280333482 | Q131: 0.1372133171 | R131: 18.59617816 | S131: 0.09 | T131: 0.1340286684 | U131: 18.73020683 | V131: 0.5099873254
D132: 39 | E132: 10 | F132: 116 | G132: 0 | H132: =IFERROR(SUM(G$17:$G132),"") -> 36.72680848 | I132: 0 | J132: 0.01873020683 | K132: 0.05 | L132: 18.66147662 | M132: 1000 | N132: 1304.773184 | O132: 1286.111707 | P132: 0.001280333482 | Q132: 0.1372209901 | R132: 18.52425563 | S132: 0.09 | T132: 0.1335102995 | U132: 18.65776593 | V132: 0.5080148998
D133: 39 | E133: 10 | F133: 117 | G133: 0 | H133: =IFERROR(SUM(G$17:$G133),"") -> 36.72680848 | I133: 0 | J133: 0.01865776593 | K133: 0.05 | L133: 18.58910816 | M133: 1000 | N133: 1304.773184 | O133: 1286.184076 | P133: 0.001280333482 | Q133: 0.1372287114 | R133: 18.45187945 | S133: 0.09 | T133: 0.132988661 | U133: 18.58486811 | V133: 0.5060300332
D134: 39 | E134: 10 | F134: 118 | G134: 0 | H134: =IFERROR(SUM(G$17:$G134),"") -> 36.72680848 | I134: 0 | J134: 0.01858486811 | K134: 0.05 | L134: 18.51628325 | M134: 1000 | N134: 1304.773184 | O134: 1286.256901 | P134: 0.001280333482 | Q134: 0.1372364814 | R134: 18.37904676 | S134: 0.09 | T134: 0.1324637323 | U134: 18.5115105 | V134: 0.5040326471
D135: 39 | E135: 10 | F135: 119 | G135: 0 | H135: =IFERROR(SUM(G$17:$G135),"") -> 36.72680848 | I135: 0 | J135: 0.0185115105 | K135: 0.05 | L135: 18.44299899 | M135: 1000 | N135: 1304.773184 | O135: 1286.330185 | P135: 0.001280333482 | Q135: 0.1372443004 | R135: 18.30575469 | S135: 0.09 | T135: 0.1319354926 | U135: 18.43769018 | V135: 0.5020226625
D136: 39 | E136: 10 | F136: 120 | G136: 0 | H136: =IFERROR(SUM(G$17:$G136),"") -> 36.72680848 | I136: 0 | J136: 0.01843769018 | K136: 0.05 | L136: 18.36925249 | M136: 1000 | N136: 1304.773184 | O136: 1286.403931 | P136: 0.001280333482 | Q136: 0.1372521687 | R136: 18.23200032 | S136: 0.09 | T136: 0.131403921 | U136: 18.36340424 | V136: 0.5
D137: 40 | E137: =ROUNDUP(F137/12,0) -> 11 | F137: 121 | G137: =+IF(E137>Contribution_Paying_Years,0,$B$14) -> 0 | H137: =IFERROR(SUM(G$17:$G137),"") -> 36.72680848 | I137: =IFERROR(VLOOKUP(E137,Parameters,6,FALSE)*G137,0) -> 0 | J137: 0.01836340424 | K137: 0.05 | L137: 18.29504084 | M137: 1000 | N137: 1343.916379 | O137: 1325.621339 | P137: 0.001431041679 | Q137: 0.1580849488 | R137: 18.13695589 | S137: 0.09 | T137: =MAX(0,(R137*(1+S137)^(1/12)-R137)) -> 0.130718905 | U137: =+T137+R137 -> 18.26767479 | V137: 0.4973934722
D138: 40 | E138: 11 | F138: 122 | G138: 0 | H138: =IFERROR(SUM(G$17:$G138),"") -> 36.72680848 | I138: 0 | J138: 0.01826767479 | K138: 0.05 | L138: 18.19940712 | M138: 1000 | N138: 1343.916379 | O138: 1325.716972 | P138: 0.001431041679 | Q138: 0.1580963535 | R138: 18.04131076 | S138: 0.09 | T138: 0.1300295597 | U138: 18.17134032 | V138: 0.4947704708
D139: 40 | E139: 11 | F139: 123 | G139: 0 | H139: =IFERROR(SUM(G$17:$G139),"") -> 36.72680848 | I139: 0 | J139: 0.01817134032 | K139: 0.05 | L139: 18.10316898 | M139: 1000 | N139: 1343.916379 | O139: 1325.81321 | P139: 0.001431041679 | Q139: 0.1581078302 | R139: 17.94506115 | S139: 0.09 | T139: 0.1293358577 | U139: 18.07439701 | V139: 0.4921308918
D140: 40 | E140: 11 | F140: 124 | G140: 0 | H140: =IFERROR(SUM(G$17:$G140),"") -> 36.72680848 | I140: 0 | J140: 0.01807439701 | K140: 0.05 | L140: 18.00632261 | M140: 1000 | N140: 1343.916379 | O140: 1325.910057 | P140: 0.001431041679 | Q140: 0.1581193795 | R140: 17.84820323 | S140: 0.09 | T140: 0.1286377713 | U140: 17.97684101 | V140: 0.4894746304
D141: 40 | E141: 11 | F141: 125 | G141: 0 | H141: =IFERROR(SUM(G$17:$G141),"") -> 36.72680848 | I141: 0 | J141: 0.01797684101 | K141: 0.05 | L141: 17.90886416 | M141: 1000 | N141: 1343.916379 | O141: 1326.007515 | P141: 0.001431041679 | Q141: 0.1581310018 | R141: 17.75073316 | S141: 0.09 | T141: 0.127935273 | U141: 17.87866844 | V141: 0.4868015811
D142: 40 | E142: 11 | F142: 126 | G142: 0 | H142: =IFERROR(SUM(G$17:$G142),"") -> 36.72680848 | I142: 0 | J142: 0.01787866844 | K142: 0.05 | L142: 17.81078977 | M142: 1000 | N142: 1343.916379 | O142: 1326.10559 | P142: 0.001431041679 | Q142: 0.1581426975 | R142: 17.65264707 | S142: 0.09 | T142: 0.1272283348 | U142: 17.7798754 | V142: 0.4841116378
D143: 40 | E143: 11 | F143: 127 | G143: 0 | H143: =IFERROR(SUM(G$17:$G143),"") -> 36.72680848 | I143: 0 | J143: 0.0177798754 | K143: 0.05 | L143: 17.71209553 | M143: 1000 | N143: 1343.916379 | O143: 1326.204284 | P143: 0.001431041679 | Q143: 0.1581544671 | R143: 17.55394106 | S143: 0.09 | T143: 0.1265169287 | U143: 17.68045799 | V143: 0.4814046938
D144: 40 | E144: 11 | F144: 128 | G144: 0 | H144: =IFERROR(SUM(G$17:$G144),"") -> 36.72680848 | I144: 0 | J144: 0.01768045799 | K144: 0.05 | L144: 17.61277753 | M144: 1000 | N144: 1343.916379 | O144: 1326.303602 | P144: 0.001431041679 | Q144: 0.1581663111 | R144: 17.45461122 | S144: 0.09 | T144: 0.1258010264 | U144: 17.58041225 | V144: 0.4786806416
D145: 40 | E145: 11 | F145: 129 | G145: 0 | H145: =IFERROR(SUM(G$17:$G145),"") -> 36.72680848 | I145: 0 | J145: 0.01758041225 | K145: =IFERROR(VLOOKUP(E145,Parameters,9,FALSE)*Equivalent_Takaful_Face_Amount_in_EGP/1000,K144) -> 0.05 | L145: 17.51283184 | M145: =+Equivalent_Takaful_Face_Amount_in_EGP -> 1000 | N145: =+IF(Currency="EGP",M145,MIN(Max_TFA_Multiple*M145,M145*(1+Annual_Increase_in_TFA)^(E145-1))) -> 1343.916379 | O145: =IF(Death_Benefit_Option="B",N145,MAX(0,N145-L145)) -> 1326.403548 | P145: =+VLOOKUP(D145,COI_Rates,2,0) -> 0.001431041679 | Q145: =+O145*P145/12 -> 0.15817823 | R145: =+L145-Q145 -> 17.35465361 | S145: 0.09 | T145: 0.1250805996 | U145: 17.47973421 | V145: =+U145/H145 -> 0.4759393731
D146: 40 | E146: 11 | F146: 130 | G146: 0 | H146: =IFERROR(SUM(G$17:$G146),"") -> 36.72680848 | I146: 0 | J146: =+MAX(((VLOOKUP(E146,Parameters,8)*U145)/1),0) -> 0.01747973421 | K146: 0.05 | L146: =+G146+U145-I146-J146-K146 -> 17.41225447 | M146: 1000 | N146: 1343.916379 | O146: 1326.504125 | P146: 0.001431041679 | Q146: 0.1581902242 | R146: 17.25406425 | S146: 0.09 | T146: 0.1243556195 | U146: 17.37841987 | V146: 0.4731807795
D147: 40 | E147: 11 | F147: =+F146+1 -> 131 | G147: 0 | H147: =IFERROR(SUM(G$17:$G147),"") -> 36.72680848 | I147: 0 | J147: 0.01737841987 | K147: 0.05 | L147: 17.31104145 | M147: 1000 | N147: 1343.916379 | O147: 1326.605338 | P147: 0.001431041679 | Q147: 0.1582022942 | R147: 17.15283915 | S147: 0.09 | T147: 0.1236260576 | U147: 17.27646521 | V147: 0.4704047513
D148: 40 | E148: 11 | F148: 132 | G148: 0 | H148: =IFERROR(SUM(G$17:$G148),"") -> 36.72680848 | I148: 0 | J148: 0.01727646521 | K148: 0.05 | L148: 17.20918874 | M148: 1000 | N148: 1343.916379 | O148: 1326.707191 | P148: 0.001431041679 | Q148: 0.1582144405 | R148: 17.0509743 | S148: 0.09 | T148: 0.1228918847 | U148: 17.17386619 | V148: 0.4676111783
D149: 41 | E149: 12 | F149: 133 | G149: =+IF(E149>Contribution_Paying_Years,0,$B$14) -> 0 | H149: =IFERROR(SUM(G$17:$G149),"") -> 36.72680848 | I149: 0 | J149: 0.01717386619 | K149: 0.05 | L149: 17.10669232 | M149: 1000 | N149: 1384.233871 | O149: 1367.127178 | P149: 0.001612229056 | Q149: 0.1836768467 | R149: 16.92301548 | S149: 0.09 | T149: 0.121969644 | U149: 17.04498512 | V149: 0.4641019959
D150: 41 | E150: 12 | F150: 134 | G150: 0 | H150: =IFERROR(SUM(G$17:$G150),"") -> 36.72680848 | I150: 0 | J150: 0.01704498512 | K150: 0.05 | L150: 16.97794013 | M150: 1000 | N150: 1384.233871 | O150: 1367.255931 | P150: 0.001612229056 | Q150: 0.1836941449 | R150: 16.79424599 | S150: 0.09 | T150: 0.1210415607 | U150: 16.91528755 | V150: 0.4605705818
D151: 41 | E151: 12 | F151: 135 | G151: 0 | H151: =IFERROR(SUM(G$17:$G151),"") -> 36.72680848 | I151: 0 | J151: 0.01691528755 | K151: 0.05 | L151: 16.84837226 | M151: 1000 | N151: 1384.233871 | O151: 1367.385498 | P151: 0.001612229056 | Q151: 0.1837115526 | R151: 16.66466071 | S151: 0.09 | T151: 0.1201075977 | U151: 16.78476831 | V151: 0.4570167952
D152: 41 | E152: 12 | F152: 136 | G152: 0 | H152: =IFERROR(SUM(G$17:$G152),"") -> 36.72680848 | I152: 0 | J152: 0.01678476831 | K152: 0.05 | L152: 16.71798354 | M152: 1000 | N152: 1384.233871 | O152: 1367.515887 | P152: 0.001612229056 | Q152: 0.1837290706 | R152: 16.53425447 | S152: 0.09 | T152: 0.1191677178 | U152: 16.65342219 | V152: 0.4534404942
D153: 41 | E153: 12 | F153: 137 | G153: 0 | H153: =IFERROR(SUM(G$17:$G153),"") -> 36.72680848 | I153: 0 | J153: 0.01665342219 | K153: 0.05 | L153: 16.58676876 | M153: 1000 | N153: 1384.233871 | O153: 1367.647102 | P153: 0.001612229056 | Q153: 0.1837466997 | R153: 16.40302207 | S153: 0.09 | T153: 0.1182218834 | U153: 16.52124395 | V153: 0.4498415363
D154: 41 | E154: 12 | F154: 138 | G154: 0 | H154: =IFERROR(SUM(G$17:$G154),"") -> 36.72680848 | I154: 0 | J154: 0.01652124395 | K154: 0.05 | L154: 16.4547227 | M154: 1000 | N154: 1384.233871 | O154: 1367.779148 | P154: 0.001612229056 | Q154: 0.1837644404 | R154: 16.27095826 | S154: 0.09 | T154: 0.1172700569 | U154: 16.38822832 | V154: 0.4462197779
D155: 41 | E155: 12 | F155: 139 | G155: 0 | H155: =IFERROR(SUM(G$17:$G155),"") -> 36.72680848 | I155: 0 | J155: 0.01638822832 | K155: 0.05 | L155: 16.32184009 | M155: 1000 | N155: 1384.233871 | O155: 1367.912031 | P155: 0.001612229056 | Q155: 0.1837822935 | R155: 16.1380578 | S155: 0.09 | T155: 0.1163122003 | U155: 16.25437 | V155: 0.4425750745
D156: 41 | E156: 12 | F156: 140 | G156: 0 | H156: =IFERROR(SUM(G$17:$G156),"") -> 36.72680848 | I156: 0 | J156: 0.01625437 | K156: 0.05 | L156: 16.18811563 | M156: 1000 | N156: 1384.233871 | O156: 1368.045755 | P156: 0.001612229056 | Q156: 0.1838002597 | R156: 16.00431537 | S156: 0.09 | T156: 0.1153482753 | U156: 16.11966365 | V156: 0.4389072809
D157: 41 | E157: 12 | F157: 141 | G157: 0 | H157: =IFERROR(SUM(G$17:$G157),"") -> 36.72680848 | I157: 0 | J157: 0.01611966365 | K157: 0.05 | L157: 16.05354398 | M157: 1000 | N157: 1384.233871 | O157: 1368.180327 | P157: 0.001612229056 | Q157: 0.1838183397 | R157: 15.86972564 | S157: 0.09 | T157: 0.1143782436 | U157: 15.98410389 | V157: 0.4352162507
D158: 41 | E158: 12 | F158: 142 | G158: 0 | H158: =IFERROR(SUM(G$17:$G158),"") -> 36.72680848 | I158: 0 | J158: 0.01598410389 | K158: 0.05 | L158: 15.91811978 | M158: 1000 | N158: 1384.233871 | O158: 1368.315751 | P158: 0.001612229056 | Q158: 0.1838365343 | R158: 15.73428325 | S158: 0.09 | T158: 0.1134020665 | U158: 15.84768531 | V158: 0.4315018367
D159: 41 | E159: 12 | F159: 143 | G159: 0 | H159: =IFERROR(SUM(G$17:$G159),"") -> 36.72680848 | I159: 0 | J159: 0.01584768531 | K159: 0.05 | L159: 15.78183763 | M159: 1000 | N159: 1384.233871 | O159: 1368.452033 | P159: 0.001612229056 | Q159: 0.1838548441 | R159: 15.59798278 | S159: 0.09 | T159: 0.112419705 | U159: 15.71040249 | V159: 0.4277638907
D160: 41 | E160: 12 | F160: 144 | G160: 0 | H160: =IFERROR(SUM(G$17:$G160),"") -> 36.72680848 | I160: 0 | J160: 0.01571040249 | K160: 0.05 | L160: 15.64469209 | M160: 1000 | N160: 1384.233871 | O160: 1368.589179 | P160: 0.001612229056 | Q160: 0.18387327 | R160: 15.46081882 | S160: 0.09 | T160: 0.1114311199 | U160: 15.57224994 | V160: 0.4240022638
D161: 42 | E161: 13 | F161: 145 | G161: =+IF(E161>Contribution_Paying_Years,0,$B$14) -> 0 | H161: =IFERROR(SUM(G$17:$G161),"") -> 36.72680848 | I161: 0 | J161: 0.01557224994 | K161: 0.05 | L161: 15.50667769 | M161: 1000 | N161: 1425.760887 | O161: 1410.254209 | P161: 0.001854066986 | Q161: 0.2178921475 | R161: 15.28878554 | S161: 0.09 | T161: 0.1101912205 | U161: 15.39897676 | V161: 0.4192843701
D162: 42 | E162: 13 | F162: 146 | G162: 0 | H162: =IFERROR(SUM(G$17:$G162),"") -> 36.72680848 | I162: 0 | J162: 0.01539897676 | K162: 0.05 | L162: 15.33357778 | M162: 1000 | N162: 1425.760887 | O162: 1410.427309 | P162: 0.001854066986 | Q162: 0.2179188924 | R162: 15.11565889 | S162: 0.09 | T162: 0.1089434408 | U162: 15.22460233 | V162: 0.4145364915
D163: 42 | E163: 13 | F163: 147 | G163: 0 | H163: =IFERROR(SUM(G$17:$G163),"") -> 36.72680848 | I163: 0 | J163: 0.01522460233 | K163: 0.05 | L163: 15.15937773 | M163: 1000 | N163: 1425.760887 | O163: 1410.601509 | P163: 0.001854066986 | Q163: 0.2179458073 | R163: 14.94143192 | S163: 0.09 | T163: 0.1076877307 | U163: 15.04911965 | V163: 0.4097584374
D164: 42 | E164: 13 | F164: 148 | G164: 0 | H164: =IFERROR(SUM(G$17:$G164),"") -> 36.72680848 | I164: 0 | J164: 0.01504911965 | K164: 0.05 | L164: 14.98407053 | M164: 1000 | N164: 1425.760887 | O164: 1410.776816 | P164: 0.001854066986 | Q164: 0.2179728933 | R164: 14.76609764 | S164: 0.09 | T164: 0.1064240398 | U164: 14.87252168 | V164: 0.4049500159
D165: 42 | E165: 13 | F165: 149 | G165: 0 | H165: =IFERROR(SUM(G$17:$G165),"") -> 36.72680848 | I165: 0 | J165: 0.01487252168 | K165: 0.05 | L165: 14.80764916 | M165: 1000 | N165: 1425.760887 | O165: 1410.953238 | P165: 0.001854066986 | Q165: 0.2180001514 | R165: 14.58964901 | S165: 0.09 | T165: 0.1051523175 | U165: 14.69480132 | V165: 0.4001110342
D166: 42 | E166: 13 | F166: 150 | G166: 0 | H166: =IFERROR(SUM(G$17:$G166),"") -> 36.72680848 | I166: 0 | J166: 0.01469480132 | K166: 0.05 | L166: 14.63010652 | M166: 1000 | N166: 1425.760887 | O166: 1411.13078 | P166: 0.001854066986 | Q166: 0.2180275827 | R166: 14.41207894 | S166: 0.09 | T166: 0.1038725126 | U166: 14.51595145 | V166: 0.3952412979
D167: 42 | E167: 13 | F167: 151 | G167: 0 | H167: =IFERROR(SUM(G$17:$G167),"") -> 36.72680848 | I167: 0 | J167: 0.01451595145 | K167: 0.05 | L167: 14.4514355 | M167: 1000 | N167: 1425.760887 | O167: 1411.309451 | P167: 0.001854066986 | Q167: 0.2180551884 | R167: 14.23338031 | S167: 0.09 | T167: 0.1025845738 | U167: 14.33596489 | V167: 0.3903406117
D168: 42 | E168: 13 | F168: 152 | G168: 0 | H168: =IFERROR(SUM(G$17:$G168),"") -> 36.72680848 | I168: 0 | J168: 0.01433596489 | K168: 0.05 | L168: 14.27162892 | M168: 1000 | N168: 1425.760887 | O168: 1411.489258 | P168: 0.001854066986 | Q168: 0.2180829695 | R168: 14.05354595 | S168: 0.09 | T168: 0.1012884494 | U168: 14.1548344 | V168: 0.3854087787
D169: 42 | E169: 13 | F169: 153 | G169: 0 | H169: =IFERROR(SUM(G$17:$G169),"") -> 36.72680848 | I169: 0 | J169: 0.0141548344 | K169: 0.05 | L169: 14.09067957 | M169: 1000 | N169: 1425.760887 | O169: 1411.670207 | P169: 0.001854066986 | Q169: 0.2181109272 | R169: 13.87256864 | S169: 0.09 | T169: 0.09998408741 | U169: 13.97255273 | V169: 0.3804456011
D170: 42 | E170: 13 | F170: 154 | G170: 0 | H170: =IFERROR(SUM(G$17:$G170),"") -> 36.72680848 | I170: 0 | J170: 0.01397255273 | K170: 0.05 | L170: 13.90858017 | M170: 1000 | N170: 1425.760887 | O170: 1411.852307 | P170: 0.001854066986 | Q170: 0.2181390625 | R170: 13.69044111 | S170: 0.09 | T170: 0.09867143543 | U170: 13.78911255 | V170: 0.3754508796
D171: 42 | E171: 13 | F171: 155 | G171: 0 | H171: =IFERROR(SUM(G$17:$G171),"") -> 36.72680848 | I171: 0 | J171: 0.01378911255 | K171: 0.05 | L171: 13.72532343 | M171: 1000 | N171: 1425.760887 | O171: 1412.035563 | P171: 0.001854066986 | Q171: 0.2181673767 | R171: 13.50715606 | S171: 0.09 | T171: 0.09735044079 | U171: 13.6045065 | V171: 0.3704244137
D172: 42 | E172: 13 | F172: 156 | G172: 0 | H172: =IFERROR(SUM(G$17:$G172),"") -> 36.72680848 | I172: 0 | J172: 0.0136045065 | K172: 0.05 | L172: 13.54090199 | M172: 1000 | N172: 1425.760887 | O172: 1412.219985 | P172: 0.001854066986 | Q172: 0.2181958709 | R172: 13.32270612 | S172: 0.09 | T172: 0.09602105046 | U172: 13.41872717 | V172: 0.3653660018
D173: 43 | E173: 14 | F173: 157 | G173: =+IF(E173>Contribution_Paying_Years,0,$B$14) -> 0 | H173: =IFERROR(SUM(G$17:$G173),"") -> 36.72680848 | I173: 0 | J173: 0.01341872717 | K173: 0.05 | L173: 13.35530844 | M173: 1000 | N173: 1468.533713 | O173: 1455.178405 | P173: 0.002067229912 | Q173: 0.2506823605 | R173: 13.10462608 | S173: 0.09 | T173: 0.09444927713 | U173: 13.19907536 | V173: 0.3593853076
D174: 43 | E174: 14 | F174: 158 | G174: 0 | H174: =IFERROR(SUM(G$17:$G174),"") -> 36.72680848 | I174: 0 | J174: 0.01319907536 | K174: 0.05 | L174: 13.13587629 | M174: 1000 | N174: 1468.533713 | O174: 1455.397837 | P174: 0.002067229912 | Q174: 0.2507201619 | R174: 12.88515612 | S174: 0.09 | T174: 0.09286748617 | U174: 12.97802361 | V174: 0.3533664957
D175: 43 | E175: 14 | F175: 159 | G175: 0 | H175: =IFERROR(SUM(G$17:$G175),"") -> 36.72680848 | I175: 0 | J175: 0.01297802361 | K175: 0.05 | L175: 12.91504559 | M175: 1000 | N175: 1468.533713 | O175: 1455.618668 | P175: 0.002067229912 | Q175: 0.2507582042 | R175: 12.66428738 | S175: 0.09 | T175: 0.09127561373 | U175: 12.755563 | V175: 0.3473093232
D176: 43 | E176: 14 | F176: 160 | G176: 0 | H176: =IFERROR(SUM(G$17:$G176),"") -> 36.72680848 | I176: 0 | J176: 0.012755563 | K176: 0.05 | L176: 12.69280743 | M176: 1000 | N176: 1468.533713 | O176: 1455.840906 | P176: 0.002067229912 | Q176: 0.250796489 | R176: 12.44201094 | S176: 0.09 | T176: 0.08967359558 | U176: 12.53168454 | V176: 0.3412135456
D177: =Age+E177-1 -> 43 | E177: 14 | F177: 161 | G177: 0 | H177: =IFERROR(SUM(G$17:$G177),"") -> 36.72680848 | I177: 0 | J177: 0.01253168454 | K177: 0.05 | L177: 12.46915286 | M177: 1000 | N177: 1468.533713 | O177: 1456.064561 | P177: 0.002067229912 | Q177: 0.2508350178 | R177: 12.21831784 | S177: 0.09 | T177: 0.08806136703 | U177: 12.3063792 | V177: 0.3350789168
D178: 43 | E178: 14 | F178: 162 | G178: 0 | H178: =IFERROR(SUM(G$17:$G178),"") -> 36.72680848 | I178: 0 | J178: 0.0123063792 | K178: 0.05 | L178: 12.24407283 | M178: 1000 | N178: 1468.533713 | O178: 1456.289641 | P178: 0.002067229912 | Q178: 0.2508737921 | R178: 11.99319903 | S178: 0.09 | T178: 0.08643886303 | U178: 12.0796379 | V178: 0.3289051893
D179: 43 | E179: 14 | F179: 163 | G179: 0 | H179: =IFERROR(SUM(G$17:$G179),"") -> 36.72680848 | I179: 0 | J179: 0.0120796379 | K179: 0.05 | L179: 12.01755826 | M179: 1000 | N179: 1468.533713 | O179: 1456.516155 | P179: 0.002067229912 | Q179: 0.2509128136 | R179: 11.76664544 | S179: 0.09 | T179: 0.08480601807 | U179: 11.85145146 | V179: 0.3226921138
D180: 43 | E180: 14 | F180: 164 | G180: 0 | H180: =IFERROR(SUM(G$17:$G180),"") -> 36.72680848 | I180: 0 | J180: 0.01185145146 | K180: 0.05 | L180: 11.78960001 | M180: 1000 | N180: 1468.533713 | O180: 1456.744113 | P180: 0.002067229912 | Q180: 0.2509520838 | R180: 11.53864793 | S180: 0.09 | T180: 0.08316276624 | U180: 11.62181069 | V180: 0.3164394396
D181: 43 | E181: 14 | F181: 165 | G181: 0 | H181: =IFERROR(SUM(G$17:$G181),"") -> 36.72680848 | I181: 0 | J181: 0.01162181069 | K181: 0.05 | L181: 11.56018888 | M181: 1000 | N181: 1468.533713 | O181: 1456.973525 | P181: 0.002067229912 | Q181: 0.2509916042 | R181: 11.30919728 | S181: 0.09 | T181: 0.08150904123 | U181: 11.39070632 | V181: 0.3101469142
D182: 43 | E182: 14 | F182: 166 | G182: 0 | H182: =IFERROR(SUM(G$17:$G182),"") -> 36.72680848 | I182: 0 | J182: 0.01139070632 | K182: 0.05 | L182: 11.32931561 | M182: 1000 | N182: 1468.533713 | O182: 1457.204398 | P182: 0.002067229912 | Q182: 0.2510313766 | R182: 11.07828424 | S182: 0.09 | T182: 0.07984477629 | U182: 11.15812901 | V182: 0.3038142838
D183: 43 | E183: 14 | F183: 167 | G183: 0 | H183: =IFERROR(SUM(G$17:$G183),"") -> 36.72680848 | I183: 0 | J183: 0.01115812901 | K183: 0.05 | L183: 11.09697088 | M183: 1000 | N183: 1468.533713 | O183: 1457.436743 | P183: 0.002067229912 | Q183: 0.2510714024 | R183: 10.84589948 | S183: 0.09 | T183: 0.07816990422 | U183: 10.92406939 | V183: 0.2974412926
D184: 43 | E184: 14 | F184: 168 | G184: 0 | H184: =IFERROR(SUM(G$17:$G184),"") -> 36.72680848 | I184: 0 | J184: 0.01092406939 | K184: 0.05 | L184: 10.86314532 | M184: 1000 | N184: 1468.533713 | O184: 1457.670568 | P184: 0.002067229912 | Q184: 0.2511116833 | R184: 10.61203363 | S184: 0.09 | T184: 0.07648435744 | U184: 10.68851799 | V184: 0.2910276834
D185: 44 | E185: 15 | F185: 169 | G185: =+IF(E185>Contribution_Paying_Years,0,$B$14) -> 0 | H185: =IFERROR(SUM(G$17:$G185),"") -> 36.72680848 | I185: 0 | J185: 0.01068851799 | K185: 0.05 | L185: 10.62782947 | M185: 1000 | N185: 1500 | O185: 1489.372171 | P185: 0.002341709448 | Q185: 0.2906397403 | R185: 10.33718973 | S185: 0.09 | T185: 0.07450346858 | U185: 10.4116932 | V185: 0.2834902795
D186: 44 | E186: 15 | F186: 170 | G186: 0 | H186: =IFERROR(SUM(G$17:$G186),"") -> 36.72680848 | I186: 0 | J186: 0.0104116932 | K186: 0.05 | L186: 10.35128151 | M186: 1000 | N186: 1500 | O186: 1489.648718 | P186: 0.002341709448 | Q186: 0.2906937065 | R186: 10.0605878 | S186: 0.09 | T186: 0.07250990904 | U186: 10.13309771 | V186: 0.2759046628
D187: 44 | E187: 15 | F187: 171 | G187: 0 | H187: =IFERROR(SUM(G$17:$G187),"") -> 36.72680848 | I187: 0 | J187: 0.01013309771 | K187: 0.05 | L187: 10.07296461 | M187: 1000 | N187: 1500 | O187: 1489.927035 | P187: 0.002341709448 | Q187: 0.290748018 | R187: 9.782216595 | S187: 0.09 | T187: 0.07050359775 | U187: 9.852720193 | V187: 0.268270525
D188: 44 | E188: 15 | F188: 172 | G188: 0 | H188: =IFERROR(SUM(G$17:$G188),"") -> 36.72680848 | I188: 0 | J188: 0.009852720193 | K188: 0.05 | L188: 9.792867472 | M188: 1000 | N188: 1500 | O188: 1490.207133 | P188: 0.002341709448 | Q188: 0.2908026768 | R188: 9.502064796 | S188: 0.09 | T188: 0.06848445315 | U188: 9.570549249 | V188: 0.2605875557
D189: 44 | E189: 15 | F189: 173 | G189: 0 | H189: =IFERROR(SUM(G$17:$G189),"") -> 36.72680848 | I189: 0 | J189: 0.009570549249 | K189: 0.05 | L189: 9.5109787 | M189: 1000 | N189: 1500 | O189: 1490.489021 | P189: 0.002341709448 | Q189: 0.2908576853 | R189: 9.220121014 | S189: 0.09 | T189: 0.06645239316 | U189: 9.286573407 | V189: 0.2528554424
D190: 44 | E190: 15 | F190: 174 | G190: 0 | H190: =IFERROR(SUM(G$17:$G190),"") -> 36.72680848 | I190: 0 | J190: 0.009286573407 | K190: 0.05 | L190: 9.227286834 | M190: 1000 | N190: 1500 | O190: 1490.772713 | P190: 0.002341709448 | Q190: 0.2909130456 | R190: 8.936373788 | S190: 0.09 | T190: 0.06440733517 | U190: 9.000781124 | V190: 0.245073871
D191: 44 | E191: 15 | F191: 175 | G191: 0 | H191: =IFERROR(SUM(G$17:$G191),"") -> 36.72680848 | I191: 0 | J191: 0.009000781124 | K191: 0.05 | L191: 8.941780343 | M191: 1000 | N191: 1500 | O191: 1491.05822 | P191: 0.002341709448 | Q191: 0.29096876 | R191: 8.650811582 | S191: 0.09 | T191: 0.06234919602 | U191: 8.713160778 | V191: 0.237242525
D192: 44 | E192: 15 | F192: 176 | G192: 0 | H192: =IFERROR(SUM(G$17:$G192),"") -> 36.72680848 | I192: 0 | J192: 0.008713160778 | K192: 0.05 | L192: 8.654447618 | M192: 1000 | N192: 1500 | O192: 1491.345552 | P192: 0.002341709448 | Q192: 0.2910248308 | R192: 8.363422787 | S192: 0.09 | T192: 0.06027789205 | U192: 8.423700679 | V192: 0.229361086
D193: 44 | E193: 15 | F193: 177 | G193: 0 | H193: =IFERROR(SUM(G$17:$G193),"") -> 36.72680848 | I193: 0 | J193: 0.008423700679 | K193: 0.05 | L193: 8.365276978 | M193: 1000 | N193: 1500 | O193: 1491.634723 | P193: 0.002341709448 | Q193: 0.2910812603 | R193: 8.074195718 | S193: 0.09 | T193: 0.05819333906 | U193: 8.132389057 | V193: 0.2214292337
D194: 44 | E194: 15 | F194: 178 | G194: 0 | H194: =IFERROR(SUM(G$17:$G194),"") -> 36.72680848 | I194: 0 | J194: 0.008132389057 | K194: 0.05 | L194: 8.074256668 | M194: 1000 | N194: 1500 | O194: 1491.925743 | P194: 0.002341709448 | Q194: 0.2911380507 | R194: 7.783118617 | S194: 0.09 | T194: 0.05609545228 | U194: 7.839214069 | V194: 0.2134466455
D195: 44 | E195: 15 | F195: 179 | G195: 0 | H195: =IFERROR(SUM(G$17:$G195),"") -> 36.72680848 | I195: 0 | J195: 0.007839214069 | K195: 0.05 | L195: 7.781374855 | M195: 1000 | N195: 1500 | O195: 1492.218625 | P195: 0.002341709448 | Q195: 0.2911952044 | R195: 7.490179651 | S195: 0.09 | T195: 0.05398414644 | U195: 7.544163797 | V195: 0.2054129969
D196: 44 | E196: 15 | F196: 180 | G196: 0 | H196: =IFERROR(SUM(G$17:$G196),"") -> 36.72680848 | I196: 0 | J196: 0.007544163797 | K196: 0.05 | L196: 7.486619634 | M196: 1000 | N196: 1500 | O196: 1492.51338 | P196: 0.002341709448 | Q196: 0.2912527237 | R196: 7.19536691 | S196: 0.09 | T196: 0.0518593357 | U196: 7.247226246 | V196: 0.1973279614
D197: 45 | E197: 16 | F197: 181 | G197: =+IF(E197>Contribution_Paying_Years,0,$B$14) -> 0 | H197: =IFERROR(SUM(G$17:$G197),"") -> 36.72680848 | I197: 0 | J197: 0.007247226246 | K197: 0.05 | L197: 7.189979019 | M197: 1000 | N197: 1500 | O197: 1492.810021 | P197: 0.002618037375 | Q197: 0.3256860357 | R197: 6.864292984 | S197: 0.09 | T197: 0.04947317887 | U197: 6.913766163 | V197: 0.1882484879
D198: 45 | E198: 16 | F198: 182 | G198: 0 | H198: =IFERROR(SUM(G$17:$G198),"") -> 36.72680848 | I198: 0 | J198: 0.006913766163 | K198: 0.05 | L198: 6.856852396 | M198: 1000 | N198: 1500 | O198: 1493.143148 | P198: 0.002618037375 | Q198: 0.3257587139 | R198: 6.531093683 | S198: 0.09 | T198: 0.04707170378 | U198: 6.578165386 | V198: 0.1791107275
D199: 45 | E199: 16 | F199: 183 | G199: 0 | H199: =IFERROR(SUM(G$17:$G199),"") -> 36.72680848 | I199: 0 | J199: 0.006578165386 | K199: 0.05 | L199: 6.521587221 | M199: 1000 | N199: 1500 | O199: 1493.478413 | P199: 0.002618037375 | Q199: 0.3258318586 | R199: 6.195755362 | S199: 0.09 | T199: 0.04465481208 | U199: 6.240410175 | V199: 0.169914306
D200: 45 | E200: 16 | F200: 184 | G200: 0 | H200: =IFERROR(SUM(G$17:$G200),"") -> 36.72680848 | I200: 0 | J200: 0.006240410175 | K200: 0.05 | L200: 6.184169764 | M200: 1000 | N200: 1500 | O200: 1493.81583 | P200: 0.002618037375 | Q200: 0.3259054729 | R200: 5.858264291 | S200: 0.09 | T200: 0.04222240482 | U200: 5.900486696 | V200: 0.1606588468
D201: 45 | E201: =ROUNDUP(F201/12,0) -> 16 | F201: 185 | G201: 0 | H201: =IFERROR(SUM(G$17:$G201),"") -> 36.72680848 | I201: =IFERROR(VLOOKUP(E201,Parameters,6,FALSE)*G201,0) -> 0 | J201: 0.005900486696 | K201: 0.05 | L201: 5.84458621 | M201: 1000 | N201: 1500 | O201: 1494.155414 | P201: 0.002618037375 | Q201: 0.3259795597 | R201: 5.51860665 | S201: 0.09 | T201: =MAX(0,(R201*(1+S201)^(1/12)-R201)) -> 0.03977438238 | U201: =+T201+R201 -> 5.558381032 | V201: 0.1513439709
D202: 45 | E202: 16 | F202: 186 | G202: 0 | H202: =IFERROR(SUM(G$17:$G202),"") -> 36.72680848 | I202: 0 | J202: 0.005558381032 | K202: 0.05 | L202: 5.502822651 | M202: 1000 | N202: 1500 | O202: 1494.497177 | P202: 0.002618037375 | Q202: 0.3260541222 | R202: 5.176768529 | S202: 0.09 | T202: 0.03731064452 | U202: 5.214079173 | V202: 0.1419692968
... 618 more rows

Sheet Variables
A3: illustration B14 | B3: ??
A7: Variable Values of Sheets ( Illustration B9) | B7: 10 | C7: =B7+1 -> 11 | D7: =C7+1 -> 12 | E7: 13 | F7: 14 | G7: 15 | H7: 16 | I7: 17 | J7: 18 | K7: 19 | L7: 20 | M7: 21 | N7: 22 | O7: 23 | P7: 24 | Q7: 25 | R7: 26 | S7: 27 | T7: 28 | U7: 29 | V7: 30 | W7: 31 | X7: 32 | Y7: 33 | Z7: 34 | AA7: 35 | AB7: 36 | AC7: 37 | AD7: 38 | AE7: 39 | AF7: 40 | AG7: 41 | AH7: 42 | AI7: 43 | AJ7: 44 | AK7: 45 | AL7: 46 | AM7: 47 | AN7: 48 | AO7: 49 | AP7: 50 | AQ7: 51 | AR7: 52 | AS7: 53 | AT7: 54 | AU7: 55 | AV7: 56 | AW7: 57 | AX7: 58 | AY7: 59 | AZ7: 60 | BA7: 61 | BB7: 62 | BC7: 63 | BD7: 64 | BE7: 65 | BF7: 66 | BG7: 67
A8: Variable Values of Sheets ( Illustration B4)
A9: 18 | B9: ?? | C9: ?? | D9: ?? | E9: ?? | F9: ?? | G9: ?? | H9: ?? | I9: ?? | J9: ?? | K9: ?? | L9: ?? | M9: ?? | N9: ?? | O9: ?? | P9: ?? | Q9: ?? | R9: ?? | S9: ?? | T9: ?? | U9: ?? | V9: ?? | W9: ?? | X9: ?? | Y9: ?? | Z9: ?? | AA9: ?? | AB9: ?? | AC9: ?? | AD9: ?? | AE9: ?? | AF9: ?? | AG9: ?? | AH9: ?? | AI9: ?? | AJ9: ?? | AK9: ?? | AL9: ?? | AM9: ?? | AN9: ?? | AO9: ?? | AP9: ?? | AQ9: ?? | AR9: ?? | AS9: ?? | AT9: ?? | AU9: ?? | AV9: ?? | AW9: ?? | AX9: ?? | AY9: ?? | AZ9: ?? | BA9: ?? | BB9: ?? | BC9: ?? | BD9: ?? | BE9: ??
A10: 19 | B10: ?? | C10: ?? | D10: ?? | E10: ?? | F10: ?? | G10: ?? | H10: ?? | I10: ?? | J10: ?? | K10: ?? | L10: ?? | M10: ?? | N10: ?? | O10: ?? | P10: ?? | Q10: ?? | R10: ?? | S10: ?? | T10: ?? | U10: ?? | V10: ?? | W10: ?? | X10: ?? | Y10: ?? | Z10: ?? | AA10: ?? | AB10: ?? | AC10: ?? | AD10: ?? | AE10: ?? | AF10: ?? | AG10: ?? | AH10: ?? | AI10: ?? | AJ10: ?? | AK10: ?? | AL10: ?? | AM10: ?? | AN10: ?? | AO10: ?? | AP10: ?? | AQ10: ?? | AR10: ?? | AS10: ?? | AT10: ?? | AU10: ?? | AV10: ?? | AW10: ?? | AX10: ?? | AY10: ?? | AZ10: ?? | BA10: ?? | BB10: ?? | BC10: ?? | BD10: ?? | BE10: ??
A11: =A10+1 -> 20 | B11: ?? | C11: ?? | D11: ?? | E11: ?? | F11: ?? | G11: ?? | H11: ?? | I11: ?? | J11: ?? | K11: ?? | L11: ?? | M11: ?? | N11: ?? | O11: ?? | P11: ?? | Q11: ?? | R11: ?? | S11: ?? | T11: ?? | U11: ?? | V11: ?? | W11: ?? | X11: ?? | Y11: ?? | Z11: ?? | AA11: ?? | AB11: ?? | AC11: ?? | AD11: ?? | AE11: ?? | AF11: ?? | AG11: ?? | AH11: ?? | AI11: ?? | AJ11: ?? | AK11: ?? | AL11: ?? | AM11: ?? | AN11: ?? | AO11: ?? | AP11: ?? | AQ11: ?? | AR11: ?? | AS11: ?? | AT11: ?? | AU11: ?? | AV11: ?? | AW11: ?? | AX11: ?? | AY11: ?? | AZ11: ?? | BA11: ?? | BB11: ?? | BC11: ?? | BD11: ??
A12: 21 | B12: ?? | C12: ?? | D12: ?? | E12: ?? | F12: ?? | G12: ?? | H12: ?? | I12: ?? | J12: ?? | K12: ?? | L12: ?? | M12: ?? | N12: ?? | O12: ?? | P12: ?? | Q12: ?? | R12: ?? | S12: ?? | T12: ?? | U12: ?? | V12: ?? | W12: ?? | X12: ?? | Y12: ?? | Z12: ?? | AA12: ?? | AB12: ?? | AC12: ?? | AD12: ?? | AE12: ?? | AF12: ?? | AG12: ?? | AH12: ?? | AI12: ?? | AJ12: ?? | AK12: ?? | AL12: ?? | AM12: ?? | AN12: ?? | AO12: ?? | AP12: ?? | AQ12: ?? | AR12: ?? | AS12: ?? | AT12: ?? | AU12: ?? | AV12: ?? | AW12: ?? | AX12: ?? | AY12: ?? | AZ12: ?? | BA12: ?? | BB12: ?? | BC12: ??
A13: 22 | B13: ?? | C13: ?? | D13: ?? | E13: ?? | F13: ?? | G13: ?? | H13: ?? | I13: ?? | J13: ?? | K13: ?? | L13: ?? | M13: ?? | N13: ?? | O13: ?? | P13: ?? | Q13: ?? | R13: ?? | S13: ?? | T13: ?? | U13: ?? | V13: ?? | W13: ?? | X13: ?? | Y13: ?? | Z13: ?? | AA13: ?? | AB13: ?? | AC13: ?? | AD13: ?? | AE13: ?? | AF13: ?? | AG13: ?? | AH13: ?? | AI13: ?? | AJ13: ?? | AK13: ?? | AL13: ?? | AM13: ?? | AN13: ?? | AO13: ?? | AP13: ?? | AQ13: ?? | AR13: ?? | AS13: ?? | AT13: ?? | AU13: ?? | AV13: ?? | AW13: ?? | AX13: ?? | AY13: ?? | AZ13: ?? | BA13: ?? | BB13: ??
A14: 23 | B14: ?? | C14: ?? | D14: ?? | E14: ?? | F14: ?? | G14: ?? | H14: ?? | I14: ?? | J14: ?? | K14: ?? | L14: ?? | M14: ?? | N14: ?? | O14: ?? | P14: ?? | Q14: ?? | R14: ?? | S14: ?? | T14: ?? | U14: ?? | V14: ?? | W14: ?? | X14: ?? | Y14: ?? | Z14: ?? | AA14: ?? | AB14: ?? | AC14: ?? | AD14: ?? | AE14: ?? | AF14: ?? | AG14: ?? | AH14: ?? | AI14: ?? | AJ14: ?? | AK14: ?? | AL14: ?? | AM14: ?? | AN14: ?? | AO14: ?? | AP14: ?? | AQ14: ?? | AR14: ?? | AS14: ?? | AT14: ?? | AU14: ?? | AV14: ?? | AW14: ?? | AX14: ?? | AY14: ?? | AZ14: ?? | BA14: ??
A15: 24 | B15: ?? | C15: ?? | D15: ?? | E15: ?? | F15: ?? | G15: ?? | H15: ?? | I15: ?? | J15: ?? | K15: ?? | L15: ?? | M15: ?? | N15: ?? | O15: ?? | P15: ?? | Q15: ?? | R15: ?? | S15: ?? | T15: ?? | U15: ?? | V15: ?? | W15: ?? | X15: ?? | Y15: ?? | Z15: ?? | AA15: ?? | AB15: ?? | AC15: ?? | AD15: ?? | AE15: ?? | AF15: ?? | AG15: ?? | AH15: ?? | AI15: ?? | AJ15: ?? | AK15: ?? | AL15: ?? | AM15: ?? | AN15: ?? | AO15: ?? | AP15: ?? | AQ15: ?? | AR15: ?? | AS15: ?? | AT15: ?? | AU15: ?? | AV15: ?? | AW15: ?? | AX15: ?? | AY15: ?? | AZ15: ??
A16: 25 | B16: ?? | C16: ?? | D16: ?? | E16: ?? | F16: ?? | G16: ?? | H16: ?? | I16: ?? | J16: ?? | K16: ?? | L16: ?? | M16: ?? | N16: ?? | O16: ?? | P16: ?? | Q16: ?? | R16: ?? | S16: ?? | T16: ?? | U16: ?? | V16: ?? | W16: ?? | X16: ?? | Y16: ?? | Z16: ?? | AA16: ?? | AB16: ?? | AC16: ?? | AD16: ?? | AE16: ?? | AF16: ?? | AG16: ?? | AH16: ?? | AI16: ?? | AJ16: ?? | AK16: ?? | AL16: ?? | AM16: ?? | AN16: ?? | AO16: ?? | AP16: ?? | AQ16: ?? | AR16: ?? | AS16: ?? | AT16: ?? | AU16: ?? | AV16: ?? | AW16: ?? | AX16: ?? | AY16: ??
A17: 26 | B17: ?? | C17: ?? | D17: ?? | E17: ?? | F17: ?? | G17: ?? | H17: ?? | I17: ?? | J17: ?? | K17: ?? | L17: ?? | M17: ?? | N17: ?? | O17: ?? | P17: ?? | Q17: ?? | R17: ?? | S17: ?? | T17: ?? | U17: ?? | V17: ?? | W17: ?? | X17: ?? | Y17: ?? | Z17: ?? | AA17: ?? | AB17: ?? | AC17: ?? | AD17: ?? | AE17: ?? | AF17: ?? | AG17: ?? | AH17: ?? | AI17: ?? | AJ17: ?? | AK17: ?? | AL17: ?? | AM17: ?? | AN17: ?? | AO17: ?? | AP17: ?? | AQ17: ?? | AR17: ?? | AS17: ?? | AT17: ?? | AU17: ?? | AV17: ?? | AW17: ?? | AX17: ??
A18: 27 | B18: ?? | C18: ?? | D18: ?? | E18: ?? | F18: ?? | G18: ?? | H18: ?? | I18: ?? | J18: ?? | K18: ?? | L18: ?? | M18: ?? | N18: ?? | O18: ?? | P18: ?? | Q18: ?? | R18: ?? | S18: ?? | T18: ?? | U18: ?? | V18: ?? | W18: ?? | X18: ?? | Y18: ?? | Z18: ?? | AA18: ?? | AB18: ?? | AC18: ?? | AD18: ?? | AE18: ?? | AF18: ?? | AG18: ?? | AH18: ?? | AI18: ?? | AJ18: ?? | AK18: ?? | AL18: ?? | AM18: ?? | AN18: ?? | AO18: ?? | AP18: ?? | AQ18: ?? | AR18: ?? | AS18: ?? | AT18: ?? | AU18: ?? | AV18: ?? | AW18: ??
A19: 28 | B19: ?? | C19: ?? | D19: ?? | E19: ?? | F19: ?? | G19: ?? | H19: ?? | I19: ?? | J19: ?? | K19: ?? | L19: ?? | M19: ?? | N19: ?? | O19: ?? | P19: ?? | Q19: ?? | R19: ?? | S19: ?? | T19: ?? | U19: ?? | V19: ?? | W19: ?? | X19: ?? | Y19: ?? | Z19: ?? | AA19: ?? | AB19: ?? | AC19: ?? | AD19: ?? | AE19: ?? | AF19: ?? | AG19: ?? | AH19: ?? | AI19: ?? | AJ19: ?? | AK19: ?? | AL19: ?? | AM19: ?? | AN19: ?? | AO19: ?? | AP19: ?? | AQ19: ?? | AR19: ?? | AS19: ?? | AT19: ?? | AU19: ?? | AV19: ??
A20: 29 | B20: ?? | C20: ?? | D20: ?? | E20: ?? | F20: ?? | G20: ?? | H20: ?? | I20: ?? | J20: ?? | K20: ?? | L20: ?? | M20: ?? | N20: ?? | O20: ?? | P20: ?? | Q20: ?? | R20: ?? | S20: ?? | T20: ?? | U20: ?? | V20: ?? | W20: ?? | X20: ?? | Y20: ?? | Z20: ?? | AA20: ?? | AB20: ?? | AC20: ?? | AD20: ?? | AE20: ?? | AF20: ?? | AG20: ?? | AH20: ?? | AI20: ?? | AJ20: ?? | AK20: ?? | AL20: ?? | AM20: ?? | AN20: ?? | AO20: ?? | AP20: ?? | AQ20: ?? | AR20: ?? | AS20: ?? | AT20: ?? | AU20: ??
A21: 30 | B21: ?? | C21: ?? | D21: ?? | E21: ?? | F21: ?? | G21: ?? | H21: ?? | I21: ?? | J21: ?? | K21: ?? | L21: ?? | M21: ?? | N21: ?? | O21: ?? | P21: ?? | Q21: ?? | R21: ?? | S21: ?? | T21: ?? | U21: ?? | V21: ?? | W21: ?? | X21: ?? | Y21: ?? | Z21: ?? | AA21: ?? | AB21: ?? | AC21: ?? | AD21: ?? | AE21: ?? | AF21: ?? | AG21: ?? | AH21: ?? | AI21: ?? | AJ21: ?? | AK21: ?? | AL21: ?? | AM21: ?? | AN21: ?? | AO21: ?? | AP21: ?? | AQ21: ?? | AR21: ?? | AS21: ?? | AT21: ??
A22: 31 | B22: ?? | C22: ?? | D22: ?? | E22: ?? | F22: ?? | G22: ?? | H22: ?? | I22: ?? | J22: ?? | K22: ?? | L22: ?? | M22: ?? | N22: ?? | O22: ?? | P22: ?? | Q22: ?? | R22: ?? | S22: ?? | T22: ?? | U22: ?? | V22: ?? | W22: ?? | X22: ?? | Y22: ?? | Z22: ?? | AA22: ?? | AB22: ?? | AC22: ?? | AD22: ?? | AE22: ?? | AF22: ?? | AG22: ?? | AH22: ?? | AI22: ?? | AJ22: ?? | AK22: ?? | AL22: ?? | AM22: ?? | AN22: ?? | AO22: ?? | AP22: ?? | AQ22: ?? | AR22: ?? | AS22: ??
A23: 32 | B23: ?? | C23: ?? | D23: ?? | E23: ?? | F23: ?? | G23: ?? | H23: ?? | I23: ?? | J23: ?? | K23: ?? | L23: ?? | M23: ?? | N23: ?? | O23: ?? | P23: ?? | Q23: ?? | R23: ?? | S23: ?? | T23: ?? | U23: ?? | V23: ?? | W23: ?? | X23: ?? | Y23: ?? | Z23: ?? | AA23: ?? | AB23: ?? | AC23: ?? | AD23: ?? | AE23: ?? | AF23: ?? | AG23: ?? | AH23: ?? | AI23: ?? | AJ23: ?? | AK23: ?? | AL23: ?? | AM23: ?? | AN23: ?? | AO23: ?? | AP23: ?? | AQ23: ?? | AR23: ??
A24: 33 | B24: ?? | C24: ?? | D24: ?? | E24: ?? | F24: ?? | G24: ?? | H24: ?? | I24: ?? | J24: ?? | K24: ?? | L24: ?? | M24: ?? | N24: ?? | O24: ?? | P24: ?? | Q24: ?? | R24: ?? | S24: ?? | T24: ?? | U24: ?? | V24: ?? | W24: ?? | X24: ?? | Y24: ?? | Z24: ?? | AA24: ?? | AB24: ?? | AC24: ?? | AD24: ?? | AE24: ?? | AF24: ?? | AG24: ?? | AH24: ?? | AI24: ?? | AJ24: ?? | AK24: ?? | AL24: ?? | AM24: ?? | AN24: ?? | AO24: ?? | AP24: ?? | AQ24: ??
A25: 34 | B25: ?? | C25: ?? | D25: ?? | E25: ?? | F25: ?? | G25: ?? | H25: ?? | I25: ?? | J25: ?? | K25: ?? | L25: ?? | M25: ?? | N25: ?? | O25: ?? | P25: ?? | Q25: ?? | R25: ?? | S25: ?? | T25: ?? | U25: ?? | V25: ?? | W25: ?? | X25: ?? | Y25: ?? | Z25: ?? | AA25: ?? | AB25: ?? | AC25: ?? | AD25: ?? | AE25: ?? | AF25: ?? | AG25: ?? | AH25: ?? | AI25: ?? | AJ25: ?? | AK25: ?? | AL25: ?? | AM25: ?? | AN25: ?? | AO25: ?? | AP25: ??
A26: 35 | B26: ?? | C26: ?? | D26: ?? | E26: ?? | F26: ?? | G26: ?? | H26: ?? | I26: ?? | J26: ?? | K26: ?? | L26: ?? | M26: ?? | N26: ?? | O26: ?? | P26: ?? | Q26: ?? | R26: ?? | S26: ?? | T26: ?? | U26: ?? | V26: ?? | W26: ?? | X26: ?? | Y26: ?? | Z26: ?? | AA26: ?? | AB26: ?? | AC26: ?? | AD26: ?? | AE26: ?? | AF26: ?? | AG26: ?? | AH26: ?? | AI26: ?? | AJ26: ?? | AK26: ?? | AL26: ?? | AM26: ?? | AN26: ?? | AO26: ??
A27: 36 | B27: ?? | C27: ?? | D27: ?? | E27: ?? | F27: ?? | G27: ?? | H27: ?? | I27: ?? | J27: ?? | K27: ?? | L27: ?? | M27: ?? | N27: ?? | O27: ?? | P27: ?? | Q27: ?? | R27: ?? | S27: ?? | T27: ?? | U27: ?? | V27: ?? | W27: ?? | X27: ?? | Y27: ?? | Z27: ?? | AA27: ?? | AB27: ?? | AC27: ?? | AD27: ?? | AE27: ?? | AF27: ?? | AG27: ?? | AH27: ?? | AI27: ?? | AJ27: ?? | AK27: ?? | AL27: ?? | AM27: ?? | AN27: ??
A28: 37 | B28: ?? | C28: ?? | D28: ?? | E28: ?? | F28: ?? | G28: ?? | H28: ?? | I28: ?? | J28: ?? | K28: ?? | L28: ?? | M28: ?? | N28: ?? | O28: ?? | P28: ?? | Q28: ?? | R28: ?? | S28: ?? | T28: ?? | U28: ?? | V28: ?? | W28: ?? | X28: ?? | Y28: ?? | Z28: ?? | AA28: ?? | AB28: ?? | AC28: ?? | AD28: ?? | AE28: ?? | AF28: ?? | AG28: ?? | AH28: ?? | AI28: ?? | AJ28: ?? | AK28: ?? | AL28: ?? | AM28: ??
A29: 38 | B29: ?? | C29: ?? | D29: ?? | E29: ?? | F29: ?? | G29: ?? | H29: ?? | I29: ?? | J29: ?? | K29: ?? | L29: ?? | M29: ?? | N29: ?? | O29: ?? | P29: ?? | Q29: ?? | R29: ?? | S29: ?? | T29: ?? | U29: ?? | V29: ?? | W29: ?? | X29: ?? | Y29: ?? | Z29: ?? | AA29: ?? | AB29: ?? | AC29: ?? | AD29: ?? | AE29: ?? | AF29: ?? | AG29: ?? | AH29: ?? | AI29: ?? | AJ29: ?? | AK29: ?? | AL29: ??
A30: 39 | B30: ?? | C30: ?? | D30: ?? | E30: ?? | F30: ?? | G30: ?? | H30: ?? | I30: ?? | J30: ?? | K30: ?? | L30: ?? | M30: ?? | N30: ?? | O30: ?? | P30: ?? | Q30: ?? | R30: ?? | S30: ?? | T30: ?? | U30: ?? | V30: ?? | W30: ?? | X30: ?? | Y30: ?? | Z30: ?? | AA30: ?? | AB30: ?? | AC30: ?? | AD30: ?? | AE30: ?? | AF30: ?? | AG30: ?? | AH30: ?? | AI30: ?? | AJ30: ?? | AK30: ??
A31: 40 | B31: ?? | C31: ?? | D31: ?? | E31: ?? | F31: ?? | G31: ?? | H31: ?? | I31: ?? | J31: ?? | K31: ?? | L31: ?? | M31: ?? | N31: ?? | O31: ?? | P31: ?? | Q31: ?? | R31: ?? | S31: ?? | T31: ?? | U31: ?? | V31: ?? | W31: ?? | X31: ?? | Y31: ?? | Z31: ?? | AA31: ?? | AB31: ?? | AC31: ?? | AD31: ?? | AE31: ?? | AF31: ?? | AG31: ?? | AH31: ?? | AI31: ?? | AJ31: ??
A32: 41 | B32: ?? | C32: ?? | D32: ?? | E32: ?? | F32: ?? | G32: ?? | H32: ?? | I32: ?? | J32: ?? | K32: ?? | L32: ?? | M32: ?? | N32: ?? | O32: ?? | P32: ?? | Q32: ?? | R32: ?? | S32: ?? | T32: ?? | U32: ?? | V32: ?? | W32: ?? | X32: ?? | Y32: ?? | Z32: ?? | AA32: ?? | AB32: ?? | AC32: ?? | AD32: ?? | AE32: ?? | AF32: ?? | AG32: ?? | AH32: ?? | AI32: ??
A33: 42 | B33: ?? | C33: ?? | D33: ?? | E33: ?? | F33: ?? | G33: ?? | H33: ?? | I33: ?? | J33: ?? | K33: ?? | L33: ?? | M33: ?? | N33: ?? | O33: ?? | P33: ?? | Q33: ?? | R33: ?? | S33: ?? | T33: ?? | U33: ?? | V33: ?? | W33: ?? | X33: ?? | Y33: ?? | Z33: ?? | AA33: ?? | AB33: ?? | AC33: ?? | AD33: ?? | AE33: ?? | AF33: ?? | AG33: ?? | AH33: ??
A34: 43 | B34: ?? | C34: ?? | D34: ?? | E34: ?? | F34: ?? | G34: ?? | H34: ?? | I34: ?? | J34: ?? | K34: ?? | L34: ?? | M34: ?? | N34: ?? | O34: ?? | P34: ?? | Q34: ?? | R34: ?? | S34: ?? | T34: ?? | U34: ?? | V34: ?? | W34: ?? | X34: ?? | Y34: ?? | Z34: ?? | AA34: ?? | AB34: ?? | AC34: ?? | AD34: ?? | AE34: ?? | AF34: ?? | AG34: ??
A35: 44 | B35: ?? | C35: ?? | D35: ?? | E35: ?? | F35: ?? | G35: ?? | H35: ?? | I35: ?? | J35: ?? | K35: ?? | L35: ?? | M35: ?? | N35: ?? | O35: ?? | P35: ?? | Q35: ?? | R35: ?? | S35: ?? | T35: ?? | U35: ?? | V35: ?? | W35: ?? | X35: ?? | Y35: ?? | Z35: ?? | AA35: ?? | AB35: ?? | AC35: ?? | AD35: ?? | AE35: ?? | AF35: ??
A36: 45 | B36: ?? | C36: ?? | D36: ?? | E36: ?? | F36: ?? | G36: ?? | H36: ?? | I36: ?? | J36: ?? | K36: ?? | L36: ?? | M36: ?? | N36: ?? | O36: ?? | P36: ?? | Q36: ?? | R36: ?? | S36: ?? | T36: ?? | U36: ?? | V36: ?? | W36: ?? | X36: ?? | Y36: ?? | Z36: ?? | AA36: ?? | AB36: ?? | AC36: ?? | AD36: ?? | AE36: ??
A37: 46 | B37: ?? | C37: ?? | D37: ?? | E37: ?? | F37: ?? | G37: ?? | H37: ?? | I37: ?? | J37: ?? | K37: ?? | L37: ?? | M37: ?? | N37: ?? | O37: ?? | P37: ?? | Q37: ?? | R37: ?? | S37: ?? | T37: ?? | U37: ?? | V37: ?? | W37: ?? | X37: ?? | Y37: ?? | Z37: ?? | AA37: ?? | AB37: ?? | AC37: ?? | AD37: ??
A38: 47 | B38: ?? | C38: ?? | D38: ?? | E38: ?? | F38: ?? | G38: ?? | H38: ?? | I38: ?? | J38: ?? | K38: ?? | L38: ?? | M38: ?? | N38: ?? | O38: ?? | P38: ?? | Q38: ?? | R38: ?? | S38: ?? | T38: ?? | U38: ?? | V38: ?? | W38: ?? | X38: ?? | Y38: ?? | Z38: ?? | AA38: ?? | AB38: ?? | AC38: ??
A39: 48 | B39: ?? | C39: ?? | D39: ?? | E39: ?? | F39: ?? | G39: ?? | H39: ?? | I39: ?? | J39: ?? | K39: ?? | L39: ?? | M39: ?? | N39: ?? | O39: ?? | P39: ?? | Q39: ?? | R39: ?? | S39: ?? | T39: ?? | U39: ?? | V39: ?? | W39: ?? | X39: ?? | Y39: ?? | Z39: ?? | AA39: ?? | AB39: ??
A40: 49 | B40: ?? | C40: ?? | D40: ?? | E40: ?? | F40: ?? | G40: ?? | H40: ?? | I40: ?? | J40: ?? | K40: ?? | L40: ?? | M40: ?? | N40: ?? | O40: ?? | P40: ?? | Q40: ?? | R40: ?? | S40: ?? | T40: ?? | U40: ?? | V40: ?? | W40: ?? | X40: ?? | Y40: ?? | Z40: ?? | AA40: ??
A41: 50 | B41: ?? | C41: ?? | D41: ?? | E41: ?? | F41: ?? | G41: ?? | H41: ?? | I41: ?? | J41: ?? | K41: ?? | L41: ?? | M41: ?? | N41: ?? | O41: ?? | P41: ?? | Q41: ?? | R41: ?? | S41: ?? | T41: ?? | U41: ?? | V41: ?? | W41: ?? | X41: ?? | Y41: ?? | Z41: ??
A42: 51 | B42: ?? | C42: ?? | D42: ?? | E42: ?? | F42: ?? | G42: ?? | H42: ?? | I42: ?? | J42: ?? | K42: ?? | L42: ?? | M42: ?? | N42: ?? | O42: ?? | P42: ?? | Q42: ?? | R42: ?? | S42: ?? | T42: ?? | U42: ?? | V42: ?? | W42: ?? | X42: ?? | Y42: ??
A43: 52 | B43: ?? | C43: ?? | D43: ?? | E43: ?? | F43: ?? | G43: ?? | H43: ?? | I43: ?? | J43: ?? | K43: ?? | L43: ?? | M43: ?? | N43: ?? | O43: ?? | P43: ?? | Q43: ?? | R43: ?? | S43: ?? | T43: ?? | U43: ?? | V43: ?? | W43: ?? | X43: ??
A44: 53 | B44: ?? | C44: ?? | D44: ?? | E44: ?? | F44: ?? | G44: ?? | H44: ?? | I44: ?? | J44: ?? | K44: ?? | L44: ?? | M44: ?? | N44: ?? | O44: ?? | P44: ?? | Q44: ?? | R44: ?? | S44: ?? | T44: ?? | U44: ?? | V44: ?? | W44: ??
A45: 54 | B45: ?? | C45: ?? | D45: ?? | E45: ?? | F45: ?? | G45: ?? | H45: ?? | I45: ?? | J45: ?? | K45: ?? | L45: ?? | M45: ?? | N45: ?? | O45: ?? | P45: ?? | Q45: ?? | R45: ?? | S45: ?? | T45: ?? | U45: ?? | V45: ??
A46: 55 | B46: ?? | C46: ?? | D46: ?? | E46: ?? | F46: ?? | G46: ?? | H46: ?? | I46: ?? | J46: ?? | K46: ?? | L46: ?? | M46: ?? | N46: ?? | O46: ?? | P46: ?? | Q46: ?? | R46: ?? | S46: ?? | T46: ?? | U46: ??
A47: 56 | B47: ?? | C47: ?? | D47: ?? | E47: ?? | F47: ?? | G47: ?? | H47: ?? | I47: ?? | J47: ?? | K47: ?? | L47: ?? | M47: ?? | N47: ?? | O47: ?? | P47: ?? | Q47: ?? | R47: ?? | S47: ?? | T47: ??
A48: 57 | B48: ?? | C48: ?? | D48: ?? | E48: ?? | F48: ?? | G48: ?? | H48: ?? | I48: ?? | J48: ?? | K48: ?? | L48: ?? | M48: ?? | N48: ?? | O48: ?? | P48: ?? | Q48: ?? | R48: ?? | S48: ??
A49: 58 | B49: ?? | C49: ?? | D49: ?? | E49: ?? | F49: ?? | G49: ?? | H49: ?? | I49: ?? | J49: ?? | K49: ?? | L49: ?? | M49: ?? | N49: ?? | O49: ?? | P49: ?? | Q49: ?? | R49: ??
A50: 59 | B50: ?? | C50: ?? | D50: ?? | E50: ?? | F50: ?? | G50: ?? | H50: ?? | I50: ?? | J50: ?? | K50: ?? | L50: ?? | M50: ?? | N50: ?? | O50: ?? | P50: ?? | Q50: ??
A51: 60 | B51: ?? | C51: ?? | D51: ?? | E51: ?? | F51: ?? | G51: ?? | H51: ?? | I51: ?? | J51: ?? | K51: ?? | L51: ?? | M51: ?? | N51: ?? | O51: ?? | P51: ??
A52: 61 | B52: ?? | C52: ?? | D52: ?? | E52: ?? | F52: ?? | G52: ?? | H52: ?? | I52: ?? | J52: ?? | K52: ?? | L52: ?? | M52: ?? | N52: ?? | O52: ??
A53: 62 | B53: ?? | C53: ?? | D53: ?? | E53: ?? | F53: ?? | G53: ?? | H53: ?? | I53: ?? | J53: ?? | K53: ?? | L53: ?? | M53: ?? | N53: ??
A54: 63 | B54: ?? | C54: ?? | D54: ?? | E54: ?? | F54: ?? | G54: ?? | H54: ?? | I54: ?? | J54: ?? | K54: ?? | L54: ?? | M54: ??
A55: 64 | B55: ?? | C55: ?? | D55: ?? | E55: ?? | F55: ?? | G55: ?? | H55: ?? | I55: ?? | J55: ?? | K55: ?? | L55: ??
A56: 65 | B56: ?? | C56: ?? | D56: ?? | E56: ?? | F56: ?? | G56: ?? | H56: ?? | I56: ?? | J56: ?? | K56: ??

Sheet Parameters (hidden)
A1: 1 | B1: =+A1+1 -> 2 | C1: =+B1+1 -> 3 | D1: 4 | E1: 5 | F1: 6 | G1: 7 | H1: 8 | I1: 9 | J1: 10
A2: Takaful POL YEAR | B2: COMM | C2: LAPSE | D2: YIELD | E2: SURRENDER CHARGES | F2: Target Premium Loading Wakala Fees | G2: Excess Premium Loading Wakala Fees | H2: Monthly Admin and Fund Management Fees | I2: Monthly Per Unit Charge UW Fees (Per Mille) | J2: Wakala Fees "Risk"
A3: 1 | B3: 0.1 | C3: 0.2 | D3: 0.069 | E3: 1.5 | F3: 0.7 | G3: 0.1 | H3: 0.001 | I3: 0.05 | J3: 0
A4: =A3+1 -> 2 | B4: 0.05 | C4: 0.175 | D4: 0.069 | E4: 1.5 | F4: 0.4 | G4: 0.05 | H4: 0.001 | I4: 0.05 | J4: 0
A5: =A4+1 -> 3 | B5: 0.05 | C5: 0.1 | D5: 0.069 | E5: 1.1 | F5: 0.2 | G5: 0.05 | H5: 0.001 | I5: 0.05 | J5: 0
A6: 4 | B6: 0.05 | C6: 0.05 | D6: 0.069 | E6: 0.55 | F6: 0.1 | G6: 0.05 | H6: 0.001 | I6: 0.05 | J6: 0
A7: 5 | B7: 0.05 | C7: 0.05 | D7: 0.069 | E7: 0.45 | F7: 0.1 | G7: 0.05 | H7: 0.001 | I7: 0.05 | J7: 0
A8: 6 | B8: 0.05 | C8: 0.05 | D8: 0.069 | E8: 0.2 | F8: 0.05 | G8: 0.05 | H8: 0.001 | I8: 0.05 | J8: 0
A9: 7 | B9: 0 | C9: 0.05 | D9: 0.069 | E9: 0.2 | F9: 0.05 | G9: 0.05 | H9: 0.001 | I9: 0.05 | J9: 0
A10: 8 | B10: 0 | C10: 0.05 | D10: 0.069 | E10: 0.1 | F10: 0.05 | G10: 0.05 | H10: 0.001 | I10: 0.05 | J10: 0
A11: 9 | B11: 0 | C11: 0.05 | D11: 0.069 | E11: 0.1 | F11: 0.05 | G11: 0.05 | H11: 0.001 | I11: 0.05 | J11: 0
A12: 10 | B12: 0 | C12: 0.05 | D12: 0.069 | E12: 0 | F12: 0.05 | G12: 0.05 | H12: 0.001 | I12: 0.05 | J12: 0
A13: 11 | B13: 0 | C13: 0.05 | D13: 0.069 | E13: 0 | F13: 0.05 | G13: 0.05 | H13: 0.001 | I13: 0.05 | J13: 0
A14: 12 | B14: 0 | C14: 0.05 | D14: 0.069 | E14: 0 | F14: 0.05 | G14: 0.05 | H14: 0.001 | I14: 0.05 | J14: 0
A15: 13 | B15: 0 | C15: 0.05 | D15: 0.069 | E15: 0 | F15: 0.05 | G15: 0.05 | H15: 0.001 | I15: 0.05 | J15: 0
A16: 14 | B16: 0 | C16: 0.05 | D16: 0.069 | E16: 0 | F16: 0.05 | G16: 0.05 | H16: 0.001 | I16: 0.05 | J16: 0
A17: 15 | B17: 0 | C17: 0.05 | D17: 0.069 | E17: 0 | F17: 0.05 | G17: 0.05 | H17: 0.001 | I17: 0.05 | J17: 0
A18: 16 | B18: 0 | C18: 0.05 | D18: 0.069 | E18: 0 | F18: 0.05 | G18: 0.05 | H18: 0.001 | I18: 0.05 | J18: 0
A19: 17 | B19: 0 | C19: 0.05 | D19: 0.069 | E19: 0 | F19: 0.05 | G19: 0.05 | H19: 0.001 | I19: 0.05 | J19: 0
A20: 18 | B20: 0 | C20: 0.05 | D20: 0.069 | E20: 0 | F20: 0.05 | G20: 0.05 | H20: 0.001 | I20: 0.05 | J20: 0
A21: 19 | B21: 0 | C21: 0.05 | D21: 0.069 | E21: 0 | F21: 0.05 | G21: 0.05 | H21: 0.001 | I21: 0.05 | J21: 0
A22: 20 | B22: 0 | C22: 0.05 | D22: 0.069 | E22: 0 | F22: 0.05 | G22: 0.05 | H22: 0.001 | I22: 0.05 | J22: 0
A23: 21 | B23: 0 | C23: 0.05 | D23: 0.069 | E23: 0 | F23: 0.05 | G23: 0.05 | H23: 0.001 | I23: 0.05 | J23: 0
A24: 22 | B24: 0 | C24: 0.05 | D24: 0.069 | E24: 0 | F24: 0.05 | G24: 0.05 | H24: 0.001 | I24: 0.05 | J24: 0
A25: 23 | B25: 0 | C25: 0.05 | D25: 0.069 | E25: 0 | F25: 0.05 | G25: 0.05 | H25: 0.001 | I25: 0.05 | J25: 0
A26: 24 | B26: 0 | C26: 0.05 | D26: 0.069 | E26: 0 | F26: 0.05 | G26: 0.05 | H26: 0.001 | I26: 0.05 | J26: 0
A27: 25 | B27: 0 | C27: 0.05 | D27: 0.069 | E27: 0 | F27: 0.05 | G27: 0.05 | H27: 0.001 | I27: 0.05 | J27: 0
A28: 26 | B28: 0 | C28: 0.05 | D28: 0.069 | E28: 0 | F28: 0.05 | G28: 0.05 | H28: 0.001 | I28: 0.05 | J28: 0
A29: 27 | B29: 0 | C29: 0.05 | D29: 0.069 | E29: 0 | F29: 0.05 | G29: 0.05 | H29: 0.001 | I29: 0.05 | J29: 0
A30: 28 | B30: 0 | C30: 0.05 | D30: 0.069 | E30: 0 | F30: 0.05 | G30: 0.05 | H30: 0.001 | I30: 0.05 | J30: 0
A31: 29 | B31: 0 | C31: 0.05 | D31: 0.069 | E31: 0 | F31: 0.05 | G31: 0.05 | H31: 0.001 | I31: 0.05 | J31: 0
A32: 30 | B32: 0 | C32: 0.05 | D32: 0.069 | E32: 0 | F32: 0.05 | G32: 0.05 | H32: 0.001 | I32: 0.05 | J32: 0
A33: 31 | B33: 0 | C33: 0.05 | D33: 0.069 | E33: 0 | F33: 0.05 | G33: 0.05 | H33: 0.001 | I33: 0.05 | J33: 0
A34: 32 | B34: 0 | C34: 0.05 | D34: 0.069 | E34: 0 | F34: 0.05 | G34: 0.05 | H34: 0.001 | I34: 0.05 | J34: 0
A35: 33 | B35: 0 | C35: 0.05 | D35: 0.069 | E35: 0 | F35: 0.05 | G35: 0.05 | H35: 0.001 | I35: 0.05 | J35: 0
A36: 34 | B36: 0 | C36: 0.05 | D36: 0.069 | E36: 0 | F36: 0.05 | G36: 0.05 | H36: 0.001 | I36: 0.05 | J36: 0
A37: 35 | B37: 0 | C37: 0.05 | D37: 0.069 | E37: 0 | F37: 0.05 | G37: 0.05 | H37: 0.001 | I37: 0.05 | J37: 0
A38: 36 | B38: 0 | C38: 0.05 | D38: 0.069 | E38: 0 | F38: 0.05 | G38: 0.05 | H38: 0.001 | I38: 0.05 | J38: 0
A39: 37 | B39: 0 | C39: 0.05 | D39: 0.069 | E39: 0 | F39: 0.05 | G39: 0.05 | H39: 0.001 | I39: 0.05 | J39: 0
A40: 38 | B40: 0 | C40: 0.05 | D40: 0.069 | E40: 0 | F40: 0.05 | G40: 0.05 | H40: 0.001 | I40: 0.05 | J40: 0
A41: 39 | B41: 0 | C41: 0.05 | D41: 0.069 | E41: 0 | F41: 0.05 | G41: 0.05 | H41: 0.001 | I41: 0.05 | J41: 0
A42: 40 | B42: 0 | C42: 0.05 | D42: 0.069 | E42: 0 | F42: 0.05 | G42: 0.05 | H42: 0.001 | I42: 0.05 | J42: 0
A43: 41 | B43: 0 | C43: 0.05 | D43: 0.069 | E43: 0 | F43: 0.05 | G43: 0.05 | H43: 0.001 | I43: 0.05 | J43: 0
A44: 42 | B44: 0 | C44: 0.05 | D44: 0.069 | E44: 0 | F44: 0.05 | G44: 0.05 | H44: 0.001 | I44: 0.05 | J44: 0
A45: 43 | B45: 0 | C45: 0.05 | D45: 0.069 | E45: 0 | F45: 0.05 | G45: 0.05 | H45: 0.001 | I45: 0.05 | J45: 0
A46: 44 | B46: 0 | C46: 0.05 | D46: 0.069 | E46: 0 | F46: 0.05 | G46: 0.05 | H46: 0.001 | I46: 0.05 | J46: 0
A47: 45 | B47: 0 | C47: 0.05 | D47: 0.069 | E47: 0 | F47: 0.05 | G47: 0.05 | H47: 0.001 | I47: 0.05 | J47: 0
A48: 46 | B48: 0 | C48: 0.05 | D48: 0.069 | E48: 0 | F48: 0.05 | G48: 0.05 | H48: 0.001 | I48: 0.05 | J48: 0
A49: 47 | B49: 0 | C49: 0.05 | D49: 0.069 | E49: 0 | F49: 0.05 | G49: 0.05 | H49: 0.001 | I49: 0.05 | J49: 0
A50: 48 | B50: 0 | C50: 0.05 | D50: 0.069 | E50: 0 | F50: 0.05 | G50: 0.05 | H50: 0.001 | I50: 0.05 | J50: 0
A51: 49 | B51: 0 | C51: 0.05 | D51: 0.069 | E51: 0 | F51: 0.05 | G51: 0.05 | H51: 0.001 | I51: 0.05 | J51: 0
A52: 50 | B52: 0 | C52: 0.05 | D52: 0.069 | E52: 0 | F52: 0.05 | G52: 0.05 | H52: 0.001 | I52: 0.05 | J52: 0
A53: 51 | B53: 0 | C53: 0.05 | D53: 0.069 | E53: 0 | F53: 0.05 | G53: 0.05 | H53: 0.001 | I53: 0.05 | J53: 0
A54: 52 | B54: 0 | C54: 0.05 | D54: 0.069 | E54: 0 | F54: 0.05 | G54: 0.05 | H54: 0.001 | I54: 0.05 | J54: 0
A55: 53 | B55: 0 | C55: 0.05 | D55: 0.069 | E55: 0 | F55: 0.05 | G55: 0.05 | H55: 0.001 | I55: 0.05 | J55: 0
A56: 54 | B56: 0 | C56: 0.05 | D56: 0.069 | E56: 0 | F56: 0.05 | G56: 0.05 | H56: 0.001 | I56: 0.05 | J56: 0
A57: 55 | B57: 0 | C57: 0.05 | D57: 0.069 | E57: 0 | F57: 0.05 | G57: 0.05 | H57: 0.001 | I57: 0.05 | J57: 0
A58: 56 | B58: 0 | C58: 0.05 | D58: 0.069 | E58: 0 | F58: 0.05 | G58: 0.05 | H58: 0.001 | I58: 0.05 | J58: 0
A59: 57 | B59: 0 | C59: 0.05 | D59: 0.069 | E59: 0 | F59: 0.05 | G59: 0.05 | H59: 0.001 | I59: 0.05 | J59: 0
A60: 58 | B60: 0 | C60: 0.05 | D60: 0.069 | E60: 0 | F60: 0.05 | G60: 0.05 | H60: 0.001 | I60: 0.05 | J60: 0
A61: 59 | B61: 0 | C61: 0.05 | D61: 0.069 | E61: 0 | F61: 0.05 | G61: 0.05 | H61: 0.001 | I61: 0.05 | J61: 0
A62: 60 | B62: 0 | C62: 0.05 | D62: 0.069 | E62: 0 | F62: 0.05 | G62: 0.05 | H62: 0.001 | I62: 0.05 | J62: 0
A63: 61 | B63: 0 | C63: 0.05 | D63: 0.069 | E63: 0 | F63: 0.05 | G63: 0.05 | H63: 0.001 | I63: 0.05 | J63: 0
A64: 62 | B64: 0 | C64: 0.05 | D64: 0.069 | E64: 0 | F64: 0.05 | G64: 0.05 | H64: 0.001 | I64: 0.05 | J64: 0
A65: 63 | B65: 0 | C65: 0.05 | D65: 0.069 | E65: 0 | F65: 0.05 | G65: 0.05 | H65: 0.001 | I65: 0.05 | J65: 0
A66: 64 | B66: 0 | C66: 0.05 | D66: 0.069 | E66: 0 | F66: 0.05 | G66: 0.05 | H66: 0.001 | I66: 0.05 | J66: 0
A67: 65 | B67: 0 | C67: 0.05 | D67: 0.069 | E67: 0 | F67: 0.05 | G67: 0.05 | H67: 0.001 | I67: 0.05 | J67: 0
A68: 66 | B68: 0 | C68: 0.05 | D68: 0.069 | E68: 0 | F68: 0.05 | G68: 0.05 | H68: 0.001 | I68: 0.05 | J68: 0
A69: =A68+1 -> 67 | B69: 0 | C69: 0.05 | D69: 0.069 | E69: 0 | F69: 0.05 | G69: 0.05 | H69: 0.001 | I69: 0.05 | J69: 0
A70: 68 | B70: 0 | C70: 0.05 | D70: 0.069 | E70: 0 | F70: 0.05 | G70: 0.05 | H70: 0.001 | I70: 0.05 | J70: 0
A71: 69 | B71: 0 | C71: 0.05 | D71: 0.069 | E71: 0 | F71: 0.05 | G71: 0.05 | H71: 0.001 | I71: 0.05 | J71: 0
A72: 70 | B72: 0 | C72: 0.05 | D72: 0.069 | E72: 0 | F72: 0.05 | G72: 0.05 | H72: 0.001 | I72: 0.05 | J72: 0
A73: 71 | B73: 0 | C73: 0.05 | D73: 0.069 | E73: 0 | F73: 0.05 | G73: 0.05 | H73: 0.001 | I73: 0.05 | J73: 0
A74: 72 | B74: 0 | C74: 0.05 | D74: 0.069 | E74: 0 | F74: 0.05 | G74: 0.05 | H74: 0.001 | I74: 0.05 | J74: 0
A75: 73 | B75: 0 | C75: 0.05 | D75: 0.069 | E75: 0 | F75: 0.05 | G75: 0.05 | H75: 0.001 | I75: 0.05 | J75: 0
A76: 74 | B76: 0 | C76: 0.05 | D76: 0.069 | E76: 0 | F76: 0.05 | G76: 0.05 | H76: 0.001 | I76: 0.05 | J76: 0
A77: 75 | B77: 0 | C77: 0.05 | D77: 0.069 | E77: 0 | F77: 0.05 | G77: 0.05 | H77: 0.001 | I77: 0.05 | J77: 0
A78: 76 | B78: 0 | C78: 0.05 | D78: 0.069 | E78: 0 | F78: 0.05 | G78: 0.05 | H78: 0.001 | I78: 0.05 | J78: 0
A79: 77 | B79: 0 | C79: 0.05 | D79: 0.069 | E79: 0 | F79: 0.05 | G79: 0.05 | H79: 0.001 | I79: 0.05 | J79: 0
A80: 78 | B80: 0 | C80: 0.05 | D80: 0.069 | E80: 0 | F80: 0.05 | G80: 0.05 | H80: 0.001 | I80: 0.05 | J80: 0
A81: 79 | B81: 0 | C81: 0.05 | D81: 0.069 | E81: 0 | F81: 0.05 | G81: 0.05 | H81: 0.001 | I81: 0.05 | J81: 0
A82: 80 | B82: 0 | C82: 0.05 | D82: 0.069 | E82: 0 | F82: 0.05 | G82: 0.05 | H82: 0.001 | I82: 0.05 | J82: 0
A83: 81 | B83: 0 | C83: 0.05 | D83: 0.069 | E83: 0 | F83: 0.05 | G83: 0.05 | H83: 0.001 | I83: 0.05 | J83: 0
A84: 82 | B84: 0 | C84: 0.05 | D84: 0.069 | E84: 0 | F84: 0.05 | G84: 0.05 | H84: 0.001 | I84: 0.05 | J84: 0
A85: 83 | B85: 0 | C85: 0.05 | D85: 0.069 | E85: 0 | F85: 0.05 | G85: 0.05 | H85: 0.001 | I85: 0.05 | J85: 0
A86: 84 | B86: 0 | C86: 0.05 | D86: 0.069 | E86: 0 | F86: 0.05 | G86: 0.05 | H86: 0.001 | I86: 0.05 | J86: 0
A87: 85 | B87: 0 | C87: 0.05 | D87: 0.069 | E87: 0 | F87: 0.05 | G87: 0.05 | H87: 0.001 | I87: 0.05 | J87: 0
A88: 86 | B88: 0 | C88: 0.05 | D88: 0.069 | E88: 0 | F88: 0.05 | G88: 0.05 | H88: 0.001 | I88: 0.05 | J88: 0
A89: 87 | B89: 0 | C89: 0.05 | D89: 0.069 | E89: 0 | F89: 0.05 | G89: 0.05 | H89: 0.001 | I89: 0.05 | J89: 0
A90: 88 | B90: 0 | C90: 0.05 | D90: 0.069 | E90: 0 | F90: 0.05 | G90: 0.05 | H90: 0.001 | I90: 0.05 | J90: 0
A91: 89 | B91: 0 | C91: 0.05 | D91: 0.069 | E91: 0 | F91: 0.05 | G91: 0.05 | H91: 0.001 | I91: 0.05 | J91: 0
